Workbook

Sheet Change Log (hidden)
A1: FlexMAT Cracking Change Log
A2: Date | B2: Version | C2: Change | D2: Description | E2: Last Saved | F2: 2024-04-21T14:20:41
A3: 2019-08-27 | B3: v2.0 | C3: 2S2P1D Fitting | D3: Fitting of the dynamic modulus data to the 2S2P1D model using GRG non-linear with multistart configuration | E3: Last Update | F3: 2023-08-18T05:58:22
A4: 2019-08-27 | B4: v2.0 | C4: Failure Definition | D4: Cyclic Fatigue's failure definition at maximum value of stress*N as a function of N instead of phase angle.
A5: 2019-08-27 | B5: v2.0 | C5: Sapp Formulation | D5: Replacement of functions "Sub optionalSapp()" and "Sub OptionalNf()" under modfatigueanalysis module
A6: 2019-08-27 | B6: v2.0 | C6: Alpha Calculation | D6: Calculation of alpha changed to numerical differentiation of storage modulus from 2S2P1D model
A7: 2019-08-27 | B7: v2.0 | C7: CTC Analysis | D7: Inclusion of the three CTC levels to the available analysis
A8: 2019-08-27 | B8: v2.0 | C8: Aging Analysis | D8: Inclusion of the three aging levels to the available analysis
A9: 2019-08-27 | B9: v2.0 | C9: DR Output Value | D9: DR output is calculate through the linear regression of experimental values with the intercept of zero
A10: 2019-08-27 | B10: v2.0 | C10: Hirsch Model Removal | D10: Fitting of sigmoidal without using upper constraint from Hirsch Model Prediction (Fitting: GRG Nonlinear, scaling = true)
A11: 2019-10-03 | B11: v2.0 | C11: Fixed Aging DM Fitting at 64°C | D11: Set a constraint to the fitting process of having maximum E' > 1
A12: 2019-11-02 | B12: v2.0 | C12: DPSE | D12: Added DPSE vs Reduced strain rate prediction for 4 different initial integrity values to the Fatigue Analysis
A13: 2019-11-14 | B13: v2.0 | C13: CTC and Aging Input Acceleration | D13: Changed the preparation of the different Level inputs to become a faster macro.
A14: 2019-11-15 | B14: v2.0 | C14: Aging lvl 1 Fitted Model Plot | D14: Increased the number of points plotted in the fitted Kinetics Model in level 1 to show a smoother curve.
A15: 2019-11-17 | B15: v2.0 | C15: Min. Specimen Number for Fatigue | D15: Reduced the minimum number of specimens alowed for fatigue analysis to 1, bypassing GR calculation.
A16: 2019-11-18 | B16: v2.0 | C16: Failure Definition | D16: Replaced phase angle for stress*N as failure definition, including a new column fot the data, shifting the adjacent table to the side.
A17: 2019-11-20 | B17: v2.0 | C17: GR Removal | D17: Removed GR from the Analysis, including plots, table columns and cells regarding such parameter.
A18: 2020-01-10 | B18: v2.0 | C18: Graphs 508 Compliant | D18: Changed the graphs to have 508 compliant symbols.
A19: 2020-01-30 | B19: v2.0 | C19: Bridge Functionality | D19: Added bridge routine to import data from previous versions of FlexMAT with buttons in the "Input Data" sheet.
A20: 2020-02-04 | B20: v2.0 | C20: Input Strain | D20: Replace Output data in tab "Output Fatigue" S@Nf for input Strain.
A21: 2020-02-05 | B21: v2.0 | C21: Manual Sigmoidal Fit | D21: Removed Manual Sigmoidal Fit button from "Dynamic Modulus Data" tab.
A22: 2020-02-05 | B22: v2.0 | C22: VMA/VFA | D22: Removed VMA and VFA from prediction of Dynamic Modulus.
A23: 2020-02-18 | B23: v2.0 | C23: C(S) Fit | D23: Fixed bug with C(S) fitted curve display.
A24: 2020-02-18 | B24: v2.0 | C24: Fatigue Input From FlexMAT | D24: Added functionality to input only fatigue data from previous existing FlexMAT file.
A25: 2020-02-21 | B25: v2.0 | C25: Export to FlexPAVE 1.1 | D25: Fixed bugs in the formating of exported files to FlexPAVE 1.1
A26: 2020-03-10 | B26: v2.0 | C26: Failure Definition Algorithm | D26: Changed algorithm to calculate failure point, including filtering of peaks in Sigma*N and slope evaluation.
A27: 2020-03-11 | B27: v2.0 | C27: DPSE Calculation | D27: Increased the maximum number of points in the reduced time vector to 20001 time steps.
A28: 2020-05-11 | B28: v2.0 | C28: City Selection for Sapp | D28: Inclusion of City selection for Sapp temperature calculation.
A29: 2020-05-11 | B29: v2.0 | C29: Individual Sapp Calculation | D29: Inclusion of individual Sapp values for each specimen.
A30: 2020-06-09 | B30: v2.0 | C30: DM Graph Symbols | D30: Modified the tested specimen symbols to become 508 compliant.
A31: 2020-06-18 | B31: v2.0 | C31: PID Data Quality Indicator | D31: Included PID DQI in Table 9 for each fatigue specimen.
A32: 2020-06-25 | B32: v2.0 | C32: Data Quality Indicators | D32: Removed PID DQI from table 9 and included new tab for DQI evaluation. Command from DQI evaluation is in "Output Fatigue" Tab.
A33: 2020-07-01 | B33: v2.0 | C33: Warnings | D33: Included table with warnings concerning Data Quality Indicators and restricitive conditions in "Input Data" Tab.
A34: 2020-07-20 | B34: v2.0 | C34: Input Data Buttons | D34: Changed names of bridge mode buttons and removed bridge button for fatigue only.
A35: 2020-07-22 | B35: v2.0 | C35: Current Date | D35: Included a cell in "Change Log" Tab for automatically saving the current date of modification, adding code to "Workbook_Open()."
A36: 2020-07-24 | B36: v2.0 | C36: Fatigue Input From FlexMAT | D36: Removed button but not code functionality to input only fatigue data from previous existing FlexMAT file.
A37: 2020-07-27 | B37: v2.0 | C37: Bridge Functionality Bug | D37: Fixed bug with number of reduced frequencies copied to object table("TabDynModInputSummary") when using bridge functionality.
A38: 2020-07-29 | B38: v2.0 | C38: Fix Pavement ME | D38: Fixed bug by renaming cells in last row of the table.
A39: 2020-07-29 | B39: v2.0 | C39: Pavement ME Table Titles | D39: Removed text box from Pavement ME table, adding units to frequencies and changing formula reading of cells to select only the frequency value.
A40: 2020-07-30 | B40: v2.0 | C40: Optional Nf | D40: Changed "OptionalNf" routine to acess cells through customized cell names and changed their position.
A41: 2020-07-30 | B41: v2.0 | C41: Input Data Screen | D41: Reorganized "Input Data" sheet elements disposition.
A42: 2020-07-30 | B42: v2.0 | C42: CTC and Aging Levels | D42: Modified CTC and Aging Level selection to remove content of inputs that are not being used.
A43: 2020-08-11 | B43: v2.0 | C43: Warning Table | D43: Modified Cleaning of Warning Table not to move Aging input cells
A44: 2020-08-13 | B44: v2.0 | C44: DQI operation with Bridge | D44: Modified Bridge functionality to include previous DQI information. Obs.: Existent DQIs are copied and not recalculated.
A45: 2020-08-26 | B45: v2.0 | C45: DM Input Flexibility | D45: Added generic data structure input flexibility to Dynamic Modulus
A46: 2020-09-02 | B46: v2.0 | C46: US Units | D46: Added Dynamic Modulus and Cyclic Fatigue US unit conversion for generic data structure input format.
A47: 2020-09-23 | B47: v2.0 | C47: C vs S Fitting Bug | D47: Modified the selection of fitting points when second point had C = 1 and S > 0, to take nearest S >= 5000.
A48: 2020-10-16 | B48: v2.0 | C48: DR Output Value | D48: Modified Representative DR value to be calculated as the average of individual specimens' DR.
A49: 2020-10-16 | B49: v2.0 | C49: Initialization Error | D49: Changed macros running on initialization to fix bug on first time opening the file.
A50: 2020-11-23 | B50: v2.0 | C50: Additional Information | D50: Added Additional Information handle, with button for function calling in "Input Data" screen.
A51: 2020-11-30 | B51: v2.0 | C51: Applied Stress Typo | D51: Fixed a typo in the vertical axis of the Applied Stress Graph in the "Fatigue Data Validity" tab, replacing "Peak to Peak Strain" for "Peak to Peak Stress".
A52: 2020-12-04 | B52: v2.0 | C52: Aging Analysis Update | D52: Included modifications in Aging Analysis for mixtures that include RAP.
A53: 2020-12-08 | B53: v2.0 | C53: Data Separators | D53: Modified data separators to be flexible between comma, space and tab symbols for numeric data inputs.
A54: 2020-12-15 | B54: v2.0 | C54: Userforms Positions | D54: Added functionality to set userforms on the corresponding screen when activated.
A55: 2020-12-16 | B55: v2.0 | C55: Fatigue input format 2 | D55: Modified code to be compatible with generic data structure description. (inputs in strains, etc...)
A56: 2020-12-21 | B56: v2.0 | C56: Sign Convention | D56: Updated cyclic fatigue and DM sign convention for the universal data structure to be: compression = positive (+); tension = negative (-)
A57: 2020-12-21 | B57: v2.0 | C57: PID Data Quality Indicator Consistency | D57: Updated PID analysis to be consistent with compression-positive sign convention too.
A58: 2021-01-04 | B58: v2.0 | C58: Individual Analyses Clear Button | D58: Added clear button to CTC analysis and changed location of button to clear fatigue analysis from "Fatigue Data Validity" tab, to "Input Data" tab.
A59: 2021-01-08 | B59: v2.0 | C59: Dynamic Modulus Tables | D59: Changed position of the parameters tables in the "Dynamic Modulus Data" worksheet to optimize worksheet space and visualization. Code was modified to reflect absolute cell address modifications
A60: 2021-01-08 | B60: v2.0 | C60: Update Instructions Worksheet | D60: Updated "Instructions" worksheet to reflect changes between versions 1.1 and 2.0 of FlexMAT™.
A61: 2021-01-13 | B61: v2.1 | C61: Pavement ME Table Units | D61: Changed Pavement ME table units from MPa to psi, for consistency with input units in Pavement ME.
A62: 2021-04-27 | B62: v2.1 | C62: Peak to Peak Values | D62: Changed Peak-to-Peak values to be taken as absolute values of the reported AMPT results.
A63: 2021-04-27 | B63: v2.1 | C63: DQI Arrays | D63: Changed the maximum number of DQIs to be 500 and no longer 495.
A64: 2021-04-27 | B64: v2.1 | C64: C vs S Fitting | D64: If one specimen has a maximum value of S < 5000, the fitting of that curve is made by all the points calculated so far.
A65: 2021-11-16 | B65: v2.1.1 | C65: Dynamic Modulus Deformation Drift Sign Convention | D65: Changed sign convention so that for input data "Retraction is Negative" and for FlexMAT displayed convention, "Retraction is Positive" (i.e., in raw data file, negative deformation drift is converted into positive deformation drift)
A66: 2021-11-16 | B66: v2.1.1 | C66: CFT Deformation Sign Convention | D66: Changed sign convention so that for input data "Retraction is Negative" and FlexMAT's displayed convention, "Retraction is Positive" (i.e., in raw data file, negative deformation is converted into positive deformation).
A67: 2022-06-15 | B67: v2.1.2 | C67: Input Versatility | D67: Included functionality to diferentiate between inputs of (1) 'Legacy' IPC Input format, (2) Standard format v1.0 (compression positive, extension positive) and (3) Standard format v2.0 (compression positive, retraction positive). FlexMAT reads input files and determine adequate sign convention and expected structure. Notice, regardless of input format, specimen retraction is displayed as positive on FlexMAT's graphs.
A68: 2022-06-15 | B68: v2.1.2 | C68: Unprotect Sheets Functionality | D68: Changed "Unprotect Sheet" functionality to become a Private function, hiding it from list of macros on developer and preventing users from unlocking FlexMAT.
A69: 2022-06-16 | B69: v2.1.2 | C69: Hidden C vs S Rows | D69: Show hidden rows on C vs S as some of those were being wrongly hidden by a section of the code.
A70: 2022-06-16 | B70: v2.1.2 | C70: Warning Message S*N | D70: Create warning message for tests that didn't present stress*N drop during Nf definition.
A71: 2022-06-16 | B71: v2.1.2 | C71: Sigmoidal Solver Loop | D71: Run Solver loop twice on sigmoidal fitting for refining shifiting of tTs.
A72: 2022-06-16 | B72: v2.1.2 | C72: E' to |E*| | D72: Changed dynamic modulus mastercurve plot on 'Dynamic Modulus Data' tab to be shown as a function of |E*| rather than E', adding a couple columns for 2S2P1D representation of |E*|
A73: 2022-06-16 | B73: v2.1.2 | C73: Legacy IPC | D73: Modified 'Legacy' IPC key input identifiers to be compatible with newer and older versions of the file, changing string search on header row and followed by a verification of numeric values for data section.
A74: 2022-06-16 | B74: v2.1.2 | C74: Aging Level 3 | D74: Changed Equations: log(G*) = 0.0217 * Exp(0.0541 * Range("Ag3_12").Value) to log(G*) = 6.552 / (1 + (Range("Ag3_12").Value / 107.167) ^ -4.068)
A75: 2022-07-04 | B75: v2.1.2 | C75: Instructions Update | D75: Updated the instructions tab to discuss solution of "Compile error in hidden module […]"
A76: 2022-07-04 | B76: v2.1.2 | C76: Limiting Dynamic Modulus | D76: Removed limiting modulus, both high (34.4 GPa) and low (6.8 MPa) values from the Dynamic_Modulus_2S2P1D_MPa and Dynamic_Modulus_2S2P1D_psi functions. This feature was resulting in unplotted values.
A77: 2022-07-08 | B77: v2.1.2 | C77: Alt Text DM Mastercurve | D77: Updated Alt Text of Dynamic Modulus mastercurve plot to reproduce the change from E' to |E*| and sigmoidal model removal from the graph.
A78: 2022-10-17 | B78: v2.1.2 | C78: Disclaimer | D78: Included Disclaimer functionality and userform at the start of FlexMAT, pending upon user agreement.
A79: 2022-10-17 | B79: v2.1.2 | C79: Names Review | D79: Cleaned unused names of cells and ranges that contained #REF in their description.
A80: 2022-10-17 | B80: v2.1.2 | C80: Reanalize FlexMAT Functionality | D80: Update source of number of fatigue specimens to correct calculation when DQI sheet is incomplete.
A81: 2022-12-08 | B81: v2.1.3 | C81: Fixed Aging Typo | D81: Changed equation of aging lvl 3 from logG_RAP = 6.552 / (1 + (Range("Ag3_12").Value / 107.167) ^ -4.068) to logG_RAP = 6.552 / (1 + (Range("Ag_Rap32").Value / 107.167) ^ -4.068)
A82: 2022-12-08 | B82: v2.1.3 | C82: Modified Aging Level 2 (w. RAP) | D82: Changed equation of log|G*|,STA of RAP in lvl 2 with RAP from: =0.0217*EXP(0.0541*B3) to =6.552/(1+(B3/107.167)^-4.068)
A83: 2022-12-08 | B83: v2.1.3 | C83: Loading Fatigue without DM | D83: Implemented method for preventing users from loading fatigue while there are no Dynamic Modulus files loaded.
A84: 2023-02-06 | B84: v2.1.4.1 | C84: DM for Sapp Calculation | D84: Changed method for calculation of E_LVE in Sapp formulation from using Prony Series to 2S2P1D.
A85: 2023-02-07 | B85: v2.1.4.2 | C85: Representative Sapp | D85: Changed calculation method for representative Sapp from using group representative characteristics (C11, C12, DR, …) to average specimen's Sapp
A86: 2023-02-23 | B86: v2.1.4.2 | C86: Output Fatigue Table Text | D86: Updated the display text of the "Output Fatigue" Table to convey the idea of "Average" instead of Representative. Also removed the superscripts 'a' and 'b', given their irrelevant nature now that the all group representative values are average values.
A87: 2023-02-24 | B87: v2.1.4.3 | C87: Specimen Size and NMAS Info | D87: Created a userform for selecting specimen size (Small - 38 mm diameter - or Large - 100 mm diameter - ). The userforms are activated when repeatability analysis is initialized and the information is stored in the 'Additional Info' Tab.
A88: 2023-03-17 | B88: v2.1.4.3 | C88: DM Repeatability | D88: Implemented analysis method for Dynamic Modulus Repeatability, including a new sheet object. The repeatability assessment is isolated in its own sheet, and copies an excerpt of the dynamic modulus data loaded for its analysis.
A89: 2023-03-17 | B89: v2.1.4.3 | C89: CFT Repeatability | D89: Implemented analysis method for CFT repeatability, including a new sheet object. The repeatability assessment is isolated in its own sheet, and is based on the calculated and filtered C vs S data, fitting C11 and C12 parameters for each specimen's C vs S curve
A90: 2023-03-17 | B90: v2.1.4.3 | C90: 'Output' Style | D90: Created a new style named 'Output Free Number'. This style has unintendedly modified the 'Output General Number' style, creating a weird behavior in some cell styles. A revision process was undertaken for correcting this.
A91: 2023-03-20 | B91: v2.1.4.3 | C91: Graphs configurations | D91: Standardized all graphs for Arial font with size: graph title 14 pt., axis titles 12 pt., axis numbers 11 pt. and legend 11 pt.
A92: 2023-03-27 | B92: v2.1.4.4 | C92: DM Repeatability Updates | D92: The following modifications were held: (1) changed axis names to 'Range' instead of 'Acceptable Range'; (2) include a brief instructions section on how to use 'Update Assessment' functionality; (3) update number formating for frequencies to include decimal places when f<0.1
A93: 2023-03-27 | B93: v2.1.4.4 | C93: CFT Repeatability Updates | D93: Fixed table formating for row above table not to have any border.
A94: 2023-04-03 | B94: v2.1.4.4 | C94: Shift Factor Representation | D94: Modified the GUI not to show the polynomial form of the shift-factor function, following the form: at = f(a1,a2,Tref), renaming coefficients, hiding polynomial coefficients (not deleting them for consistency with FlexPAVE) both in 'Dynamic Modulus Data' and 'Summary & Input to FlexPAVE' tabs.
A95: 2023-04-04 | B95: v2.1.4.4 | C95: Cell Name References (DM) | D95: Changed the dynamic modulus portion of the code to use cell names instead of cell addresses as reference for the operations.
A96: 2023-04-04 | B96: v2.1.4.4 | C96: CTC Units | D96: Added units to CTC inputs in 'Input Data' tab.
A97: 2023-04-07 | B97: v2.1.4.4 | C97: Temperature Depentend DR | D97: Updated the DR model to include calculation of the 'd' parameter for temperature dependent DR, adjusting 'Summary and Input to FlexPAVE' tab to include it.
A98: 2023-04-07 | B98: v2.1.4.4 | C98: Aging Fitting Update | D98: Changed aging fitting algorithm, to calculate shift factors for 64°C based on Tref instead of re-fitting sigmoidal curve.
A99: 2023-04-14 | B99: v2.1.4.4 | C99: Cell Name References (Ag) | D99: Changed the Aging portion of the code to use cell names instead of cell addresses as reference for the operations. Added cell names accordingly.
A100: 2023-04-14 | B100: v2.1.4.4 | C100: Cell Name References (CTC) | D100: Changed the CTC portion of the code to use cell names instead of cell addresses as reference for the operations. Added cell names accordingly.
A101: 2023-04-17 | B101: v2.1.4.5 | C101: CFT Fitting | D101: Adding a new fitting procedure to CFT, where damage is calculated based on normalized pseudo stiffness (C), instead of on pseudo stiffness. The procedure is called CSC. This fitting procedure uses S increments in log Space, but the displayed fit data shows S increments of 5000. The selection of method is restricted by password and comes from a selection in a userform called when initilizing the procedure.
A102: 2023-04-28 | B102: v2.1.4.5 | C102: Sapp Location Selection | D102: Created a userform for selecting State and City for Sapp calculation.
A103: 2023-04-28 | B103: v2.1.4.5 | C103: Sapp Calculation | D103: When calculating Sapp, user has to decide if DR should be considered constant, or use temperature dependent model.
A104: 2023-04-28 | B104: v2.1.4.5 | C104: Nf Calculation | D104: When calculating Nf, user has to decide if DR should be considered constant, or use temperature dependent model. Also, K1 was updated to be calculated instead of using a constant value (K1 = 0.206) The formulation for K1 is now: K1 = 0.3005 - 0.0259 * FatAlpha And it considers that the parameter "BetaSVECD" is always 1 (tension).
A105: 2023-04-28 | B105: v2.1.4.5 | C105: Removing Access to Macros | D105: Every function that was not private received an argument named "voidInput" that has no interference in the procedures.
A106: 2023-04-17 | B106: v2.1.4.5 | C106: CFT Fitting | D106: Adding a new fitting procedure to CFT, where damage is calculated based on normalized pseudo stiffness (C), instead of on pseudo stiffness.
A107: 2023-08-10 | B107: v2.1.4.6 | C107: Sapp Calculation | D107: Sapp Calculation is using 2s2p1d for dynamic modulus calculation
A108: 2023-08-10 | B108: v2.1.4.6 | C108: Sapp Calculation | D108: Group representative Sapp value is calculated based on group representative C11, C12 and DR, instead of average.
A109: 2023-08-10 | B109: v2.1.4.6 | C109: DM Repeatability | D109: Updated sr% limit and phase angle to be specimen-size dependent, with equations programmed accordingly.
A110: 2023-08-10 | B110: v2.1.4.6 | C110: DM DQI Limits | D110: Updated DQI Limits for Dynamic Modulus table based on test temperature for: Load Standard Error, Average Deformation Standard Error. Average deformation Drift limit was also modified to be triggered when value is greater than 100% in direction opposite to load.
A111: 2023-08-10 | B111: v2.1.4.6 | C111: State and City Cells Protection | D111: In Sapp calculation, State and City cells were not protected from user modifications as of before and now are, being updated only through userform.
A112: 2023-08-10 | B112: v2.1.4.6 | C112: Change Log Protection | D112: Unprotected cells with time modifications in change log sheet, avoiding potential issues when opening/closing sheets via 3rd party software.
A113: 2023-08-18 | B113: v2.1.4.6 | C113: DQI Table | D113: Changed limits of DQI review table (Table 1 in 'Input Data') to reflect modifications based on tested condition's temperature.
A114: 2024-04-21 | B114: v2.2 | C114: Change of Number and Red. Freq. | D114: Fixed reduced frequency used for dynamic modulus calculation at the lowest reduced frequency (Cell W45 in Dynamic Modulus Data sheet), Changed number to 2.2 for release

Sheet Start
A2: BEFORE YOU START: FlexMAT™ v2.2 requires the following configurations setup:
A3: o Enable macro access. FlexMAT™ v2.2 is a macro-based software and requires permission from Excel to run its algorithms. To do that, go to "File > Options > Trust Center > Trust Center Settings > Macro Settings" and:
A4: 1) under "Macro Settings", "Disable all macros with notification" configuration is suggested and further enabling FlexMAT™ macros when requested;
A5: 2) under "Developer Macro Settings" check the "Trust access to the VBA project object model" checkbox, to give FlexMAT™ permission to install required libraries (when needed and available).
A11: Start Program Shortcut: (Alt + S)

Sheet Instructions (hidden)
A2: BEFORE YOU START: FlexMAT™ v2.2 requires the following Excel configurations setup:
A3: o Solver add-in needs to be enabled. To do that go to: "File > Options > Add-ins > Manage: Excel Add-ins > Solver" and check the Solver add-in check box. Observation: The solver functionality in Excel can generate an error identified by the message "Compile error in hidden module [...]". This issue can lock Excel, preventing users from closing it normally and getting stuck on the error message. To fix this issue: (1) make sure to close all instances of Excel, including FlexMAT and potential background instances; (2) re-open a new Excel workbook; (3) disable (if needed) and re-enable solver on the Workbook opened in step 2; (4) re-open FlexMAT, which should no longer present the issue.
A4: o Trusted macro access. FlexMAT™ is a macro-based software and requires permission from Excel to run its algorithms. To do that, go to "File > Options > Trust Center > Trust Center Settings > Macro Settings" and:
A5: 1) under "Macro Settings", "Disable all macros with notification" configuration is suggested and further enabling FlexMAT™ macros when requested;
A6: 2) under "Developer Macro Settings" check the "Trust access to the VBA project object model" checkbox, to give FlexMAT™ permission to install required libraries (when needed and available).
A7: ------------------------------------------------------------------------------------------------------------------------------------------------------------------------------------------------------------------------------------
A8: Workbook Purpose: FlexMAT™ Cracking can be used to analyze dynamic modulus and cyclic fatigue AMPT test results and characterization of coefficient of thermal contraction (CTC) and aging models.
A9: How to Use: FlexMAT™ requires dynamic modulus and cyclic fatigue test data in the standard format. Please check the sample lab data files provided and data structure description for details on the dynamic modulus and cyclic fatigue input formats.
A10: ------------------------------------------------------------------------------------------------------------------------------------------------------------------------------------------------------------------------------------
A11: Worksheets Description:
A12: Input Data: This worksheet contains command buttons that load lab test data and to input relevant analysis data.
A13: o Select the number of test specimen data for dynamic modulus and fatigue test either by typing a number one to ten or by picking one from the dropdown list.
A14: o Load dynamic modulus test files using "Load Dynamic Modulus Data" command button. The program input takes separate folder for each specimen.
A15: o Once dynamic modulus test data is loaded, the button "Load Fatigue Data" will be enabled to load the fatigue test data. For fatigue test, FlexMAT™ input takes separate folder for each specimen.
A16: o The button "Clear All Fatigue Inputs" can be used to clear all fatigue inputs/outputs and start fatigue analysis afresh.
A17: o The button "Clear All Inputs" can be used to clear all user inputs and start afresh. At any stage if user want to restart the data input use this command button.
A18: o Optional Analysis will be enabled only after loading fatigue test data. In the given fields, enter Temperature, Strain Amplitude and Frequency to compute Nf.
A19: o The button "Reanalyze Data Analyzed from FlexMAT" will prompt the user to select an existing FlexMAT™ file, copying the existing dynamic modulus and cyclic fatigue data inputs into the current FlexMAT™ file and running the analysis with the updated algorithms and models of the current version.
A20: o The button "Reanalyze Data Analyzed from FlexMAT (Batch mode)" will prompt the user for a folder with multiple FlexMAT™ files, reanalyzing the data present in each file with the updated algorithms and models of the current version. Results are saved in a subfolder created inside the selected input folder.
A21: o The button "Additional Information" opens up a new screen where the user can input additional information about the project, mixture tested, individual specimens, dynamic modulus test and cyclic fatigue test.
A22: o Once dynamic modulus test data is loaded, the button "Run CTC Analysis" will be enabled. Select the analysis level - I, II or III - for thermal analysis, fill the corresponding input information and press the "Run CTC Analysis" button to perform thermal model fitting procedure. (Obs.: This analysis is not necessary to obtain cyclic fatigue results)
A23: o The button "Clear All CTC Inputs" can be used to clear all thermal inputs/outputs and start thermal analysis afresh.
A24: o Once dynamic modulus test data is loaded, the button "Run Aging Analysis" will be enabled. Select the analysis level - I, II or III - for aging analysis, fill the corresponding input information and press the "Run Aging Analysis" button to characterize the Aging Model. (Obs.: This analysis is not necessary to obtain cyclic fatigue results)
A25: o The button "Clear All Aging Inputs" can be used to clear all aging inputs/outputs and start aging analysis afresh.
A26: o Table 1 presents a summary of data quality indicators (DQIs) issues, i.e. load standard error, average deformation drift, average deformation standard error, deformation uniformity and phase uniformity, in dynamic modulus and/or cyclic fatigue tests. Note that this table should be empty if no data was inputted.
A27: ------------------------------------------------------------------------------------------------------------------------------------------------------------------------------------------------------------------------------------
A28: Dynamic Modulus Data: This worksheet contains dynamic modulus results that are computed automatically once dynamic modulus test data are loaded in the "Input Data" worksheet.
A29: o In Table 2, review the load standard error, average deformation drift, average deformation standard error, deformation uniformity, and phase uniformity. The cells will appear yellow when the data quality requirements of AASHTO TP 79 and AASHTO PP 61 are not met, which may indicate an invalid test. The summary of issues found in this table is also present in Table 1 in the "Input Data" tab.
A30: ------------------------------------------------------------------------------------------------------------------------------------------------------------------------------------------------------------------------------------
A31: Fatigue Data Validity: This worksheet can be used to check the validity of the fatigue test data. It summarizes the fatigue input data and C vs S data for each specimen.
A32: o The dropdown list besides "Select Specimen Number & ID" can be used to select the specimen number/ID for which the user would like to check the loaded fatigue data and its corresponding C vs S curve.
A33: o Review the graphs. The "Dynamic Modulus and Failure Definition" graph should display a clear peak that corresponds to an increase in the rate of decrease in dynamic modulus. The peak-to-peak strain of the three LVDTs should be in generally good agreement until the specimen approaches failure.
A34: o The user can modify (not delete) any erroneous data in Table 7 and 8 (interpolation technique between good adjacent data points can be used). There should not be any blank rows with in the tables. The charts will show any modifications in Table 8.
A35: o "Update Results" command button will be enabled if there are any user modifications in Table 7 and 8. After all data modifications, if any, the user should click "Update Results" button to refresh fatigue results in "Output Fatigue" worksheet.
A36: ------------------------------------------------------------------------------------------------------------------------------------------------------------------------------------------------------------------------------------
A37: Output Fatigue: This worksheet summarizes results from the fatigue analysis.
A38: o The DMR value should be between 0.85 and 1.15. If the DMR value is outside of this range, it could indicate an invalid test.
A39: o The quality of the damage characteristic curve model fit and repeatability of fatigue test results can be observed in the C versus S graph. The C versus S curves from all fatigue tests should be in good agreement. The failure criteria parameters are calculated automatically.
A40: o The Cumulative (1-C) versus Nf graph can also be used to further assess sample-to-sample variability. The relationship between Cumulative (1-C) and Nf should be linear. Thus, the repeatability of the fatigue tests can be assessed by the R² value reported in the Cumulative (1-C) versus Nf graph and outliers can be identified by visually observing deviations from the trend line of the data points in this plot.
A41: o The selection of state and city will trigger Sapp analysis, filling Table 10 with individual and group representative Sapp values. Alternatively to the selection of state, the user can select "Other" and chose the binder climatic PG most adequate to the project. The "Run Sapp Analysis" button will execute Sapp analysis for the selection of State and City (or Climatic PG).
A42: o The button "Show Data Quality Indicators" enables the "Data Quality Indicators" worksheet that can be used to check the fatigue test DQIs after fatigue data has been inputed and analyzed.
A43: ------------------------------------------------------------------------------------------------------------------------------------------------------------------------------------------------------------------------------------
A44: CTC Level 2 and CTC Level 3: These worksheets summarize the results of fitting data in levels II and III of the CTC analysis.
A45: o No user action is required.
A46: ------------------------------------------------------------------------------------------------------------------------------------------------------------------------------------------------------------------------------------
A47: Aging Level 1 and Aging Level 2: These worksheets summarize the results of the aging model characterization in levels I and II of the aging analysis.
A48: o No user action is required.
A49: ------------------------------------------------------------------------------------------------------------------------------------------------------------------------------------------------------------------------------------
A50: Summary & Input to FlexPAVE: This worksheet provides a summary of the linear viscoelastic fatigue analysis results, and fitting coefficients of the models characterized, which can be exported as input files to FlexPAVE™ 1.1 and FlexPAVE™ 2.0.
A51: o Press the "Export FlexPAVE 1.1 Dyn. Modulus Inputs" button to export a dynamic modulus material input file for use in FlexPAVE™ 1.1.
A52: o Press the "Export FlexPAVE 1.1 Fatigue Inputs" button to export a fatigue material input file for use in FlexPAVE™ 1.1.
A53: o Press the "Export FlexPAVE 2.0 Inputs" button to export a fatigue material input file for use in FlexPAVE™ 2.0.
A54: ------------------------------------------------------------------------------------------------------------------------------------------------------------------------------------------------------------------------------------
A55: Data Quality Indicators: This worksheet provides a summary of the cyclic fatigue test quality and is automatically enabled when at least one of the five DQIs is found outside its acceptable range. This worksheet can also be enabled after fatigue data is inputted by pressing the button "Show Data Quality Indicators" in the "Output Fatigue" worksheet.
A56: o Table 20 presents the values for each DQI of each specimen tested. Values that are found outside the tolerance range will be highlighted on this table and presented on Table 1 in the "Input Data" worksheet.
A57: o On cell "B4", select the specimen of interest to display the graphical relationship between command and measurement. Plots not in good agreement may indicate poor PID tunning.

Sheet Input Data (hidden)
A1: FlexMAT™ Cracking v2.2 | H1: Table 1. Dynamic Modulus (DM) and Cyclic Fatigue (CF) Data Quality Warnings
A2: Number of Specimens | H2: Test | I2: Specimen | J2: Input Condition | K2: Warning
A3: Dynamic Modulus Test
A4: Fatigue Test
A5: Optional Analysis
A6: Nf Prediction
A7: Temperature (°C)
A8: Strain Amplitude (µɛ)
A9: Frequency (Hz)
A10: Nf
A11: Load Dynamic Modulus Data (Press Alt + d)
A12: Clear All Inputs (Press Alt + c)
A13: Load Fatigue Data (Press Alt + f)
A14: Clear All Fatigue Inputs (Press Alt + x)
A15: Reanalyze Data Analyzed from FlexMAT (Press Alt + r)
A16: Reanalyze Data Analyzed from FlexMAT (Batch mode) (Press Alt + b)
A17: Fill Additional Information (Press Alt + i)
A18: Thermal Analysis Inputs
A19: Coefficient of Thermal Contraction, CTC
A20: Analysis Level | B20: Level III
A35: Material Properties
A36: VMA (%)
A37: Gsb
A38: CTC_aggregate (1/°C)
A39: Low PG Grade of Binder
A40: Run CTC Analysis (Press Alt + u)
A41: Clear CTC Analysis (Press Alt + y)
A42: Aging Analysis Input
A43: Analysis Level | B43: Level III
A59: Does this Mixture Contain RAP?
A60: Reclaimed Binder Ratio (RBR)
A61: RAP Binder High PG
A74: Virgin Binder High PG
A75: Run Aging Analysis (Press Alt + a)
A76: Clear Aging Analysis (Press Alt + z)

Sheet Dynamic Modulus Data (hidden)
A1: Maximum Limiting Modulus | D1: Sigmoidal Function
A2: Max E' (kPa) | B2: 25990087.04 | D2: b | E2: 4.586089532
A3: Shift Factor | D3: d | E3: -0.7386591167
A4: Shift Factor a1 | B4: 0.001061353901 | D4: g | E4: -0.5145744745
A5: Shift Factor a2 | B5: -0.1254266936 | D5: 2S2P1D Function
A6: TREF (°C) | B6: 21.1 | D6: δ | E6: 1.530065011
A7: Other Parameters | D7: k | E7: 0.09883780588
A8: E∞ (kPa) | B8: =10^Sigmoidal_b -> 38555.78341 | D8: h | E8: 0.3973803471
A9: Start Decade of Time | B9: -6 | D9: β | E9: 1000000000000
A10: Sum of Error | B10: =SUMIF(TabDynModInputSummary[Error2 (Log)],"<>#Num!") -> 0 | D10: E00 (MPa) | E10: 38.55578341
A11: α | D11: E0 (MPa) | E11: 40000
D12: log(τE) | E12: -3.10365213
D13: Sum of Error | E13: =SUMIF(Tab2S2P1D[Error² (Log)],"<>#Num!") -> 0
D14: Average % Error | E14: =AVERAGEIF(Tab2S2P1D[% Error],"<>#Num!") -> 
A15: Repeatability Assessment (Press Alt + r)
A22: a2 (Polynomial) | B22: =Shift_a2-2*SFaone*SFTref -> -0.1702158283
A23: a3 (Polynomial) | B23: =SFaone*SFTref*SFTref-Shift_a2*SFTref -> 3.119028606
A27: Table 2. Dynamic Modulus Input Data and Curve Fit | R27: Table 3. Master Curve | Y27: Table 4. Prony Series | AB27: Table 5. Alpha | AF27: Table 6. 2S2P1D Fit
A28: Specimen Identification | B28: Frequency (Hz) | C28: Dynamic Modulus (MPa) | D28: Phase Angle (Degrees) | E28: Average Temperature (°C) | F28: Average Micro-Strain | G28: Load Standard Error (%) | H28: Average Deformation Drift (%) | I28: Average Deformation Standard Error (%) | J28: Deformation Uniformity (%) | K28: Phase Uniformity (Degrees) | L28: Reduced Frequency | M28: E' Measured (kPa) | N28: E' Predicted Sigmoidal (kPa) | O28: Error2 (Log) | P28: |E*| (2S2P1D) (MPa) | R28: Reduced Frequency | S28: Reduced Angular Frequency | T28: E' (Sigmoidal) (kPa) | U28: E'norm | V28: E' (2S2P1D) (kPa) | W28: |E*| (2S2P1D) (MPa) | Y28: ρm(s) | Z28: Em | AB28: Reduced Time (s) | AC28: E(t) (kPa) | AD28: dlogE/dlogt | AF28: Specimen | AG28: Reduced Frequency (Hz) | AH28: E' Predicted 2S2P1D (kPa) | AI28: Target E' (kPa) | AJ28: Error² (Log) | AK28: % Error
R29: 15915494.31 | S29: 100000000 | T29: =10^($E$2+(LOG($B$2)-$E$2)/(1+EXP($E$3+$E$4*LOG(TabStorageModulus[[#This Row],[Reduced Angular Frequency]]/2/PI())))) -> 24097763.93 | U29: =TabStorageModulus[[#This Row],[E'' (Sigmoidal) (kPa)]]-$B$8 -> 24059208.15 | V29: =Storage_Modulus_2S2P1D_kPa(E_0,E_00,delta,R29,log_tau,Kappa,fit_h,Beta) -> 26504069.15 | W29: =Dynamic_Modulus_2S2P1D_MPa(E_0,E_00,delta,,"Hz",log_tau,Kappa,fit_h,Beta,,"Celsius",SFaone,SFatwo,SFathree,TabStorageModulus[[#This Row],[Reduced Frequency]]) -> 26545.44085 | Y29: 200000000 | AB29: 1e-06
R30: 1591549.431 | S30: 10000000 | T30: =10^($E$2+(LOG($B$2)-$E$2)/(1+EXP($E$3+$E$4*LOG(TabStorageModulus[[#This Row],[Reduced Angular Frequency]]/2/PI())))) -> 22925010.63 | U30: =TabStorageModulus[[#This Row],[E'' (Sigmoidal) (kPa)]]-$B$8 -> 22886454.84 | V30: =Storage_Modulus_2S2P1D_kPa($E$11,$E$10,$E$6,R30,$E$12,$E$7,$E$8,$E$9) -> 24204084.25 | W30: =Dynamic_Modulus_2S2P1D_MPa(E_0,E_00,delta,,"Hz",log_tau,Kappa,fit_h,Beta,,"Celsius",SFaone,SFatwo,SFathree,TabStorageModulus[[#This Row],[Reduced Frequency]]) -> 24261.91059 | Y30: 20000000 | AB30: 3.16227766e-06
R31: 159154.9431 | S31: 1000000 | T31: =10^($E$2+(LOG($B$2)-$E$2)/(1+EXP($E$3+$E$4*LOG(TabStorageModulus[[#This Row],[Reduced Angular Frequency]]/2/PI())))) -> 21125312.77 | U31: =TabStorageModulus[[#This Row],[E'' (Sigmoidal) (kPa)]]-$B$8 -> 21086756.99 | V31: 21594517.76 | W31: =Dynamic_Modulus_2S2P1D_MPa(E_0,E_00,delta,,"Hz",log_tau,Kappa,fit_h,Beta,,"Celsius",SFaone,SFatwo,SFathree,TabStorageModulus[[#This Row],[Reduced Frequency]]) -> 21679.54651 | Y31: 2000000 | AB31: 1e-05
R32: 15915.49431 | S32: 100000 | T32: =10^($E$2+(LOG($B$2)-$E$2)/(1+EXP($E$3+$E$4*LOG(TabStorageModulus[[#This Row],[Reduced Angular Frequency]]/2/PI())))) -> 18509428.76 | U32: =TabStorageModulus[[#This Row],[E'' (Sigmoidal) (kPa)]]-$B$8 -> 18470872.98 | V32: 18574095.3 | W32: =Dynamic_Modulus_2S2P1D_MPa(E_0,E_00,delta,,"Hz",log_tau,Kappa,fit_h,Beta,,"Celsius",SFaone,SFatwo,SFathree,TabStorageModulus[[#This Row],[Reduced Frequency]]) -> 18708.62772 | Y32: 200000 | AB32: 3.16227766e-05
R33: 1591.549431 | S33: 10000 | T33: =10^($E$2+(LOG($B$2)-$E$2)/(1+EXP($E$3+$E$4*LOG(TabStorageModulus[[#This Row],[Reduced Angular Frequency]]/2/PI())))) -> 15015823.35 | U33: =TabStorageModulus[[#This Row],[E'' (Sigmoidal) (kPa)]]-$B$8 -> 14977267.56 | V33: 15014788.42 | W33: =Dynamic_Modulus_2S2P1D_MPa(E_0,E_00,delta,,"Hz",log_tau,Kappa,fit_h,Beta,,"Celsius",SFaone,SFatwo,SFathree,TabStorageModulus[[#This Row],[Reduced Frequency]]) -> 15238.88299 | Y33: 20000 | AB33: 0.0001
R34: 159.1549431 | S34: 1000 | T34: =10^($E$2+(LOG($B$2)-$E$2)/(1+EXP($E$3+$E$4*LOG(TabStorageModulus[[#This Row],[Reduced Angular Frequency]]/2/PI())))) -> 10904322.43 | U34: =TabStorageModulus[[#This Row],[E'' (Sigmoidal) (kPa)]]-$B$8 -> 10865766.65 | V34: 10934642.91 | W34: =Dynamic_Modulus_2S2P1D_MPa(E_0,E_00,delta,,"Hz",log_tau,Kappa,fit_h,Beta,,"Celsius",SFaone,SFatwo,SFathree,TabStorageModulus[[#This Row],[Reduced Frequency]]) -> 11288.13484 | Y34: 2000 | AB34: 0.000316227766
R35: 15.91549431 | S35: 100 | T35: =10^($E$2+(LOG($B$2)-$E$2)/(1+EXP($E$3+$E$4*LOG(TabStorageModulus[[#This Row],[Reduced Angular Frequency]]/2/PI())))) -> 6850593.686 | U35: =TabStorageModulus[[#This Row],[E'' (Sigmoidal) (kPa)]]-$B$8 -> 6812037.902 | V35: 6840197.868 | W35: =Dynamic_Modulus_2S2P1D_MPa(E_0,E_00,delta,,"Hz",log_tau,Kappa,fit_h,Beta,,"Celsius",SFaone,SFatwo,SFathree,TabStorageModulus[[#This Row],[Reduced Frequency]]) -> 7286.359396 | Y35: 200 | AB35: 0.001
R36: 1.591549431 | S36: 10 | T36: =10^($E$2+(LOG($B$2)-$E$2)/(1+EXP($E$3+$E$4*LOG(TabStorageModulus[[#This Row],[Reduced Angular Frequency]]/2/PI())))) -> 3658859.864 | U36: =TabStorageModulus[[#This Row],[E'' (Sigmoidal) (kPa)]]-$B$8 -> 3620304.08 | V36: 3625653.98 | W36: =Dynamic_Modulus_2S2P1D_MPa(E_0,E_00,delta,,"Hz",log_tau,Kappa,fit_h,Beta,,"Celsius",SFaone,SFatwo,SFathree,TabStorageModulus[[#This Row],[Reduced Frequency]]) -> 4025.255932 | Y36: 20 | AB36: 0.00316227766
R37: 0.1591549431 | S37: 1 | T37: =10^($E$2+(LOG($B$2)-$E$2)/(1+EXP($E$3+$E$4*LOG(TabStorageModulus[[#This Row],[Reduced Angular Frequency]]/2/PI())))) -> 1699425.499 | U37: =TabStorageModulus[[#This Row],[E'' (Sigmoidal) (kPa)]]-$B$8 -> 1660869.715 | V37: 1698779.933 | W37: =Dynamic_Modulus_2S2P1D_MPa(E_0,E_00,delta,,"Hz",log_tau,Kappa,fit_h,Beta,,"Celsius",SFaone,SFatwo,SFathree,TabStorageModulus[[#This Row],[Reduced Frequency]]) -> 1955.937924 | Y37: 2 | AB37: 0.01
R38: 0.01591549431 | S38: 0.1 | T38: =10^($E$2+(LOG($B$2)-$E$2)/(1+EXP($E$3+$E$4*LOG(TabStorageModulus[[#This Row],[Reduced Angular Frequency]]/2/PI())))) -> 739339.0024 | U38: =TabStorageModulus[[#This Row],[E'' (Sigmoidal) (kPa)]]-$B$8 -> 700783.2189 | V38: 751287.6946 | W38: =Dynamic_Modulus_2S2P1D_MPa(E_0,E_00,delta,,"Hz",log_tau,Kappa,fit_h,Beta,,"Celsius",SFaone,SFatwo,SFathree,TabStorageModulus[[#This Row],[Reduced Frequency]]) -> 881.5868036 | Y38: 0.2 | AB38: 0.0316227766
R39: 0.001591549431 | S39: 0.01 | T39: =10^($E$2+(LOG($B$2)-$E$2)/(1+EXP($E$3+$E$4*LOG(TabStorageModulus[[#This Row],[Reduced Angular Frequency]]/2/PI())))) -> 334142.9793 | U39: =TabStorageModulus[[#This Row],[E'' (Sigmoidal) (kPa)]]-$B$8 -> 295587.1959 | V39: 333481.8578 | W39: =Dynamic_Modulus_2S2P1D_MPa(E_0,E_00,delta,,"Hz",log_tau,Kappa,fit_h,Beta,,"Celsius",SFaone,SFatwo,SFathree,TabStorageModulus[[#This Row],[Reduced Frequency]]) -> 389.5989685 | Y39: 0.02 | AB39: 0.1
R40: 0.0001591549431 | S40: 0.001 | T40: =10^($E$2+(LOG($B$2)-$E$2)/(1+EXP($E$3+$E$4*LOG(TabStorageModulus[[#This Row],[Reduced Angular Frequency]]/2/PI())))) -> 170984.6073 | U40: =TabStorageModulus[[#This Row],[E'' (Sigmoidal) (kPa)]]-$B$8 -> 132428.8239 | V40: 158522.2431 | W40: =Dynamic_Modulus_2S2P1D_MPa(E_0,E_00,delta,,"Hz",log_tau,Kappa,fit_h,Beta,,"Celsius",SFaone,SFatwo,SFathree,TabStorageModulus[[#This Row],[Reduced Frequency]]) -> 179.4889666 | Y40: 0.002 | AB40: 0.316227766
R41: 1.591549431e-05 | S41: 0.0001 | T41: =10^($E$2+(LOG($B$2)-$E$2)/(1+EXP($E$3+$E$4*LOG(TabStorageModulus[[#This Row],[Reduced Angular Frequency]]/2/PI())))) -> 102784.7018 | U41: =TabStorageModulus[[#This Row],[E'' (Sigmoidal) (kPa)]]-$B$8 -> 64228.91837 | V41: 86964.21749 | W41: =Dynamic_Modulus_2S2P1D_MPa(E_0,E_00,delta,,"Hz",log_tau,Kappa,fit_h,Beta,,"Celsius",SFaone,SFatwo,SFathree,TabStorageModulus[[#This Row],[Reduced Frequency]]) -> 93.52989213 | Y41: 0.0002 | AB41: 1
R42: 1.591549431e-06 | S42: 1e-05 | T42: =10^($E$2+(LOG($B$2)-$E$2)/(1+EXP($E$3+$E$4*LOG(TabStorageModulus[[#This Row],[Reduced Angular Frequency]]/2/PI())))) -> 71952.25132 | U42: =TabStorageModulus[[#This Row],[E'' (Sigmoidal) (kPa)]]-$B$8 -> 33396.46791 | V42: 58014.79036 | W42: =Dynamic_Modulus_2S2P1D_MPa(E_0,E_00,delta,,"Hz",log_tau,Kappa,fit_h,Beta,,"Celsius",SFaone,SFatwo,SFathree,TabStorageModulus[[#This Row],[Reduced Frequency]]) -> 59.66332891 | Y42: 2e-05 | AB42: 3.16227766
R43: 1.591549431e-07 | S43: 1e-06 | T43: =10^($E$2+(LOG($B$2)-$E$2)/(1+EXP($E$3+$E$4*LOG(TabStorageModulus[[#This Row],[Reduced Angular Frequency]]/2/PI())))) -> 56825.68593 | U43: =TabStorageModulus[[#This Row],[E'' (Sigmoidal) (kPa)]]-$B$8 -> 18269.90252 | V43: 46363.36385 | W43: =Dynamic_Modulus_2S2P1D_MPa(E_0,E_00,delta,,"Hz",log_tau,Kappa,fit_h,Beta,,"Celsius",SFaone,SFatwo,SFathree,TabStorageModulus[[#This Row],[Reduced Frequency]]) -> 46.70109242 | Y43: 2e-06 | AB43: 10
R44: 1.591549431e-08 | S44: 1e-07 | T44: =10^($E$2+(LOG($B$2)-$E$2)/(1+EXP($E$3+$E$4*LOG(TabStorageModulus[[#This Row],[Reduced Angular Frequency]]/2/PI())))) -> 48894.01604 | U44: =TabStorageModulus[[#This Row],[E'' (Sigmoidal) (kPa)]]-$B$8 -> 10338.23262 | V44: 41685.60167 | W44: =Dynamic_Modulus_2S2P1D_MPa(E_0,E_00,delta,,"Hz",log_tau,Kappa,fit_h,Beta,,"Celsius",SFaone,SFatwo,SFathree,TabStorageModulus[[#This Row],[Reduced Frequency]]) -> 41.74632868 | Y44: 2e-07 | AB44: 31.6227766
R45: 1.591549431e-09 | S45: 1e-08 | T45: =10^($E$2+(LOG($B$2)-$E$2)/(1+EXP($E$3+$E$4*LOG(TabStorageModulus[[#This Row],[Reduced Angular Frequency]]/2/PI())))) -> 44532.36691 | U45: =TabStorageModulus[[#This Row],[E'' (Sigmoidal) (kPa)]]-$B$8 -> 5976.583495 | V45: 39809.86872 | W45: =Dynamic_Modulus_2S2P1D_MPa(E_0,E_00,delta,,"Hz",log_tau,Kappa,fit_h,Beta,,"Celsius",SFaone,SFatwo,SFathree,TabStorageModulus[[#This Row],[Reduced Frequency]]) -> 39.82009991 | Y45: 2e-08 | AB45: 100
AB46: 316.227766
AB47: 1000
AB48: 3162.27766
AB49: 10000
AB50: 31622.7766
AB51: 100000
AB52: 316227.766
AB53: 1000000
AB54: 3162277.66
AB55: 10000000
AB56: 31622776.6
AB57: 100000000
AB58: 316227766
AB59: 1000000000
AB60: 3162277660
AB61: 1e+10

Sheet Input Fatigue (hidden)
A1: Specimen Number | B1: Time (s) | C1: Axial Stress (kPa) | D1: Actuator micro-strain | E1: Axial micro-strain #1 | F1: Axial micro-strain #2 | G1: Axial micro-strain #3 | H1: Temperature (°C) | J1: Specimen Number | K1: Cycle | L1: Dynamic Modulus (MPa) | M1: Phase Angle (º) | N1: Peak to Peak Stress (kPa) | O1: Maximum Stress (kPa) | P1: Minimum Stress (kPa) | Q1: Peak to Peak Actuator Strain (micro-strain) | R1: Peak to Peak Average Strain (micro-strain) | S1: Peak to Peak Strain #1 (micro-strain) | T1: Peak to Peak Strain #2 (micro-strain) | U1: Peak to Peak Strain #3 (micro-strain) | V1: Stress.N (kPa.cycle) | X1: Specimen Number | Y1: Target Cycle | Z1: Cycle | AA1: Peak to Peak Stress (kPa) | AB1: Maximum Stress (kPa) | AC1: Minimum Stress (kPa) | AD1: Peak to Peak Average Strain (micro-strain) | AF1: Specimen Number | AG1: C | AH1: S

Sheet DM_Repeatability (hidden)
A1: Dynamic Modulus Repeatability
A2: Geometry | B2: =DM_SpecSize -> 0
A3: NMAS | B3: =DM_NMAS -> 0
A4: Update Assessment (Press Alt + u)
B7: Table 1. Dynamic Modulus Test Data | I7: Table 2. Identified Conditions | K7: Table 3. Repeatability Assessment
B8: Specimen # | C8: Temperature (°C) | D8: Frequency (Hz) | E8: Dynamic Modulus (DM) (MPa) | F8: Phase Angle (PA) (Degrees) | G8: Condition | I8: Identified Conditions | K8: Condition | L8: Temperature Condition (°C) | M8: Frequency Condition (Hz) | N8: Inter-Specimen Average DM (MPa) | O8: Inter-Specimen DM Std. Dev. (MPa) | P8: DM sr% | Q8: Condition Max DMdiff | R8: DMdiff/Avg (%) (d2s) | S8: NSpecimen Coefficient (DM) | T8: DMdiff/Avg (%) Limit | U8: DM Acceptance | V8: Average PA (Degrees) | W8: PA Std. Dev. (Degrees) | X8: Max PAdiff for Condition (Degrees) | Y8: NSpecimen Coefficient (PA) | Z8: PA Limit (Degrees) | AA8: PA Acceptance

Sheet Fatigue Data Validity (hidden)
A1: Select Specimen Number & ID
A2: Update Fatigue Results (Press Alt + u)
A3: ="Plots for Specimen "&ViewData -> Plots for Specimen
A24: ="Table 7. Input Initial Cycles for Specimen " & ViewData -> Table 7. Input Initial Cycles for Specimen | J24: ="Table 8. Input Cycles for Specimen " & ViewData -> Table 8. Input Cycles for Specimen | X24: ="Table 9. C Vs S for Specimen"&ViewData -> Table 9. C Vs S for Specimen
A25: Specimen Number | B25: Time (s) | C25: Axial Stress (kPa) | D25: Actuator micro-strain | E25: Axial micro-strain #1 | F25: Axial micro-strain #2 | G25: Axial micro-strain #3 | H25: Temperature (°C) | J25: Specimen Number | K25: Cycle | L25: Dynamic Modulus (MPa) | M25: Phase Angle (Degrees) | N25: Peak to Peak Stress (kPa) | O25: Maximum Stress (kPa) | P25: Minimum Stress (kPa) | Q25: Peak to Peak Actuator Strain (micro-strain) | R25: Peak to Peak Average Strain (micro-strain) | S25: Peak to Peak Strain #1 (micro-strain) | T25: Peak to Peak Strain #2 (micro-strain) | U25: Peak to Peak Strain #3 (micro-strain) | V25: Stress.N (kPa.cycle) | X25: Specimen Number | Y25: C | Z25: S

Sheet Output Fatigue (hidden)
A1: Fatigue Analysis Plots
A3: Dissipated Pseudo Strain Energy (DPSE) Fitting Parameters
A4: Initial Integrity Value | B4: a | C4: b
A5: 0.99
A6: 0.9
A7: 0.8
A8: 0.7
A10: Show Data Quality Indicators (Press Alt + d)
A11: Run Sapp Analysis (Press Alt + s)
A12: Run Repeatability Analysis (Press Alt + r)
A14: Apparent Damage Capacity (Sapp)
A15: State
A16: City (County)
A17: City Coordinates (Lat/Long)
A18: Nearest Station (Lat/Long)
A19: Climate PG
A20: Sapp Temperature (°C)
A22: Table 10. Fatigue Analysis Output Summary | K22: Table 11. Simulated DPSE Data | Q22: Table 12. C Vs S Data for All Specimens
A23: Specimen No & ID | B23: Fingerprint |E*| (MPa) | C23: DMR, 0.85<DMR<1.15 | D23: Nf | E23: log (Nf) | F23: Cum. (1-C) | G23: DR | H23: Input Strain (µ) | I23: Sapp | K23: Reduced Strain Rate | L23: DPSE (C0 = 0.99) | M23: DPSE (C0 = 0.90) | N23: DPSE (C0 = 0.80) | O23: DPSE (C0 = 0.70) | Q23: C Fit | R23: S Fit | S23: C Specimen 1 | T23: S Specimen 1
A25: a Not-Applicable.

Sheet CFT_Repeatability (hidden)
A1: Cyclic Fatigue Repeatability Evaluation
A2: Inputs Summary
A3: Geometry | B3: =CFT_SpecSize -> Small
A4: NMAS | B4: =CFT_NMAS -> 9.5
A5: N Specimens | B5: =NumFatigueSpecimen -> 0
A6: Results Summary
A7: Sfactor | B7: 5.991803718e-06
B9: Table 1. Cyclic Fatigue Single-Operator Repeatability Summary
B10: Parameter | C10: Parameter Value | D10: Limit | E10: Acceptance
B11: vnorm
B12: DR Range
B14: Table 2. Damage Characteristic Fit Coefficients
B15: C11 fit | C15: C12 fit | D15: C11 #1 | E15: C12 #1 | F15: C11 #2 | G15: C12 #2 | H15: C11 #3 | I15: C12 #3 | J15: C11 #4 | K15: C12 #4
B18: Table 3. Damage Characteristic Data
B19: C Fit | C19: S Fit | D19: C #1 | E19: S #1 | F19: C #2 | G19: S #2 | H19: C #3 | I19: S #3 | J19: C #4 | K19: S #4

Sheet CTC Level 2 (hidden)
A1: CTC Analysis: Level 2
A2: Mixture CTC parameters
A3: CTCg
A4: CTCL
A5: Tg
A6: R
A7: Sum of CTC Error | B7: =SUM(H427:H1226) -> 0
A25: Table 13. Mixture CTC Prediction | J25: Table 14. Binder's Prony Series
A26: Time (s) | B26: Temperature (°C) | C26: Reduced Time (s) | D26: E(t) (kPa) | E26: Binder CTC (°C-1) | F26: Predicted CTC of Mixture (°C-1) | G26: Fitted CTC of Mixture (°C-1) | H26: Error² | J26: ρm(s) | K26: Em (kPa)
J27: 200000000 | K27: 8.434732801
J28: 20000000 | K28: 10.87822545
J29: 2000000 | K29: 30.51965536
J30: 200000 | K30: 77.16716817
J31: 20000 | K31: 196.9983185
J32: 2000 | K32: 502.2258154
J33: 200 | K33: 1279.420154
J34: 20 | K34: 3253.612645
J35: 2 | K35: 8243.739211
J36: 0.2 | K36: 20723.6986
J37: 0.02 | K37: 51202.43559
J38: 0.002 | K38: 121601.3142
J39: 0.0002 | K39: 263431.7089
J40: 2e-05 | K40: 470618.7246
J41: 2e-06 | K41: 623420.8462
J42: 2e-07 | K42: 616697.0903
J43: 2e-08 | K43: 553052.6151

Sheet CTC Level 3 (hidden)
A1: CTC Analysis: Level 3
A2: Mixture CTC parameters
A3: CTCg
A4: CTCL
A5: Tg
A6: R
A7: Sum of CTC Error | B7: =SUM(H427:H1226) -> 0
A25: Table 13. Mixture CTC Prediction | J25: Table 14. Binder's Prony Series
A26: Time (s) | B26: Temperature (°C) | C26: Reduced Time (s) | D26: E(t) (kPa) | E26: Binder CTC (°C-1) | F26: Predicted CTC of Mixture (°C-1) | G26: Fitted CTC of Mixture (°C-1) | H26: Error² | J26: ρm(s) | K26: Em (kPa)
J27: 200000000 | K27: 8.434732801
J28: 20000000 | K28: 10.87822545
J29: 2000000 | K29: 30.51965536
J30: 200000 | K30: 77.16716817
J31: 20000 | K31: 196.9983185
J32: 2000 | K32: 502.2258154
J33: 200 | K33: 1279.420154
J34: 20 | K34: 3253.612645
J35: 2 | K35: 8243.739211
J36: 0.2 | K36: 20723.6986
J37: 0.02 | K37: 51202.43559
J38: 0.002 | K38: 121601.3142
J39: 0.0002 | K39: 263431.7089
J40: 2e-05 | K40: 470618.7246
J41: 2e-06 | K41: 623420.8462
J42: 2e-07 | K42: 616697.0903
J43: 2e-08 | K43: 553052.6151

Sheet Aging Level 1 (hidden)
A1: Aging Analysis: Level 1
A2: Aging Parameters
A3: c | B3: =LINEST(C21:C24,D21:D24,0,0) -> 1.573252511
A4: log|G*|,STA | B4: =$G$21 -> 0.7151673578
A5: M | B5: 0.8557384565
A6: Sum of Error | B6: =SUMIF(tabAging_Susceptibility[Error²],"<>#Num!") -> 1.85331274e-08
A7: Shift Factor
A8: a1 | B8: 0.001045048004
A9: a2 | B9: -0.1693131513
A10: a3 | B10: 6.555525057
A11: TREF (°C) | B11: 64
A19: Table 15. Time-Aging Parameter Fit | F19: Table 16. Aging Susceptibility Parameter Fit | K19: Table 17. Kinetics Model Prediction
A20: Temperature (°C) | B20: Dynamic Shear Modulus (Pa) | C20: log (aT) (Tref = 64°C) | D20: log|G*|T - log |G*|Tref (kPa) | F20: Aging Duration (days in the oven at 95°C) | G20: log |G*| (kPa) | H20: Kinetics Model Prediction | I20: Error² | K20: Aging Duration (days in the oven at 95°C) | L20: Kinetics Model Prediction
A21: 64 | B21: 5190 | C21: =AG1_a1*A21^2+AG1_a2*A21+AG1_a3 -> 0 | D21: =LOG(B21/1000)-LOG($B$21/1000) -> 0 | F21: 0 | G21: 0.7151673578 | H21: =$G$21+AG1_M*(1-0.0546825780581008/0.408932644405576)*(1-EXP(-0.408932644405576*F21))+AG1_M*0.0546825780581008*F21 -> 0.7151673578 | I21: =(G21-H21)^2 -> 0 | K21: 0 | L21: =AG1_LogG+AG1_M*(1-0.0546825780581008/0.408932644405576)*(1-EXP(-0.408932644405576*K21))+AG1_M*0.0546825780581008*K21 -> 0.7151673578
A22: 40 | B22: 89700 | C22: =AG1_a1*A22^2+AG1_a2*A22+AG1_a3 -> 1.455075812 | D22: =LOG(B22/1000)-LOG($B$21/1000) -> 1.237625085 | F22: 5 | G22: 1.59439255 | H22: =$G$21+AG1_M*(1-0.0546825780581008/0.408932644405576)*(1-EXP(-0.408932644405576*F22))+AG1_M*0.0546825780581008*F22 -> 1.594503182 | I22: =(G22-H22)^2 -> 1.223938787e-08 | K22: 1 | L22: 1.010775016
A23: 20 | B23: 1640000 | C23: =AG1_a1*A23^2+AG1_a2*A23+AG1_a3 -> 3.587281233 | D23: 2.49967649 | F23: 8 | G23: 1.802773725 | H23: =$G$21+AG1_M*(1-0.0546825780581008/0.408932644405576)*(1-EXP(-0.408932644405576*F23))+AG1_M*0.0546825780581008*F23 -> 1.802694763 | I23: 6.235026707e-09 | K23: 2 | L23: 1.222870598
A24: 4 | B24: 15600000 | C24: =AG1_a1*A24^2+AG1_a2*A24+AG1_a3 -> 5.89499322 | D24: 3.477957241 | F24: 16 | G24: 2.204119983 | H24: =$G$21+AG1_M*(1-0.0546825780581008/0.408932644405576)*(1-EXP(-0.408932644405576*F24))+AG1_M*0.0546825780581008*F24 -> 2.20411232 | I24: 5.871282983e-11 | K24: 3 | L24: 1.379484184
K25: 4 | L25: 1.499237807
K26: 5 | L26: 1.594503182
K27: 6 | L27: 1.673499571
K28: 7 | L28: 1.741687511
K29: 8 | L29: 1.802694763
K30: 9 | L30: 1.858931459
K31: 10 | L31: 1.911998794
K32: 11 | L32: 1.962960536
K33: 12 | L33: 2.012523407
K34: 13 | L34: 2.061156927
K35: 14 | L35: 2.109173023
K36: 15 | L36: 2.156778929
K37: 16 | L37: 2.20411232
K38: 17 | L38: 2.251264665
K39: 18 | L39: 2.298296729
K40: 19 | L40: 2.345248885
K41: 20 | L41: 2.392147951
K42: 21 | L42: 2.439011748

Sheet Aging Level 2 (hidden)
A1: Aging Analysis: Level 2
A2: Aging Parameters
A3: c | B3: =LINEST(tabTime_Aging2[log (aT) (Tref = 64°C)],tabTime_Aging2[log|G*|T - log |G*|Tref (kPa)],0,0) -> 1.50563942
A4: log|G*|,STA | B4: =$G$21 -> 
A5: M | B5: 0.8556260785
A6: Sum of Error | B6: =SUMIF(I21:I26,"<>#Num!") -> 0
A7: Shift Factor
A8: a1 | B8: 0.001045048004
A9: a2 | B9: -0.1693131513
A10: a3 | B10: 6.555525057
A11: TREF (°C) | B11: 64
A19: Table 15. Time-Aging Parameter Fit | F19: Table 16. Aging Susceptibility Parameter Fit
A20: Temperature (°C) | B20: Dynamic Shear Modulus (Pa) | C20: log (aT) (Tref = 64°C) | D20: log|G*|T - log |G*|Tref (kPa) | F20: Aging Duration (days in the oven at 95°C) | G20: log |G*| (kPa) | H20: Kinetics Model Prediction | I20: Error²
A21: 64 | B21: 2340 | C21: =AG2_a1*A21^2+AG2_a2*A21+AG2_a3 -> 0 | D21: =LOG(B21/1000)-LOG($B$21/1000) -> 0 | F21: 0 | G21: =LOG('Input Data'!B65/1000) ->  | H21: =$G$21+AG1_M*(1-0.0546825780581008/0.408932644405576)*(1-EXP(-0.408932644405576*F21))+AG1_M*0.0546825780581008*F21 ->  | I21: =(G21-H21)^2 -> 
A22: 40 | B22: 37600 | C22: =AG2_a1*A22^2+AG2_a2*A22+AG2_a3 -> 1.455075812 | D22: =LOG(B22/1000)-LOG($B$21/1000) -> 1.205971988 | F22: 2 | G22: =LOG('Input Data'!B72/1000) -> 
A23: 20 | B23: 836000 | C23: =AG2_a1*A23^2+AG2_a2*A23+AG2_a3 -> 3.587281233 | D23: 2.55299042 | F23: 6 | G23: =LOG('Input Data'!B73/1000) -> 
A24: 4 | B24: 12300000 | C24: =AG2_a1*A24^2+AG2_a2*A24+AG2_a3 -> 5.89499322 | D24: 3.720689254 | F24: 10 | G24: =$G$23*1.0264^(F24-$F$23) -> 
F25: 14 | G25: =$G$23*1.0264^(F25-$F$23) -> 
F26: 18 | G26: =$G$23*1.0264^(F26-$F$23) -> 

Sheet Aging Level 2 (with RAP) (hidden)
A1: Aging Analysis: Level 2 (with RAP)
A2: Aging Parameters
A3: RAP Binder High PG | B3: =Ag_Rap32 -> 0
A4: Reclaimed Binder Ratio (RBR) | B4: =Ag_Rap22 -> 0
A5: log|G*|,STA of Virgin Binder | B5: =$G$21 -> 
A6: M of Virgin Binder | B6: 0.8556260785
A7: log|G*|,STA of RAP | B7: =6.552/(1+(B3/107.167)^-4.068) -> 
A8: M of RAP | B8: =0.94/(1+(B3/82.68)^7.96) -> 0.94
A9: c | B9: 1.71
A10: log|G*|,STA of Mix | B10: =(1-$B$4)*B5+$B$4*B7 -> 
A11: M of Mix | B11: =(1-$B$4)*B6+$B$4*B8 -> 0.8556260785
A12: Sum of Error of Aging Susceptibility Parameter Fit | B12: =SUMIF(I21:I26,"<>#Num!") -> 0
F19: Table 15. Aging Susceptibility Parameter Fit
F20: Aging Duration (days in the oven at 95°C) | G20: log |G*| (kPa) | H20: Kinetics Model Prediction | I20: Error²
F21: 0 | G21: =LOG('Input Data'!B65/1000) ->  | H21: =$G$21+Ag2_M_VBinder*(1-0.0546825780581008/0.408932644405576)*(1-EXP(-0.408932644405576*F21))+Ag2_M_VBinder*0.0546825780581008*F21 ->  | I21: =(G21-H21)^2 -> 
F22: 2 | G22: =LOG('Input Data'!B72/1000) -> 
F23: 6 | G23: =LOG('Input Data'!B73/1000) ->  | H23: =$G$21+Ag2_M_VBinder*(1-0.0546825780581008/0.408932644405576)*(1-EXP(-0.408932644405576*F23))+Ag2_M_VBinder*0.0546825780581008*F23 ->  | I23: =(G23-H23)^2 -> 
F24: 10 | G24: =$G$23*1.0264^(F24-$F$23) -> 
F25: 14 | G25: =$G$23*1.0264^(F25-$F$23) -> 
F26: 18 | G26: =$G$23*1.0264^(F26-$F$23) -> 

Sheet Summary & Input to FlexPAVE (hidden)
A1: FlexPAVE Inputs | J1: Dynamic Modulus Table Properties
A2: Export FlexPAVE 2.0 Inputs (Press Alt + 2) | J2: Number of frequencies | K2: Frequency Units | L2: Frequency Source | M2: Output Units
A3: Export FlexPAVE 1.1 Dynamic Modulus Inputs (Press Alt + d) | J3: 3 | K3: Hz | L3: Default | M3: MPa
A4: Export FlexPAVE 1.1 Fatigue Inputs (Press Alt + f) | J4: Number of Temperatures | K4: Temperature Units | L4: Temperature Source
J5: 3 | K5: Celsius | L5: Default
A6: Table 18. Linear Viscoelastic Properties
A7: Einf
A8: Poisson's Ratio | B8: 0.3 | J8: Table 22. Dynamic Modulus (MPa)
A9: TREF (°C) | J9: Temperature (° C) | K9: 0.1 Hz | L9: 1 Hz | M9: 10 Hz
A10: Shift Factor a1 | J10: 4 | K10: =IF(DM_SPD_out1 = "","",Dynamic_Modulus_2S2P1D_MPa(E_0, E_00, delta, REPLACE(K$9,SEARCH(" ",K$9,1),10,""), "Hz", log_tau, Kappa, fit_h, Beta, $J10, "Celsius", SFaone, SFatwo, SFathree)) -> 
A11: Shift Factor a2 | J11: 18
J12: 40
A13: Table 19. 2S2P1D coefficients | D13: Table 21. Summary
A14: δ | D14: FlexPAVE S-VECD Fatigue Properties
A15: k | D15: alpha
A16: h | D16: C vs. S
A17: β | D17: C11
A18: E00 [MPa] | D18: C12
A19: E0 [MPa] | D19: DR Failure Criterion
A20: log(τE) | D20: DR
D21: d
A22: Table 20. Prony Series | D22: Damage Capacity
A23: Ti(s) | B23: Ei (kPa) | D23: Sapp
A24: ='Dynamic Modulus Data'!Y29 -> 200000000 | B24: ='Dynamic Modulus Data'!Z29 -> 0 | D24: FlexPAVE CTC Properties
A25: ='Dynamic Modulus Data'!Y30 -> 20000000 | B25: ='Dynamic Modulus Data'!Z30 -> 0 | D25: CTCg
A26: ='Dynamic Modulus Data'!Y31 -> 2000000 | B26: ='Dynamic Modulus Data'!Z31 -> 0 | D26: CTCL
A27: ='Dynamic Modulus Data'!Y32 -> 200000 | B27: ='Dynamic Modulus Data'!Z32 -> 0 | D27: Tg
A28: ='Dynamic Modulus Data'!Y33 -> 20000 | B28: ='Dynamic Modulus Data'!Z33 -> 0 | D28: R
A29: ='Dynamic Modulus Data'!Y34 -> 2000 | B29: ='Dynamic Modulus Data'!Z34 -> 0 | D29: FlexPAVE Aging Properties
A30: ='Dynamic Modulus Data'!Y35 -> 200 | B30: ='Dynamic Modulus Data'!Z35 -> 0 | D30: c
A31: ='Dynamic Modulus Data'!Y36 -> 20 | B31: ='Dynamic Modulus Data'!Z36 -> 0 | D31: log|G*|,STA
A32: ='Dynamic Modulus Data'!Y37 -> 2 | B32: ='Dynamic Modulus Data'!Z37 -> 0 | D32: M
A33: ='Dynamic Modulus Data'!Y38 -> 0.2 | B33: ='Dynamic Modulus Data'!Z38 -> 0 | D33: DPSE fitting parameters
A34: ='Dynamic Modulus Data'!Y39 -> 0.02 | B34: ='Dynamic Modulus Data'!Z39 -> 0 | D34: C0 | E34: a | F34: b
A35: ='Dynamic Modulus Data'!Y40 -> 0.002 | B35: ='Dynamic Modulus Data'!Z40 -> 0 | D35: ='Output Fatigue'!A5 -> 0.99 | E35: ='Output Fatigue'!B5 -> 0 | F35: ='Output Fatigue'!C5 -> 0
A36: ='Dynamic Modulus Data'!Y41 -> 0.0002 | B36: ='Dynamic Modulus Data'!Z41 -> 0 | D36: ='Output Fatigue'!A6 -> 0.9 | E36: ='Output Fatigue'!B6 -> 0 | F36: ='Output Fatigue'!C6 -> 0
A37: ='Dynamic Modulus Data'!Y42 -> 2e-05 | B37: ='Dynamic Modulus Data'!Z42 -> 0 | D37: ='Output Fatigue'!A7 -> 0.8 | E37: ='Output Fatigue'!B7 -> 0 | F37: ='Output Fatigue'!C7 -> 0
A38: ='Dynamic Modulus Data'!Y43 -> 2e-06 | B38: ='Dynamic Modulus Data'!Z43 -> 0 | D38: ='Output Fatigue'!A8 -> 0.7 | E38: ='Output Fatigue'!B8 -> 0 | F38: ='Output Fatigue'!C8 -> 0
A39: ='Dynamic Modulus Data'!Y44 -> 2e-07 | B39: ='Dynamic Modulus Data'!Z44 -> 0
A40: ='Dynamic Modulus Data'!Y45 -> 2e-08 | B40: ='Dynamic Modulus Data'!Z45 -> 0
A61: Shift Factor a2 (Polynomial)
A62: Shift Factor a3 (Polynomial)

Sheet Additional Information Storage (hidden)
A1: Control | B1: Value | C1: Report Title | D1: Report Order | E1: Description | F1: Informational | G1: Clear State | J1: Tab | K1: Textbox Title | L1: Description
A2: Project_Name_TextBox | C2: Project Name: | D2: 1 | E2: Name of the project. E.g.: PRS, NCHRP 9-95, NCDOT Layer Coefficient, ... | F2: Project Name: Name of the project. E.g.: PRS, NCHRP 9-95, NCDOT Layer Coefficient, ... | J2: Mixture | K2: Project_Name_TextBox | L2: Name of the project. E.g.: PRS, NCHRP 9-95, NCDOT Layer Coefficient, ... | N2: DM Specimen Size
A3: Mixture_Name_TextBox | C3: Mixture Name: | D3: 2 | E3: Identification for the mixture. E.g.: Training mix, ... | F3: Mixture Name: Identification for the mixture. E.g.: Training mix, ... | J3: Mixture | K3: Mixture_Name_TextBox | L3: Identification for the mixture. E.g.: Training mix, ... | N3: DM NMAS
A4: Date_of_Input_TextBox | C4: Date of Input: | D4: 3 | E4: Date of input of data in the spreadsheet. E.g.: 11/03/2020. | F4: Date of Input: Date of input of data in the spreadsheet (suggestion: mm/dd/yyyy). E.g.: 11/03/2020. | J4: Mixture | K4: Date_of_Input_TextBox | L4: ="Date of input of data in the spreadsheet. E.g.: " & TEXT(TODAY(), "mm/dd/yyyy") & "." -> Date of input of data in the spreadsheet. E.g.: 04/21/2024. | N4: CFT Specimen Size | O4: Small
A5: Type_of_Additive_TextBox | C5: Additive: | D5: 4 | E5: If there is any additive; for example, SBS modifier, Evotherm, … | F5: Additive: If there is any additive; for example, SBS modifier, Evotherm, … | J5: Mixture | K5: Type_of_Additive_TextBox | L5: If there is any additive; for example, SBS modifier, Evotherm, … | N5: CFT NMAS | O5: 9.5
A6: Job_Mix_Formula_Number_TextBox | C6: Job Mix Formula (JMF) Number: | D6: 5 | E6: Identification number for the Job Mix Formula (JMF). | F6: Job Mix Formula (JMF) Number: Identification number for the Job Mix Formula (JMF). | J6: Mixture | K6: Job_Mix_Formula_Number_TextBox | L6: Identification number for the Job Mix Formula (JMF). | N6: CFT Fitting Method
A7: High_PG_TextBox | C7: High PG (Binder): | D7: 6 | E7: High performance grading (PG) of the binder used in the mix. | F7: High PG (Binder): High performance grading (PG) of the binder used in the mix. | J7: Mixture | K7: Low_Pay_Grade_TextBox | L7: Low pay grade of the binder used in the mix.
A8: Low_PG_TextBox | C8: Low PG (Binder): | D8: 7 | E8: Low performance grading (PG) of the binder used in the mix. | F8: Low PG (Binder): Low performance grading (PG) of the binder used in the mix. | J8: Mixture | K8: High_Pay_Grade_TextBox | L8: High pay grade of the binder used in the mix.
A9: High_Pay_Grade_TextBox | C9: High Pay Grade (Binder): | D9: 8 | E9: High pay grade of the binder used in the mix. | F9: High Pay Grade (Binder): High pay grade of the binder used in the mix. | J9: Mixture | K9: Low_PG_TextBox | L9: Low performance grading (PG) of the binder used in the mix.
A10: Low_Pay_Grade_TextBox | C10: Low Pay Grade (Binder): | D10: 9 | E10: Low pay grade of the binder used in the mix. | F10: Low Pay Grade (Binder): Low pay grade of the binder used in the mix. | J10: Mixture | K10: High_PG_TextBox | L10: High performance grading (PG) of the binder used in the mix.
A11: Binder_Source_TextBox | C11: Binder Source: | D11: 10 | E11: Source of the binder used in the mix. E.g.: binder terminal, ... | F11: Binder Source: Source of the binder used in the mix. E.g.: binder terminal, ... | J11: Mixture | K11: Binder_Source_TextBox | L11: Source of the binder used in the mix. E.g.: binder terminal, ...
A12: STA_Condition_CheckBox | B12: FALSE | C12: Short Term Aging | D12: 11 | G12: FALSE | J12: Mixture | K12: Additional_Mixture_Comments_TextBox | L12: Additional observations concerning the mixture used.
A13: STA_Hours_TextBox | C13: Short-Term Aging Hours: | D13: 12 | E13: Duration in hours of short-term aging (STA) procedure. | F13: Short-Term Aging Hours: Duration in hours of short-term aging (STA) procedure. | J13: Mixture | K13: Other_Aging_Procedure_TextBox | L13: Alternative method used for aging the material, other than short-term aging (STA) or long-term aging (LTA).
A14: STA_Temperature_TextBox | C14: Short-Term Aging Temperature: | D14: 13 | E14: Temperature used in short-term aging (STA) procedure. | F14: Short-Term Aging Temperature: Temperature used in short-term aging (STA) procedure. | J14: Mixture | K14: STA_Hours_TextBox | L14: Duration in hours of short-term aging (STA) procedure.
A15: LTA_Compacted_Specimen_OptionButton | B15: FALSE | C15: Long Term Aging on Compacted Specimen | D15: 14 | G15: FALSE | J15: Mixture | K15: STA_Temperature_TextBox | L15: Temperature used in short-term aging (STA) procedure.
A16: LTA_Days_Compacted_Specimen_TextBox | C16: Long-Term Aging Days (Compacted Specimen): | D16: 15 | E16: Duration in days of long-term aging (LTA) procedure of compacted specimen. | F16: Long-Term Aging Days (Compacted Specimen): Duration in days of long-term aging (LTA) procedure of compacted specimen. | J16: Mixture | K16: LTA_Temperature_Compacted_Specimen_TextBox | L16: Temperature used in long-term aging (LTA) procedure of compacted specimen.
A17: LTA_Hours_Compacted_Specimen_TextBox | C17: Long-Term Aging Hours (Compacted Specimen): | D17: 16 | E17: Duration in hours of long-term aging (LTA) in addition to the number of days of compacted specimen. | F17: Long-Term Aging Hours (Compacted Specimen): Duration in hours of long-term aging (LTA) in addition to the number of days of compacted specimen. | J17: Mixture | K17: LTA_Days_Compacted_Specimen_TextBox | L17: Duration in days of long-term aging (LTA) procedure of compacted specimen.
A18: LTA_Temperature_Compacted_Specimen_TextBox | C18: Long-Term Aging Temperature (Compacted Specimen): | D18: 17 | E18: Temperature used in long-term aging (LTA) procedure of compacted specimen. | F18: Long-Term Aging Temperature (Compacted Specimen): Temperature used in long-term aging (LTA) procedure of compacted specimen. | J18: Mixture | K18: LTA_Hours_Compacted_Specimen_TextBox | L18: Duration in hours of long-term aging (LTA) in addition to the number of days of compacted specimen.
A19: LTA_Loose_Mix_OptionButton | B19: FALSE | C19: Long Term Aging on Loose Mix | D19: 18 | G19: FALSE | J19: Mixture | K19: LTA_Temperature_Loose_Mix_TextBox | L19: Temperature used in long-term aging (LTA) procedure of loose mix.
A20: LTA_Days_Loose_Mix_TextBox | C20: Long-Term Aging Days (Loose Mix): | D20: 19 | E20: Duration in days of long-term aging (LTA) procedure of loose mix. | F20: Long-Term Aging Days (Loose Mix): Duration in days of long-term aging (LTA) procedure of loose mix. | J20: Mixture | K20: LTA_Days_Loose_Mix_TextBox | L20: Duration in days of long-term aging (LTA) procedure of loose mix.
A21: LTA_Hours_Loose_Mix_TextBox | C21: Long-Term Aging Hours (Loose Mix): | D21: 20 | E21: Duration in hours of long-term aging (LTA) in addition to the number of days of loose mix. | F21: Long-Term Aging Hours (Loose Mix): Duration in hours of long-term aging (LTA) in addition to the number of days of loose mix. | J21: Mixture | K21: LTA_Hours_Loose_Mix_TextBox | L21: Duration in hours of long-term aging (LTA) in addition to the number of days of loose mix.
A22: LTA_Temperature_Loose_Mix_TextBox | C22: Long-Term Aging Temperature (Loose Mix): | D22: 21 | E22: Temperature used in long-term aging (LTA) procedure of loose mix. | F22: Long-Term Aging Temperature (Loose Mix): Temperature used in long-term aging (LTA) procedure of loose mix. | J22: Mixture | K22: Other_Mixture_Type_TextBox | L22: Alternative mixture type to warm mix asphalt (WMA), high reclaimed asphalt pavement (RAP) and polymer modified.
A23: Other_Aging_Procedure_CheckBox | B23: FALSE | C23: Alternative Aging Procedure | D23: 22 | G23: FALSE | J23: Mix Design | K23: Other_Gradation_TextBox | L23: Type of aggregate gradation used in the mix, not restricted to Dense-Fine, Dense-Coarse, Stone Matrix Asphalt (SMA) and Open Gradation.
A24: Other_Aging_Procedure_TextBox | C24: Other Aging Procedure: | D24: 23 | E24: Alternative method used for aging the material, other than short-term aging (STA) or long-term aging (LTA). | F24: Other Aging Procedure: Alternative method used for aging the material, other than short-term aging (STA) or long-term aging (LTA). | J24: Mix Design | K24: Additional_Mix_Design_Comments_TextBox | L24: Additional observations concerning the mix design.
A25: WMA_Mixture_Type_OptionButton | B25: FALSE | C25: Mixture Type: Warm Mix Asphalt | D25: 24 | G25: FALSE | J25: Mix Design | K25: VFA_at_NDesign_TextBox | L25: Voids Filled with Asphalt (VFA) expected at Ndesign.
A26: High_RAP_Mixture_Type_OptionButton | B26: FALSE | C26: Mixture Type: High Reclaimed Asphalt | D26: 25 | G26: FALSE | J26: Mix Design | K26: NDesign_TextBox | L26: Number of gyrations (N) required to produce a sample with the same density as the one expected in the field.
A27: Polymer_Modified_Mixture_Type_OptionButton | B27: FALSE | C27: Mixture Type: Polymer Modified | D27: 26 | G27: FALSE | J27: Mix Design | K27: VMA_at_NDesign_TextBox | L27: Voids in Mineral Aggregate (VMA) of the compacted mixture.
A28: Other_Mixture_Type_OptionButton | B28: FALSE | C28: Other Mixture Type | D28: 27 | G28: FALSE | J28: Mix Design | K28: AirVoids_at_NDesign_TextBox | L28: Volume of the air voids (AV) or pockets of air between coated aggregate particles. Can also be calculated if Gmb is known.
A29: Other_Mixture_Type_TextBox | C29: Other Mixture Type: | D29: 28 | E29: Alternative mixture type to warm mix asphalt (WMA), high reclaimed asphalt pavement (RAP) and polymer modified. | F29: Other Mixture Type: Alternative mixture type to warm mix asphalt (WMA), high reclaimed asphalt pavement (RAP) and polymer modified. | J29: Mix Design | K29: NDesign_Source_TextBox | L29: Source of Ndesign. E.g.: Job Mix Formula (JMF); reported by Department of Transportation (DOT); lab measured; Long-Term Pavement Performance (LTPP) program.
A30: Additional_Mixture_Comments_TextBox | C30: Additional Comments About Mixture: | D30: 29 | E30: Additional observations concerning the mixture used. | F30: Additional Comments About Mixture: Additional observations concerning the mixture used. | J30: Mix Design | K30: GSB_TextBox | L30: Bulk specific gravity of the aggregate.
A31: Dense_Fine_Gradation_OptionButton | B31: FALSE | C31: Gradation: Dense-Fine | D31: 30 | G31: FALSE | J31: Mix Design | K31: GMM_TextBox | L31: Maximum theoretical specific gravity of the mixture.
A32: Dense_Coarse_Gradation_OptionButton | B32: FALSE | C32: Gradation: Dense-Coarse | D32: 31 | G32: FALSE | J32: Mix Design | K32: GB_TextBox | L32: Asphalt binder specific gravity.
A33: SMA_Gradation_OptionButton | B33: FALSE | C33: Gradation: Stone Matrix Asphalt | D33: 32 | G33: FALSE | J33: Mix Design | K33: Specific_Gravity_Information_Source_TextBox | L33: Source of specific gravity data. E.g.: Job Mix Formula (JMF); reported by Department of Transportation (DOT); lab measured; Long-Term Pavement Performance (LTPP) program.
A34: Open_Gradation_OptionButton | B34: FALSE | C34: Gradation: Open | D34: 33 | G34: FALSE | J34: Mix Design | K34: Mixing_Temperature_TextBox | L34: Temperature used during the mixing procedure.
A35: Other_Gradation_OptionButton | B35: FALSE | C35: Other Gradation: | D35: 34 | G35: FALSE | J35: Mix Design | K35: Compaction_Temperature_TextBox | L35: Temperature used during the compaction procedure.
A36: Other_Gradation_TextBox | C36: Gradation Type: | D36: 35 | E36: Type of aggregate gradation used in the mix, not restricted to Dense-Fine, Dense-Coarse, Stone Matrix Asphalt (SMA) and Open Gradation. | F36: Gradation Type: Type of aggregate gradation used in the mix, not restricted to Dense-Fine, Dense-Coarse, Stone Matrix Asphalt (SMA) and Open Gradation. | J36: Mix Design | K36: Field_Density_TextBox | L36: Mixture specific gravity (Gmm) in the field.
A37: NDesign_TextBox | C37: N-design: | D37: 36 | E37: Number of gyrations (N) required to produce a sample with the same density as the one expected in the field. | F37: N-design: Number of gyrations (N) required to produce a sample with the same density as the one expected in the field. | J37: Mix Design | K37: Field_Density_Source_TextBox | L37: Source of field specific gravity data. E.g.: Job Mix Formula (JMF); reported by Department of Transportation (DOT); lab measured; Long-Term Pavement Performance (LTPP) program.
A38: VMA_at_NDesign_TextBox | C38: VMA: | D38: 37 | E38: Voids in Mineral Aggregate (VMA) of the compacted mixture. | F38: VMA: Voids in Mineral Aggregate (VMA) of the compacted mixture. | J38: Mix Design | K38: Percent_Passing_3_4_inch_Sieve_TextBox | L38: Percent of mass passing the 3/4" sieve.
A39: VFA_at_NDesign_TextBox | C39: VFA: | D39: 38 | E39: Voids Filled with Asphalt (VFA) expected at Ndesign. | F39: VFA: Voids Filled with Asphalt (VFA) expected at Ndesign. | J39: Mix Design | K39: Percent_Passing_1_inch_Sieve_TextBox | L39: Percent of mass passing the 1" sieve.
A40: AirVoids_at_NDesign_TextBox | C40: AV: | D40: 39 | E40: Volume of the air voids (AV) or pockets of air between coated aggregate particles. Can also be calculated if Gmb is known. | F40: AV: Volume of the air voids (AV) or pockets of air between coated aggregate particles. Can also be calculated if Gmb is known. | J40: Mix Design | K40: Percent_Passing_half_inch_Sieve_TextBox | L40: Percent of mass passing the 1/2" sieve.
A41: NDesign_Source_TextBox | C41: N-design Source: | D41: 40 | E41: Source of Ndesign. E.g.: Job Mix Formula (JMF); reported by Department of Transportation (DOT); lab measured; Long-Term Pavement Performance (LTPP) program. | F41: N-design Source: Source of Ndesign. E.g.: Job Mix Formula (JMF); reported by Department of Transportation (DOT); lab measured; Long-Term Pavement Performance (LTPP) program. | J41: Mix Design | K41: Percent_Passing_3_8_inch_Sieve_TextBox | L41: Percent of mass passing the 3/8" sieve.
A42: GMM_TextBox | C42: Gmm: | D42: 41 | E42: Maximum theoretical specific gravity of the mixture. | F42: Gmm: Maximum theoretical specific gravity of the mixture. | J42: Mix Design | K42: Percent_Passing_Sieve_30_TextBox | L42: Percent of mass passing the #30 sieve.
A43: GB_TextBox | C43: Gb: | D43: 42 | E43: Asphalt binder specific gravity. | F43: Gb: Asphalt binder specific gravity. | J43: Mix Design | K43: Percent_Passing_Sieve_8_TextBox | L43: Percent of mass passing the #8 sieve.
A44: GSB_TextBox | C44: Gsb: | D44: 43 | E44: Bulk specific gravity of the aggregate. | F44: Gsb: Bulk specific gravity of the aggregate. | J44: Mix Design | K44: Percent_Passing_Sieve_4_TextBox | L44: Percent of mass passing the #4 sieve.
A45: Specific_Gravity_Information_Source_TextBox | C45: Specific Gravity Information Source: | D45: 44 | E45: Source of specific gravity data. E.g.: Job Mix Formula (JMF); reported by Department of Transportation (DOT); lab measured; Long-Term Pavement Performance (LTPP) program. | F45: Specific Gravity Information Source: Source of specific gravity data. E.g.: Job Mix Formula (JMF); reported by Department of Transportation (DOT); lab measured; Long-Term Pavement Performance (LTPP) program. | J45: Mix Design | K45: Percent_Passing_Sieve_16_TextBox | L45: Percent of mass passing the #16 sieve.
A46: Mixing_Temperature_TextBox | C46: Mixing Temperature: | D46: 45 | E46: Temperature used during the mixing procedure. | F46: Mixing Temperature: Temperature used during the mixing procedure. | J46: Mix Design | K46: Percent_Passing_Sieve_100_TextBox | L46: Percent of mass passing the #100 sieve.
A47: Compaction_Temperature_TextBox | C47: Compaction Temperature: | D47: 46 | E47: Temperature used during the compaction procedure. | F47: Compaction Temperature: Temperature used during the compaction procedure. | J47: Mix Design | K47: Percent_Passing_Sieve_50_TextBox | L47: Percent of mass passing the #50 sieve.
A48: Field_Density_TextBox | C48: Field Density (%): | D48: 47 | E48: Mixture specific gravity (Gmm) in the field. | F48: Field Density (%): Mixture specific gravity (Gmm) in the field. | J48: Mix Design | K48: Percent_Passing_Sieve_200_TextBox | L48: Percent of mass passing the #200 sieve.
A49: Field_Density_Source_TextBox | C49: Field Density Source: | D49: 48 | E49: Source of field specific gravity data. E.g.: Job Mix Formula (JMF); reported by Department of Transportation (DOT); lab measured; Long-Term Pavement Performance (LTPP) program. | F49: Field Density Source: Source of field specific gravity data. E.g.: Job Mix Formula (JMF); reported by Department of Transportation (DOT); lab measured; Long-Term Pavement Performance (LTPP) program. | J49: Mix Design | K49: Binder_Content_TextBox | L49: Total % binder content by aggregate mass.
A50: Percent_Passing_1_inch_Sieve_TextBox | C50: % Passing sieve 1": | D50: 49 | E50: Percent of mass passing the 1" sieve. | F50: % Passing sieve 1": Percent of mass passing the 1" sieve. | J50: Mix Design | K50: RAS_Content_TextBox | L50: Amount of reclaimed asphalt shingles (RAS) by mass.
A51: Percent_Passing_3_4_inch_Sieve_TextBox | C51: % Passing sieve 3/4": | D51: 50 | E51: Percent of mass passing the 3/4" sieve. | F51: % Passing sieve 3/4": Percent of mass passing the 3/4" sieve. | J51: Mix Design | K51: Fine_RAP_Content_TextBox | L51: Amount of fine reclaimed asphalt pavement (RAP) by mass.
A52: Percent_Passing_half_inch_Sieve_TextBox | C52: % Passing sieve 1/2": | D52: 51 | E52: Percent of mass passing the 1/2" sieve. | F52: % Passing sieve 1/2": Percent of mass passing the 1/2" sieve. | J52: Mix Design | K52: Coarse_RAP_Content_TextBox | L52: Amount of coarse reclaimed asphalt pavement (RAP) by mass.
A53: Percent_Passing_3_8_inch_Sieve_TextBox | C53: % Passing sieve 3/8": | D53: 52 | E53: Percent of mass passing the 3/8" sieve. | F53: % Passing sieve 3/8": Percent of mass passing the 3/8" sieve. | J53: Dynamic Modulus Test | K53: Additional_Dynamic_Modulus_Comments_TextBox | L53: Additional observations concerning general Dynamic Modulus test procedure.
A54: Percent_Passing_Sieve_4_TextBox | C54: % Passing sieve #4: | D54: 53 | E54: Percent of mass passing the #4 sieve. | F54: % Passing sieve #4: Percent of mass passing the #4 sieve. | J54: Dynamic Modulus Test | K54: DM_Average_Specimen_Observation_TextBox | L54: Additional observations for Dynamic Modulus test concerning average of specimens.
A55: Percent_Passing_Sieve_8_TextBox | C55: % Passing sieve #8: | D55: 54 | E55: Percent of mass passing the #8 sieve. | F55: % Passing sieve #8: Percent of mass passing the #8 sieve. | J55: Dynamic Modulus Test | K55: DM_Average_Specimen_Width_TextBox | L55: Average width for prismatic specimens.
A56: Percent_Passing_Sieve_16_TextBox | C56: % Passing sieve #16: | D56: 55 | E56: Percent of mass passing the #16 sieve. | F56: % Passing sieve #16: Percent of mass passing the #16 sieve. | J56: Dynamic Modulus Test | K56: DM_Average_Specimen_Material_Type_TextBox | L56: Material type used on the fabrication of specimens. E.g.: component material, loose mix, field core.
A57: Percent_Passing_Sieve_30_TextBox | C57: % Passing sieve #30: | D57: 56 | E57: Percent of mass passing the #30 sieve. | F57: % Passing sieve #30: Percent of mass passing the #30 sieve. | J57: Dynamic Modulus Test | K57: DM_Average_Specimen_Height_TextBox | L57: Average height of specimens.
A58: Percent_Passing_Sieve_50_TextBox | C58: % Passing sieve #50: | D58: 57 | E58: Percent of mass passing the #50 sieve. | F58: % Passing sieve #50: Percent of mass passing the #50 sieve. | J58: Dynamic Modulus Test | K58: DM_Average_Specimen_Diameter_TextBox | L58: Average diameter for cylindrical specimens.
A59: Percent_Passing_Sieve_100_TextBox | C59: % Passing sieve #100: | D59: 58 | E59: Percent of mass passing the #100 sieve. | F59: % Passing sieve #100: Percent of mass passing the #100 sieve. | J59: Dynamic Modulus Test | K59: DM_Average_Specimen_Air_Void_Content_TextBox | L59: Average air void (AV) content of test specimens.
A60: Percent_Passing_Sieve_200_TextBox | C60: % Passing sieve #200: | D60: 59 | E60: Percent of mass passing the #200 sieve. | F60: % Passing sieve #200: Percent of mass passing the #200 sieve. | J60: Dynamic Modulus Test | K60: DM_Specimen1_Observation_TextBox | L60: Additional observations for Dynamic Modulus test concerning specimen 1.
A61: Binder_Content_TextBox | C61: Binder Content (%): | D61: 60 | E61: Total % binder content by aggregate mass. | F61: Binder Content (%): Total % binder content by aggregate mass. | J61: Dynamic Modulus Test | K61: DM_Specimen1_Width_TextBox | L61: Measured width of prismatic specimen 1.
A62: Coarse_RAP_Content_TextBox | C62: Coarse RAP (%): | D62: 61 | E62: Amount of coarse reclaimed asphalt pavement (RAP) by mass. | F62: Coarse RAP (%): Amount of coarse reclaimed asphalt pavement (RAP) by mass. | J62: Dynamic Modulus Test | K62: DM_Specimen1_Material_Type_TextBox | L62: Material type used on the fabrication of specimen 1. E.g.: component material, loose mix, field core.
A63: Fine_RAP_Content_TextBox | C63: Fine RAP (%): | D63: 62 | E63: Amount of fine reclaimed asphalt pavement (RAP) by mass. | F63: Fine RAP (%): Amount of fine reclaimed asphalt pavement (RAP) by mass. | J63: Dynamic Modulus Test | K63: DM_Specimen1_Height_TextBox | L63: Measured height of specimen 1.
A64: RAS_Content_TextBox | C64: Fine RAS (%): | D64: 63 | E64: Amount of reclaimed asphalt shingles (RAS) by mass. | F64: Fine RAS (%): Amount of reclaimed asphalt shingles (RAS) by mass. | J64: Dynamic Modulus Test | K64: DM_Specimen1_Diameter_TextBox | L64: Measured diameter of cylindrical specimen 1.
A65: Binder_in_Coarse_RAP_TextBox | C65: % Binder in Coarse RAP: | D65: 64 | E65: Amount of binder in coarse fraction of reclaimed asphalt pavement | F65: % Binder in Coarse RAP: Amount of binder in coarse fraction of reclaimed asphalt pavement. | J65: Dynamic Modulus Test | K65: DM_Specimen1_Air_Void_Content_TextBox | L65: Measured air void (AV) content of specimen 1.
A66: Binder_in_Fine_RAP_TextBox | C66: % Binder in fine RAP: | D66: 65 | E66: Amount of binder in fine fraction of reclaimed asphalt pavement | F66: % Binder in fine RAP: Amount of binder in fine fraction of reclaimed asphalt pavement. | J66: Dynamic Modulus Test | K66: DM_Specimen2_Observation_TextBox | L66: Additional observations for Dynamic Modulus test concerning specimen 2.
A67: Binder_in_RAS_TextBox | C67: % Binder in RAS: | D67: 66 | E67: Amount of binder in reclaimed asphalt shingles. | F67: % Binder in RAS: Amount of binder in reclaimed asphalt shingles. | J67: Dynamic Modulus Test | K67: DM_Specimen2_Width_TextBox | L67: Measured width of prismatic specimen 2.
A68: Additional_Mix_Design_Comments_TextBox | C68: Additional Comments on Mix Design: | D68: 67 | E68: Additional observations concerning the mix design. | F68: Additional Comments on Mix Design: Additional observations concerning the mix design. | J68: Dynamic Modulus Test | K68: DM_Specimen2_Material_Type_TextBox | L68: Material type used on the fabrication of specimen 2. E.g.: component material, loose mix, field core.
A69: DM_Test_Operator_TextBox | C69: DM Test Operator: | D69: 68 | E69: Name of the operator to perform the Dynamic Modulus test. | F69: DM Test Operator: Name of the operator to perform the Dynamic Modulus test. | J69: Dynamic Modulus Test | K69: DM_Specimen2_Height_TextBox | L69: Measured height of specimen 2.
A70: DM_Test_Date_TextBox | C70: DM Test Date: | D70: 69 | E70: Date in which the Dynamic Modulus test was performed. | F70: DM Test Date: Date in which the Dynamic Modulus test was performed. | J70: Dynamic Modulus Test | K70: DM_Specimen2_Diameter_TextBox | L70: Measured diameter of cylindrical specimen 2.
A71: DM_Test_Machine_TextBox | C71: DM Test Machine: | D71: 70 | E71: Machine in which the Dynamic Modulus test was performed. | F71: DM Test Machine: Machine in which the Dynamic Modulus test was performed. | J71: Dynamic Modulus Test | K71: DM_Specimen2_Air_Void_Content_TextBox | L71: Measured air void (AV) content of specimen 2.
A72: DM_Test_Gauge_Length_TextBox | C72: DM Gauge Length: | D72: 71 | E72: Gauge length of the the LVDT/extensometers used to measure displacements in the Dynamic Modulus test. | F72: DM Gauge Length: Gauge length of the the LVDT/extensometers used to measure displacements in the Dynamic Modulus test. | J72: Dynamic Modulus Test | K72: DM_Specimen3_Observation_TextBox | L72: Additional observations for Dynamic Modulus test concerning specimen 3.
A73: DM_Analysis_Operator_TextBox | C73: DM Analysis Operator: | D73: 72 | E73: Name of the operator to perform the Dynamic Modulus analysis. | F73: DM Analysis Operator: Name of the operator to perform the Dynamic Modulus analysis. | J73: Dynamic Modulus Test | K73: DM_Specimen3_Width_TextBox | L73: Measured width of prismatic specimen 3.
A74: DM_Analysis_Software_TextBox | C74: DM Analysis Software: | D74: 73 | E74: Software used for the analysis of the Dynamic Modulus data. | F74: DM Analysis Software: Software used for the analysis of the Dynamic Modulus data. | J74: Dynamic Modulus Test | K74: DM_Specimen3_Material_Type_TextBox | L74: Material type used on the fabrication of specimen 3. E.g.: component material, loose mix, field core.
A75: DM_Average_Specimen_Air_Void_Content_TextBox | C75: Average DM Specimens AV (%): | D75: 74 | E75: Average air void (AV) content of test specimens. | F75: Average DM Specimens AV (%): Average air void (AV) content of test specimens. | J75: Dynamic Modulus Test | K75: DM_Specimen3_Height_TextBox | L75: Measured height of specimen 3.
A76: DM_Average_Specimen_Material_Type_TextBox | C76: Average DM Specimens Material Type: | D76: 75 | E76: Material type used on the fabrication of specimens. E.g.: component material, loose mix, field core. | F76: Average DM Specimens Material Type: Material type used on the fabrication of specimens. E.g.: component material, loose mix, field core. | J76: Dynamic Modulus Test | K76: DM_Specimen3_Diameter_TextBox | L76: Measured diameter of cylindrical specimen 3.
A77: DM_Average_Specimen_Height_TextBox | C77: Average DM Specimens Height: | D77: 76 | E77: Average height of specimens. | F77: Average DM Specimens Height: Average height of specimens. | J77: Dynamic Modulus Test | K77: DM_Specimen3_Air_Void_Content_TextBox | L77: Measured air void (AV) content of specimen 3.
A78: DM_Average_Cylindrical_Specimen_OptionButton | B78: FALSE | C78: DM Cylindrical Specimen | D78: 77 | G78: FALSE | J78: Dynamic Modulus Test | K78: DM_Specimen4_Observation_TextBox | L78: Additional observations for Dynamic Modulus test concerning specimen 4.
A79: DM_Average_Specimen_Diameter_TextBox | C79: Average DM Specimens Cylinder Diameter: | D79: 78 | E79: Average diameter for cylindrical specimens. | F79: Average DM Specimens Cylinder Diameter: Average diameter for cylindrical specimens. | J79: Dynamic Modulus Test | K79: DM_Specimen4_Width_TextBox | L79: Measured width of prismatic specimen 4.
A80: DM_Average_Prismatic_Specimen_OptionButton | B80: FALSE | C80: DM Prismatic Specimen | D80: 79 | G80: FALSE | J80: Dynamic Modulus Test | K80: DM_Specimen4_Material_Type_TextBox | L80: Material type used on the fabrication of specimen 4. E.g.: component material, loose mix, field core.
A81: DM_Average_Specimen_Width_TextBox | C81: Average DM Specimens Prism Width: | D81: 80 | E81: Average width for prismatic specimens. | F81: Average DM Specimens Prism Width: Average width for prismatic specimens. | J81: Dynamic Modulus Test | K81: DM_Specimen4_Height_TextBox | L81: Measured height of specimen 4.
A82: DM_Average_Specimen_Observation_TextBox | C82: Average DM Specimens Observations: | D82: 81 | E82: Additional observations for Dynamic Modulus test concerning average of specimens. | F82: Average DM Specimens Observations: Additional observations for Dynamic Modulus test concerning average of specimens. | J82: Dynamic Modulus Test | K82: DM_Specimen4_Diameter_TextBox | L82: Measured diameter of cylindrical specimen 4.
A83: DM_Specimen1_Air_Void_Content_TextBox | C83: DM Specimen 1 AV (%): | D83: 82 | E83: Measured air void (AV) content of specimen 1. | F83: DM Specimen 1 AV (%): Measured air void (AV) content of specimen 1. | J83: Dynamic Modulus Test | K83: DM_Specimen4_Air_Void_Content_TextBox | L83: Measured air void (AV) content of specimen 4.
A84: DM_Specimen1_Material_Type_TextBox | C84: DM Specimen 1 Material Type: | D84: 83 | E84: Material type used on the fabrication of specimen 1. E.g.: component material, loose mix, field core. | F84: DM Specimen 1 Material Type: Material type used on the fabrication of specimen 1. E.g.: component material, loose mix, field core. | J84: Dynamic Modulus Test | K84: DM_Specimen5_Observation_TextBox | L84: Additional observations for Dynamic Modulus test concerning specimen 5.
A85: DM_Specimen1_Height_TextBox | C85: DM Specimen 1 Height: | D85: 84 | E85: Measured height of specimen 1. | F85: DM Specimen 1 Height: Measured height of specimen 1. | J85: Dynamic Modulus Test | K85: DM_Specimen5_Width_TextBox | L85: Measured width of prismatic specimen 5.
A86: DM_Cylindrical_Specimen1_OptionButton | B86: FALSE | C86: DM Specimen 1 Cylindrical Specimen | D86: 85 | G86: FALSE | J86: Dynamic Modulus Test | K86: DM_Specimen5_Material_Type_TextBox | L86: Material type used on the fabrication of specimen 5. E.g.: component material, loose mix, field core.
A87: DM_Specimen1_Diameter_TextBox | C87: DM Specimen 1 Cylinder Diameter: | D87: 86 | E87: Measured diameter of cylindrical specimen 1. | F87: DM Specimen 1 Cylinder Diameter: Measured diameter of cylindrical specimen 1. | J87: Dynamic Modulus Test | K87: DM_Specimen5_Height_TextBox | L87: Measured height of specimen 5.
A88: DM_Prismatic_Specimen1_OptionButton | B88: FALSE | C88: DM Specimen 1 Prismatic Specimen | D88: 87 | G88: FALSE | J88: Dynamic Modulus Test | K88: DM_Specimen5_Diameter_TextBox | L88: Measured diameter of cylindrical specimen 5.
A89: DM_Specimen1_Width_TextBox | C89: DM Specimen 1 Prism Width: | D89: 88 | E89: Measured width of prismatic specimen 1. | F89: DM Specimen 1 Prism Width: Measured width of prismatic specimen 1. | J89: Dynamic Modulus Test | K89: DM_Specimen5_Air_Void_Content_TextBox | L89: Measured air void (AV) content of specimen 5.
A90: DM_Specimen1_Observation_TextBox | C90: DM Specimen 1 Observation: | D90: 89 | E90: Additional observations for Dynamic Modulus test concerning specimen 1. | F90: DM Specimen 1 Observation: Additional observations for Dynamic Modulus test concerning specimen 1. | J90: Dynamic Modulus Test | K90: DM_Specimen6_Observation_TextBox | L90: Additional observations for Dynamic Modulus test concerning specimen 6.
A91: DM_Specimen2_Air_Void_Content_TextBox | C91: DM Specimen 2 AV (%): | D91: 90 | E91: Measured air void (AV) content of specimen 2. | F91: DM Specimen 2 AV (%): Measured air void (AV) content of specimen 2. | J91: Dynamic Modulus Test | K91: DM_Specimen6_Width_TextBox | L91: Measured width of prismatic specimen 6.
A92: DM_Specimen2_Material_Type_TextBox | C92: DM Specimen 2 Material Type: | D92: 91 | E92: Material type used on the fabrication of specimen 2. E.g.: component material, loose mix, field core. | F92: DM Specimen 2 Material Type: Material type used on the fabrication of specimen 2. E.g.: component material, loose mix, field core. | J92: Dynamic Modulus Test | K92: DM_Specimen6_Material_Type_TextBox | L92: Material type used on the fabrication of specimen 6. E.g.: component material, loose mix, field core.
A93: DM_Specimen2_Height_TextBox | C93: DM Specimen 2 Height: | D93: 92 | E93: Measured height of specimen 2. | F93: DM Specimen 2 Height: Measured height of specimen 2. | J93: Dynamic Modulus Test | K93: DM_Specimen6_Height_TextBox | L93: Measured height of specimen 6.
A94: DM_Cylindrical_Specimen2_OptionButton | B94: FALSE | C94: DM Specimen 2 Cylindrical Specimen | D94: 93 | G94: FALSE | J94: Dynamic Modulus Test | K94: DM_Specimen6_Diameter_TextBox | L94: Measured diameter of cylindrical specimen 6.
A95: DM_Specimen2_Diameter_TextBox | C95: DM Specimen 2 Cylinder Diameter: | D95: 94 | E95: Measured diameter of cylindrical specimen 2. | F95: DM Specimen 2 Cylinder Diameter: Measured diameter of cylindrical specimen 2. | J95: Dynamic Modulus Test | K95: DM_Specimen6_Air_Void_Content_TextBox | L95: Measured air void (AV) content of specimen 6.
A96: DM_Prismatic_Specimen2_OptionButton | B96: FALSE | C96: DM Specimen 2 Prismatic Specimen | D96: 95 | G96: FALSE | J96: Dynamic Modulus Test | K96: DM_Specimen7_Observation_TextBox | L96: Additional observations for Dynamic Modulus test concerning specimen 7.
A97: DM_Specimen2_Width_TextBox | C97: DM Specimen 2 Prism Width: | D97: 96 | E97: Measured width of prismatic specimen 2. | F97: DM Specimen 2 Prism Width: Measured width of prismatic specimen 2. | J97: Dynamic Modulus Test | K97: DM_Specimen7_Width_TextBox | L97: Measured width of prismatic specimen 7.
A98: DM_Specimen2_Observation_TextBox | C98: DM Specimen 2 Observation: | D98: 97 | E98: Additional observations for Dynamic Modulus test concerning specimen 2. | F98: DM Specimen 2 Observation: Additional observations for Dynamic Modulus test concerning specimen 2. | J98: Dynamic Modulus Test | K98: DM_Specimen7_Material_Type_TextBox | L98: Material type used on the fabrication of specimen 7. E.g.: component material, loose mix, field core.
A99: DM_Specimen3_Air_Void_Content_TextBox | C99: DM Specimen 3 AV (%): | D99: 98 | E99: Measured air void (AV) content of specimen 3. | F99: DM Specimen 3 AV (%): Measured air void (AV) content of specimen 3. | J99: Dynamic Modulus Test | K99: DM_Specimen7_Height_TextBox | L99: Measured height of specimen 7.
A100: DM_Specimen3_Material_Type_TextBox | C100: DM Specimen 3 Material Type: | D100: 99 | E100: Material type used on the fabrication of specimen 3. E.g.: component material, loose mix, field core. | F100: DM Specimen 3 Material Type: Material type used on the fabrication of specimen 3. E.g.: component material, loose mix, field core. | J100: Dynamic Modulus Test | K100: DM_Specimen7_Diameter_TextBox | L100: Measured diameter of cylindrical specimen 7.
A101: DM_Specimen3_Height_TextBox | C101: DM Specimen 3 Height: | D101: 100 | E101: Measured height of specimen 3. | F101: DM Specimen 3 Height: Measured height of specimen 3. | J101: Dynamic Modulus Test | K101: DM_Specimen7_Air_Void_Content_TextBox | L101: Measured air void (AV) content of specimen 7.
A102: DM_Cylindrical_Specimen3_OptionButton | B102: FALSE | C102: DM Specimen 3 Cylindrical Specimen | D102: 101 | G102: FALSE | J102: Dynamic Modulus Test | K102: DM_Specimen8_Observation_TextBox | L102: Additional observations for Dynamic Modulus test concerning specimen 8.
A103: DM_Specimen3_Diameter_TextBox | C103: DM Specimen 3 Cylinder Diameter: | D103: 102 | E103: Measured diameter of cylindrical specimen 3. | F103: DM Specimen 3 Cylinder Diameter: Measured diameter of cylindrical specimen 3. | J103: Dynamic Modulus Test | K103: DM_Specimen8_Width_TextBox | L103: Measured width of prismatic specimen 8.
A104: DM_Prismatic_Specimen3_OptionButton | B104: FALSE | C104: DM Specimen 3 Prismatic Specimen | D104: 103 | G104: FALSE | J104: Dynamic Modulus Test | K104: DM_Specimen8_Material_Type_TextBox | L104: Material type used on the fabrication of specimen 8. E.g.: component material, loose mix, field core.
A105: DM_Specimen3_Width_TextBox | C105: DM Specimen 3 Prism Width: | D105: 104 | E105: Measured width of prismatic specimen 3. | F105: DM Specimen 3 Prism Width: Measured width of prismatic specimen 3. | J105: Dynamic Modulus Test | K105: DM_Specimen8_Height_TextBox | L105: Measured height of specimen 8.
A106: DM_Specimen3_Observation_TextBox | C106: DM Specimen 3 Observation: | D106: 105 | E106: Additional observations for Dynamic Modulus test concerning specimen 3. | F106: DM Specimen 3 Observation: Additional observations for Dynamic Modulus test concerning specimen 3. | J106: Dynamic Modulus Test | K106: DM_Specimen8_Diameter_TextBox | L106: Measured diameter of cylindrical specimen 8.
A107: DM_Specimen4_Air_Void_Content_TextBox | C107: DM Specimen 4 AV (%): | D107: 106 | E107: Measured air void (AV) content of specimen 4. | F107: DM Specimen 4 AV (%): Measured air void (AV) content of specimen 4. | J107: Dynamic Modulus Test | K107: DM_Specimen8_Air_Void_Content_TextBox | L107: Measured air void (AV) content of specimen 8.
A108: DM_Specimen4_Material_Type_TextBox | C108: DM Specimen 4 Material Type: | D108: 107 | E108: Material type used on the fabrication of specimen 4. E.g.: component material, loose mix, field core. | F108: DM Specimen 4 Material Type: Material type used on the fabrication of specimen 4. E.g.: component material, loose mix, field core. | J108: Dynamic Modulus Test | K108: DM_Specimen9_Observation_TextBox | L108: Additional observations for Dynamic Modulus test concerning specimen 9.
A109: DM_Specimen4_Height_TextBox | C109: DM Specimen 4 Height: | D109: 108 | E109: Measured height of specimen 4. | F109: DM Specimen 4 Height: Measured height of specimen 4. | J109: Dynamic Modulus Test | K109: DM_Specimen9_Width_TextBox | L109: Measured width of prismatic specimen 9.
A110: DM_Cylindrical_Specimen4_OptionButton | B110: FALSE | C110: DM Specimen 4 Cylindrical Specimen | D110: 109 | G110: FALSE | J110: Dynamic Modulus Test | K110: DM_Specimen9_Material_Type_TextBox | L110: Material type used on the fabrication of specimen 9. E.g.: component material, loose mix, field core.
A111: DM_Specimen4_Diameter_TextBox | C111: DM Specimen 4 Cylinder Diameter: | D111: 110 | E111: Measured diameter of cylindrical specimen 4. | F111: DM Specimen 4 Cylinder Diameter: Measured diameter of cylindrical specimen 4. | J111: Dynamic Modulus Test | K111: DM_Specimen9_Height_TextBox | L111: Measured height of specimen 9.
A112: DM_Prismatic_Specimen4_OptionButton | B112: FALSE | C112: DM Specimen 4 Prismatic Specimen | D112: 111 | G112: FALSE | J112: Dynamic Modulus Test | K112: DM_Specimen9_Diameter_TextBox | L112: Measured diameter of cylindrical specimen 9.
A113: DM_Specimen4_Width_TextBox | C113: DM Specimen 4 Prism Width: | D113: 112 | E113: Measured width of prismatic specimen 4. | F113: DM Specimen 4 Prism Width: Measured width of prismatic specimen 4. | J113: Dynamic Modulus Test | K113: DM_Specimen9_Air_Void_Content_TextBox | L113: Measured air void (AV) content of specimen 9.
A114: DM_Specimen4_Observation_TextBox | C114: DM Specimen 4 Observation: | D114: 113 | E114: Additional observations for Dynamic Modulus test concerning specimen 4. | F114: DM Specimen 4 Observation: Additional observations for Dynamic Modulus test concerning specimen 4. | J114: Dynamic Modulus Test | K114: DM_Specimen10_Observation_TextBox | L114: Additional observations for Dynamic Modulus test concerning specimen 10.
A115: DM_Specimen5_Air_Void_Content_TextBox | C115: DM Specimen 5 AV (%): | D115: 114 | E115: Measured air void (AV) content of specimen 5. | F115: DM Specimen 5 AV (%): Measured air void (AV) content of specimen 5. | J115: Dynamic Modulus Test | K115: DM_Specimen10_Width_TextBox | L115: Measured width of prismatic specimen 10.
A116: DM_Specimen5_Material_Type_TextBox | C116: DM Specimen 5 Material Type: | D116: 115 | E116: Material type used on the fabrication of specimen 5. E.g.: component material, loose mix, field core. | F116: DM Specimen 5 Material Type: Material type used on the fabrication of specimen 5. E.g.: component material, loose mix, field core. | J116: Dynamic Modulus Test | K116: DM_Specimen10_Material_Type_TextBox | L116: Material type used on the fabrication of specimen 10. E.g.: component material, loose mix, field core.
A117: DM_Specimen5_Height_TextBox | C117: DM Specimen 5 Height: | D117: 116 | E117: Measured height of specimen 5. | F117: DM Specimen 5 Height: Measured height of specimen 5. | J117: Dynamic Modulus Test | K117: DM_Specimen10_Height_TextBox | L117: Measured height of specimen 10.
A118: DM_Cylindrical_Specimen5_OptionButton | B118: FALSE | C118: DM Specimen 5 Cylindrical Specimen | D118: 117 | G118: FALSE | J118: Dynamic Modulus Test | K118: DM_Specimen10_Diameter_TextBox | L118: Measured diameter of cylindrical specimen 10.
A119: DM_Specimen5_Diameter_TextBox | C119: DM Specimen 5 Cylinder Diameter: | D119: 118 | E119: Measured diameter of cylindrical specimen 5. | F119: DM Specimen 5 Cylinder Diameter: Measured diameter of cylindrical specimen 5. | J119: Dynamic Modulus Test | K119: DM_Specimen10_Air_Void_Content_TextBox | L119: Measured air void (AV) content of specimen 10.
A120: DM_Prismatic_Specimen5_OptionButton | B120: FALSE | C120: DM Specimen 5 Prismatic Specimen | D120: 119 | G120: FALSE | J120: Dynamic Modulus Test | K120: DM_Analysis_Software_TextBox | L120: Software used for the analysis of the Dynamic Modulus data.
A121: DM_Specimen5_Width_TextBox | C121: DM Specimen 5 Prism Width: | D121: 120 | E121: Measured width of prismatic specimen 5. | F121: DM Specimen 5 Prism Width: Measured width of prismatic specimen 5. | J121: Dynamic Modulus Test | K121: DM_Test_Operator_TextBox | L121: Name of the operator to perform the Dynamic Modulus test.
A122: DM_Specimen5_Observation_TextBox | C122: DM Specimen 5 Observation: | D122: 121 | E122: Additional observations for Dynamic Modulus test concerning specimen 5. | F122: DM Specimen 5 Observation: Additional observations for Dynamic Modulus test concerning specimen 5. | J122: Dynamic Modulus Test | K122: DM_Test_Date_TextBox | L122: Date in which the Dynamic Modulus test was performed.
A123: DM_Specimen6_Air_Void_Content_TextBox | C123: DM Specimen 6 AV (%): | D123: 122 | E123: Measured air void (AV) content of specimen 6. | F123: DM Specimen 6 AV (%): Measured air void (AV) content of specimen 6. | J123: Dynamic Modulus Test | K123: DM_Test_Machine_TextBox | L123: Machine in which the Dynamic Modulus test was performed.
A124: DM_Specimen6_Material_Type_TextBox | C124: DM Specimen 6 Material Type: | D124: 123 | E124: Material type used on the fabrication of specimen 6. E.g.: component material, loose mix, field core. | F124: DM Specimen 6 Material Type: Material type used on the fabrication of specimen 6. E.g.: component material, loose mix, field core. | J124: Dynamic Modulus Test | K124: DM_Test_Gauge_Length_TextBox | L124: Gauge length of the the LVDT/extensometers used to measure displacements in the Dynamic Modulus test.
A125: DM_Specimen6_Height_TextBox | C125: DM Specimen 6 Height: | D125: 124 | E125: Measured height of specimen 6. | F125: DM Specimen 6 Height: Measured height of specimen 6. | J125: Dynamic Modulus Test | K125: DM_Analysis_Operator_TextBox | L125: Name of the operator to perform the Dynamic Modulus analysis.
A126: DM_Cylindrical_Specimen6_OptionButton | B126: FALSE | C126: DM Specimen 6 Cylindrical Specimen | D126: 125 | G126: FALSE | J126: Cyclic Fatigue Test | K126: Additional_Cyclic_Fatigue_Comments_TextBox | L126: Additional observations concerning general Cyclic Fatigue test procedure.
A127: DM_Specimen6_Diameter_TextBox | C127: DM Specimen 6 Cylinder Diameter: | D127: 126 | E127: Measured diameter of cylindrical specimen 6. | F127: DM Specimen 6 Cylinder Diameter: Measured diameter of cylindrical specimen 6. | J127: Cyclic Fatigue Test | K127: CFT_Average_Specimen_Observation_TextBox | L127: Additional observations for Cyclic Fatigue test concerning average of specimens.
A128: DM_Prismatic_Specimen6_OptionButton | B128: FALSE | C128: DM Specimen 6 Prismatic Specimen | D128: 127 | G128: FALSE | J128: Cyclic Fatigue Test | K128: CFT_Average_Specimen_Width_TextBox | L128: Average width for prismatic specimens.
A129: DM_Specimen6_Width_TextBox | C129: DM Specimen 6 Prism Width: | D129: 128 | E129: Measured width of prismatic specimen 6. | F129: DM Specimen 6 Prism Width: Measured width of prismatic specimen 6. | J129: Cyclic Fatigue Test | K129: CFT_Average_Specimen_Material_Type_TextBox | L129: Material type used on the fabrication of specimens. E.g.: component material, loose mix, field core.
A130: DM_Specimen6_Observation_TextBox | C130: DM Specimen 6 Observation: | D130: 129 | E130: Additional observations for Dynamic Modulus test concerning specimen 6. | F130: DM Specimen 6 Observation: Additional observations for Dynamic Modulus test concerning specimen 6. | J130: Cyclic Fatigue Test | K130: CFT_Average_Specimen_Height_TextBox | L130: Average height of specimens.
A131: DM_Specimen7_Air_Void_Content_TextBox | C131: DM Specimen 7 AV (%): | D131: 130 | E131: Measured air void (AV) content of specimen 7. | F131: DM Specimen 7 AV (%): Measured air void (AV) content of specimen 7. | J131: Cyclic Fatigue Test | K131: CFT_Average_Specimen_Diameter_TextBox | L131: Average diameter for cylindrical specimens.
A132: DM_Specimen7_Material_Type_TextBox | C132: DM Specimen 7 Material Type: | D132: 131 | E132: Material type used on the fabrication of specimen 7. E.g.: component material, loose mix, field core. | F132: DM Specimen 7 Material Type: Material type used on the fabrication of specimen 7. E.g.: component material, loose mix, field core. | J132: Cyclic Fatigue Test | K132: CFT_Average_Specimen_Air_Void_Content_TextBox | L132: Average air void (AV) content of test specimens.
A133: DM_Specimen7_Height_TextBox | C133: DM Specimen 7 Height: | D133: 132 | E133: Measured height of specimen 7. | F133: DM Specimen 7 Height: Measured height of specimen 7. | J133: Cyclic Fatigue Test | K133: CFT_Specimen1_Observation_TextBox | L133: Additional observations for Cyclic Fatigue test concerning specimen 1.
A134: DM_Cylindrical_Specimen7_OptionButton | B134: FALSE | C134: DM Specimen 7 Cylindrical Specimen | D134: 133 | G134: FALSE | J134: Cyclic Fatigue Test | K134: CFT_Specimen1_Width_TextBox | L134: Measured width of prismatic specimen 1.
A135: DM_Specimen7_Diameter_TextBox | C135: DM Specimen 7 Cylinder Diameter: | D135: 134 | E135: Measured diameter of cylindrical specimen 7. | F135: DM Specimen 7 Cylinder Diameter: Measured diameter of cylindrical specimen 7. | J135: Cyclic Fatigue Test | K135: CFT_Specimen1_Material_Type_TextBox | L135: Material type used on the fabrication of specimen 1. E.g.: component material, loose mix, field core.
A136: DM_Prismatic_Specimen7_OptionButton | B136: FALSE | C136: DM Specimen 7 Prismatic Specimen | D136: 135 | G136: FALSE | J136: Cyclic Fatigue Test | K136: CFT_Specimen1_Height_TextBox | L136: Measured height of specimen 1.
A137: DM_Specimen7_Width_TextBox | C137: DM Specimen 7 Prism Width: | D137: 136 | E137: Measured width of prismatic specimen 7. | F137: DM Specimen 7 Prism Width: Measured width of prismatic specimen 7. | J137: Cyclic Fatigue Test | K137: CFT_Specimen1_Diameter_TextBox | L137: Measured diameter of cylindrical specimen 1.
A138: DM_Specimen7_Observation_TextBox | C138: DM Specimen 7 Observation: | D138: 137 | E138: Additional observations for Dynamic Modulus test concerning specimen 7. | F138: DM Specimen 7 Observation: Additional observations for Dynamic Modulus test concerning specimen 7. | J138: Cyclic Fatigue Test | K138: CFT_Specimen1_Air_Void_Content_TextBox | L138: Measured air void (AV) content of specimen 1.
A139: DM_Specimen8_Air_Void_Content_TextBox | C139: DM Specimen 8 AV (%): | D139: 138 | E139: Measured air void (AV) content of specimen 8. | F139: DM Specimen 8 AV (%): Measured air void (AV) content of specimen 8. | J139: Cyclic Fatigue Test | K139: CFT_Specimen2_Observation_TextBox | L139: Additional observations for Cyclic Fatigue test concerning specimen 2.
A140: DM_Specimen8_Material_Type_TextBox | C140: DM Specimen 8 Material Type: | D140: 139 | E140: Material type used on the fabrication of specimen 8. E.g.: component material, loose mix, field core. | F140: DM Specimen 8 Material Type: Material type used on the fabrication of specimen 8. E.g.: component material, loose mix, field core. | J140: Cyclic Fatigue Test | K140: CFT_Specimen2_Width_TextBox | L140: Measured width of prismatic specimen 2.
A141: DM_Specimen8_Height_TextBox | C141: DM Specimen 8 Height: | D141: 140 | E141: Measured height of specimen 8. | F141: DM Specimen 8 Height: Measured height of specimen 8. | J141: Cyclic Fatigue Test | K141: CFT_Specimen2_Material_Type_TextBox | L141: Material type used on the fabrication of specimen 2. E.g.: component material, loose mix, field core.
A142: DM_Cylindrical_Specimen8_OptionButton | B142: FALSE | C142: DM Specimen 8 Cylindrical Specimen | D142: 141 | G142: FALSE | J142: Cyclic Fatigue Test | K142: CFT_Specimen2_Height_TextBox | L142: Measured height of specimen 2.
A143: DM_Specimen8_Diameter_TextBox | C143: DM Specimen 8 Cylinder Diameter: | D143: 142 | E143: Measured diameter of cylindrical specimen 8. | F143: DM Specimen 8 Cylinder Diameter: Measured diameter of cylindrical specimen 8. | J143: Cyclic Fatigue Test | K143: CFT_Specimen2_Diameter_TextBox | L143: Measured diameter of cylindrical specimen 2.
A144: DM_Prismatic_Specimen8_OptionButton | B144: FALSE | C144: DM Specimen 8 Prismatic Specimen | D144: 143 | G144: FALSE | J144: Cyclic Fatigue Test | K144: CFT_Specimen2_Air_Void_Content_TextBox | L144: Measured air void (AV) content of specimen 2.
A145: DM_Specimen8_Width_TextBox | C145: DM Specimen 8 Prism Width: | D145: 144 | E145: Measured width of prismatic specimen 8. | F145: DM Specimen 8 Prism Width: Measured width of prismatic specimen 8. | J145: Cyclic Fatigue Test | K145: CFT_Specimen3_Observation_TextBox | L145: Additional observations for Cyclic Fatigue test concerning specimen 3.
A146: DM_Specimen8_Observation_TextBox | C146: DM Specimen 8 Observation: | D146: 145 | E146: Additional observations for Dynamic Modulus test concerning specimen 8. | F146: DM Specimen 8 Observation: Additional observations for Dynamic Modulus test concerning specimen 8. | J146: Cyclic Fatigue Test | K146: CFT_Specimen3_Width_TextBox | L146: Measured width of prismatic specimen 3.
A147: DM_Specimen9_Air_Void_Content_TextBox | C147: DM Specimen 9 AV (%): | D147: 146 | E147: Measured air void (AV) content of specimen 9. | F147: DM Specimen 9 AV (%): Measured air void (AV) content of specimen 9. | J147: Cyclic Fatigue Test | K147: CFT_Specimen3_Material_Type_TextBox | L147: Material type used on the fabrication of specimen 3. E.g.: component material, loose mix, field core.
A148: DM_Specimen9_Material_Type_TextBox | C148: DM Specimen 9 Material Type: | D148: 147 | E148: Material type used on the fabrication of specimen 9. E.g.: component material, loose mix, field core. | F148: DM Specimen 9 Material Type: Material type used on the fabrication of specimen 9. E.g.: component material, loose mix, field core. | J148: Cyclic Fatigue Test | K148: CFT_Specimen3_Height_TextBox | L148: Measured height of specimen 3.
A149: DM_Specimen9_Height_TextBox | C149: DM Specimen 9 Height: | D149: 148 | E149: Measured height of specimen 9. | F149: DM Specimen 9 Height: Measured height of specimen 9. | J149: Cyclic Fatigue Test | K149: CFT_Specimen3_Diameter_TextBox | L149: Measured diameter of cylindrical specimen 3.
A150: DM_Cylindrical_Specimen9_OptionButton | B150: FALSE | C150: DM Specimen 9 Cylindrical Specimen | D150: 149 | G150: FALSE | J150: Cyclic Fatigue Test | K150: CFT_Specimen3_Air_Void_Content_TextBox | L150: Measured air void (AV) content of specimen 3.
A151: DM_Specimen9_Diameter_TextBox | C151: DM Specimen 9 Cylinder Diameter: | D151: 150 | E151: Measured diameter of cylindrical specimen 9. | F151: DM Specimen 9 Cylinder Diameter: Measured diameter of cylindrical specimen 9. | J151: Cyclic Fatigue Test | K151: CFT_Specimen4_Observation_TextBox | L151: Additional observations for Cyclic Fatigue test concerning specimen 4.
A152: DM_Prismatic_Specimen9_OptionButton | B152: FALSE | C152: DM Specimen 9 Prismatic Specimen | D152: 151 | G152: FALSE | J152: Cyclic Fatigue Test | K152: CFT_Specimen4_Width_TextBox | L152: Measured width of prismatic specimen 4.
A153: DM_Specimen9_Width_TextBox | C153: DM Specimen 9 Prism Width: | D153: 152 | E153: Measured width of prismatic specimen 9. | F153: DM Specimen 9 Prism Width: Measured width of prismatic specimen 9. | J153: Cyclic Fatigue Test | K153: CFT_Specimen4_Material_Type_TextBox | L153: Material type used on the fabrication of specimen 4. E.g.: component material, loose mix, field core.
A154: DM_Specimen9_Observation_TextBox | C154: DM Specimen 9 Observation: | D154: 153 | E154: Additional observations for Dynamic Modulus test concerning specimen 9. | F154: DM Specimen 9 Observation: Additional observations for Dynamic Modulus test concerning specimen 9. | J154: Cyclic Fatigue Test | K154: CFT_Specimen4_Height_TextBox | L154: Measured height of specimen 4.
A155: DM_Specimen10_Air_Void_Content_TextBox | C155: DM Specimen 10 AV (%): | D155: 154 | E155: Measured air void (AV) content of specimen 10. | F155: DM Specimen 10 AV (%): Measured air void (AV) content of specimen 10. | J155: Cyclic Fatigue Test | K155: CFT_Specimen4_Diameter_TextBox | L155: Measured diameter of cylindrical specimen 4.
A156: DM_Specimen10_Material_Type_TextBox | C156: DM Specimen 10 Material Type: | D156: 155 | E156: Material type used on the fabrication of specimen 10. E.g.: component material, loose mix, field core. | F156: DM Specimen 10 Material Type: Material type used on the fabrication of specimen 10. E.g.: component material, loose mix, field core. | J156: Cyclic Fatigue Test | K156: CFT_Specimen4_Air_Void_Content_TextBox | L156: Measured air void (AV) content of specimen 4.
A157: DM_Specimen10_Height_TextBox | C157: DM Specimen 10 Height: | D157: 156 | E157: Measured height of specimen 10. | F157: DM Specimen 10 Height: Measured height of specimen 10. | J157: Cyclic Fatigue Test | K157: CFT_Specimen5_Observation_TextBox | L157: Additional observations for Cyclic Fatigue test concerning specimen 5.
A158: DM_Cylindrical_Specimen10_OptionButton | B158: FALSE | C158: DM Specimen 10 Cylindrical Specimen | D158: 157 | G158: FALSE | J158: Cyclic Fatigue Test | K158: CFT_Specimen5_Width_TextBox | L158: Measured width of prismatic specimen 5.
A159: DM_Specimen10_Diameter_TextBox | C159: DM Specimen 10 Cylinder Diameter: | D159: 158 | E159: Measured diameter of cylindrical specimen 10. | F159: DM Specimen 10 Cylinder Diameter: Measured diameter of cylindrical specimen 10. | J159: Cyclic Fatigue Test | K159: CFT_Specimen5_Material_Type_TextBox | L159: Material type used on the fabrication of specimen 5. E.g.: component material, loose mix, field core.
A160: DM_Prismatic_Specimen10_OptionButton | B160: FALSE | C160: DM Specimen 10 Prismatic Specimen | D160: 159 | G160: FALSE | J160: Cyclic Fatigue Test | K160: CFT_Specimen5_Height_TextBox | L160: Measured height of specimen 5.
A161: DM_Specimen10_Width_TextBox | C161: DM Specimen 10 Prism Width: | D161: 160 | E161: Measured width of prismatic specimen 10. | F161: DM Specimen 10 Prism Width: Measured width of prismatic specimen 10. | J161: Cyclic Fatigue Test | K161: CFT_Specimen5_Diameter_TextBox | L161: Measured diameter of cylindrical specimen 5.
A162: DM_Specimen10_Observation_TextBox | C162: DM Specimen 10 Observation: | D162: 161 | E162: Additional observations for Dynamic Modulus test concerning specimen 10. | F162: DM Specimen 10 Observation: Additional observations for Dynamic Modulus test concerning specimen 10. | J162: Cyclic Fatigue Test | K162: CFT_Specimen5_Air_Void_Content_TextBox | L162: Measured air void (AV) content of specimen 5.
A163: Additional_Dynamic_Modulus_Comments_TextBox | C163: DM Additional Comments: | D163: 162 | E163: Additional observations concerning general Dynamic Modulus test procedure. | F163: DM Additional Comments: Additional observations concerning general Dynamic Modulus test procedure. | J163: Cyclic Fatigue Test | K163: CFT_Specimen6_Observation_TextBox | L163: Additional observations for Cyclic Fatigue test concerning specimen 6.
A164: CFT_Test_Operator_TextBox | C164: CF Test Operator: | D164: 163 | E164: Name of the operator to perform the Cyclic Fatigue test. | F164: CF Test Operator: Name of the operator to perform the Cyclic Fatigue test. | J164: Cyclic Fatigue Test | K164: CFT_Specimen6_Width_TextBox | L164: Measured width of prismatic specimen 6.
A165: CFT_Test_Date_TextBox | C165: CF Test Date: | D165: 164 | E165: Date in which the Cyclic Fatigue test was performed. | F165: CF Test Date: Date in which the Cyclic Fatigue test was performed. | J165: Cyclic Fatigue Test | K165: CFT_Specimen6_Material_Type_TextBox | L165: Material type used on the fabrication of specimen 6. E.g.: component material, loose mix, field core.
A166: CFT_Test_Machine_TextBox | C166: CF Test Machine: | D166: 165 | E166: Machine in which the Cyclic Fatigue test was performed. | F166: CF Test Machine: Machine in which the Cyclic Fatigue test was performed. | J166: Cyclic Fatigue Test | K166: CFT_Specimen6_Height_TextBox | L166: Measured height of specimen 6.
A167: CFT_Test_Gauge_Length_TextBox | C167: CF Gauge Length: | D167: 166 | E167: Gauge length of the the LVDT/extensometers used to measure displacements in the Cyclic Fatigue test. | F167: CF Gauge Length: Gauge length of the the LVDT/extensometers used to measure displacements in the Cyclic Fatigue test. | J167: Cyclic Fatigue Test | K167: CFT_Specimen6_Diameter_TextBox | L167: Measured diameter of cylindrical specimen 6.
A168: CFT_Analysis_Operator_TextBox | C168: CF Analysis Operator: | D168: 167 | E168: Name of the operator to perform the Cyclic Fatigue analysis. | F168: CF Analysis Operator: Name of the operator to perform the Cyclic Fatigue analysis. | J168: Cyclic Fatigue Test | K168: CFT_Specimen6_Air_Void_Content_TextBox | L168: Measured air void (AV) content of specimen 6.
A169: CFT_Analysis_Software_TextBox | C169: CF Analysis Software: | D169: 168 | E169: Software used for the analysis of the Cyclic Fatigue data. | F169: CF Analysis Software: Software used for the analysis of the Cyclic Fatigue data. | J169: Cyclic Fatigue Test | K169: CFT_Specimen7_Observation_TextBox | L169: Additional observations for Cyclic Fatigue test concerning specimen 7.
A170: CFT_Average_Specimen_Air_Void_Content_TextBox | C170: Average CF Specimens AV (%): | D170: 169 | E170: Average air void (AV) content of test specimens. | F170: Average CF Specimens AV (%): Average air void (AV) content of test specimens. | J170: Cyclic Fatigue Test | K170: CFT_Specimen7_Width_TextBox | L170: Measured width of prismatic specimen 7.
A171: CFT_Average_Specimen_Material_Type_TextBox | C171: Average CF Specimens Material Type: | D171: 170 | E171: Material type used on the fabrication of specimens. E.g.: component material, loose mix, field core. | F171: Average CF Specimens Material Type: Material type used on the fabrication of specimens. E.g.: component material, loose mix, field core. | J171: Cyclic Fatigue Test | K171: CFT_Specimen7_Material_Type_TextBox | L171: Material type used on the fabrication of specimen 7. E.g.: component material, loose mix, field core.
A172: CFT_Average_Specimen_Height_TextBox | C172: Average CF Specimens Height: | D172: 171 | E172: Average height of specimens. | F172: Average CF Specimens Height: Average height of specimens. | J172: Cyclic Fatigue Test | K172: CFT_Specimen7_Height_TextBox | L172: Measured height of specimen 7.
A173: CFT_Average_Cylindrical_Specimen_OptionButton | B173: FALSE | C173: CF Cylindrical Specimen | D173: 172 | G173: FALSE | J173: Cyclic Fatigue Test | K173: CFT_Specimen7_Diameter_TextBox | L173: Measured diameter of cylindrical specimen 7.
A174: CFT_Average_Specimen_Diameter_TextBox | C174: Average CF Specimens Cylinder Diameter: | D174: 173 | E174: Average diameter for cylindrical specimens. | F174: Average CF Specimens Cylinder Diameter: Average diameter for cylindrical specimens. | J174: Cyclic Fatigue Test | K174: CFT_Specimen7_Air_Void_Content_TextBox | L174: Measured air void (AV) content of specimen 7.
A175: CFT_Average_Prismatic_Specimen_OptionButton | B175: FALSE | C175: CF Prismatic Specimen | D175: 174 | G175: FALSE | J175: Cyclic Fatigue Test | K175: CFT_Specimen8_Observation_TextBox | L175: Additional observations for Cyclic Fatigue test concerning specimen 8.
A176: CFT_Average_Specimen_Width_TextBox | C176: Average CF Specimens Prism Width: | D176: 175 | E176: Average width for prismatic specimens. | F176: Average CF Specimens Prism Width: Average width for prismatic specimens. | J176: Cyclic Fatigue Test | K176: CFT_Specimen8_Width_TextBox | L176: Measured width of prismatic specimen 8.
A177: CFT_Average_Specimen_Observation_TextBox | C177: Average CF Specimens Observations: | D177: 176 | E177: Additional observations for Cyclic Fatigue test concerning average of specimens. | F177: Average CF Specimens Observations: Additional observations for Cyclic Fatigue test concerning average of specimens. | J177: Cyclic Fatigue Test | K177: CFT_Specimen8_Material_Type_TextBox | L177: Material type used on the fabrication of specimen 8. E.g.: component material, loose mix, field core.
A178: CFT_Specimen1_Air_Void_Content_TextBox | C178: CF Specimen 1 AV (%): | D178: 177 | E178: Measured air void (AV) content of specimen 1. | F178: CF Specimen 1 AV (%): Measured air void (AV) content of specimen 1. | J178: Cyclic Fatigue Test | K178: CFT_Specimen8_Height_TextBox | L178: Measured height of specimen 8.
A179: CFT_Specimen1_Material_Type_TextBox | C179: CF Specimen 1 Material Type: | D179: 178 | E179: Material type used on the fabrication of specimen 1. E.g.: component material, loose mix, field core. | F179: CF Specimen 1 Material Type: Material type used on the fabrication of specimen 1. E.g.: component material, loose mix, field core. | J179: Cyclic Fatigue Test | K179: CFT_Specimen8_Diameter_TextBox | L179: Measured diameter of cylindrical specimen 8.
A180: CFT_Specimen1_Height_TextBox | C180: CF Specimen 1 Height: | D180: 179 | E180: Measured height of specimen 1. | F180: CF Specimen 1 Height: Measured height of specimen 1. | J180: Cyclic Fatigue Test | K180: CFT_Specimen8_Air_Void_Content_TextBox | L180: Measured air void (AV) content of specimen 8.
A181: CFT_Cylindrical_Specimen1_OptionButton | B181: FALSE | C181: CF Specimen 1 Cylindrical Specimen | D181: 180 | G181: FALSE | J181: Cyclic Fatigue Test | K181: CFT_Specimen9_Observation_TextBox | L181: Additional observations for Cyclic Fatigue test concerning specimen 9.
A182: CFT_Specimen1_Diameter_TextBox | C182: CF Specimen 1 Cylinder Diameter: | D182: 181 | E182: Measured diameter of cylindrical specimen 1. | F182: CF Specimen 1 Cylinder Diameter: Measured diameter of cylindrical specimen 1. | J182: Cyclic Fatigue Test | K182: CFT_Specimen9_Width_TextBox | L182: Measured width of prismatic specimen 9.
A183: CFT_Prismatic_Specimen1_OptionButton | B183: FALSE | C183: CF Specimen 1 Prismatic Specimen | D183: 182 | G183: FALSE | J183: Cyclic Fatigue Test | K183: CFT_Specimen9_Material_Type_TextBox | L183: Material type used on the fabrication of specimen 9. E.g.: component material, loose mix, field core.
A184: CFT_Specimen1_Width_TextBox | C184: CF Specimen 1 Prism Width: | D184: 183 | E184: Measured width of prismatic specimen 1. | F184: CF Specimen 1 Prism Width: Measured width of prismatic specimen 1. | J184: Cyclic Fatigue Test | K184: CFT_Specimen9_Height_TextBox | L184: Measured height of specimen 9.
A185: CFT_Specimen1_Observation_TextBox | C185: CF Specimen 1 Observation: | D185: 184 | E185: Additional observations for Cyclic Fatigue test concerning specimen 1. | F185: CF Specimen 1 Observation: Additional observations for Cyclic Fatigue test concerning specimen 1. | J185: Cyclic Fatigue Test | K185: CFT_Specimen9_Diameter_TextBox | L185: Measured diameter of cylindrical specimen 9.
A186: CFT_Specimen2_Air_Void_Content_TextBox | C186: CF Specimen 2 AV (%): | D186: 185 | E186: Measured air void (AV) content of specimen 2. | F186: CF Specimen 2 AV (%): Measured air void (AV) content of specimen 2. | J186: Cyclic Fatigue Test | K186: CFT_Specimen9_Air_Void_Content_TextBox | L186: Measured air void (AV) content of specimen 9.
A187: CFT_Specimen2_Material_Type_TextBox | C187: CF Specimen 2 Material Type: | D187: 186 | E187: Material type used on the fabrication of specimen 2. E.g.: component material, loose mix, field core. | F187: CF Specimen 2 Material Type: Material type used on the fabrication of specimen 2. E.g.: component material, loose mix, field core. | J187: Cyclic Fatigue Test | K187: CFT_Specimen10_Observation_TextBox | L187: Additional observations for Cyclic Fatigue test concerning specimen 10.
A188: CFT_Specimen2_Height_TextBox | C188: CF Specimen 2 Height: | D188: 187 | E188: Measured height of specimen 2. | F188: CF Specimen 2 Height: Measured height of specimen 2. | J188: Cyclic Fatigue Test | K188: CFT_Specimen10_Width_TextBox | L188: Measured width of prismatic specimen 10.
A189: CFT_Cylindrical_Specimen2_OptionButton | B189: FALSE | C189: CF Specimen 2 Cylindrical Specimen | D189: 188 | G189: FALSE | J189: Cyclic Fatigue Test | K189: CFT_Specimen10_Material_Type_TextBox | L189: Material type used on the fabrication of specimen 10. E.g.: component material, loose mix, field core.
A190: CFT_Specimen2_Diameter_TextBox | C190: CF Specimen 2 Cylinder Diameter: | D190: 189 | E190: Measured diameter of cylindrical specimen 2. | F190: CF Specimen 2 Cylinder Diameter: Measured diameter of cylindrical specimen 2. | J190: Cyclic Fatigue Test | K190: CFT_Specimen10_Height_TextBox | L190: Measured height of specimen 10.
A191: CFT_Prismatic_Specimen2_OptionButton | B191: FALSE | C191: CF Specimen 2 Prismatic Specimen | D191: 190 | G191: FALSE | J191: Cyclic Fatigue Test | K191: CFT_Specimen10_Diameter_TextBox | L191: Measured diameter of cylindrical specimen 10.
A192: CFT_Specimen2_Width_TextBox | C192: CF Specimen 2 Prism Width: | D192: 191 | E192: Measured width of prismatic specimen 2. | F192: CF Specimen 2 Prism Width: Measured width of prismatic specimen 2. | J192: Cyclic Fatigue Test | K192: CFT_Specimen10_Air_Void_Content_TextBox | L192: Measured air void (AV) content of specimen 10.
A193: CFT_Specimen2_Observation_TextBox | C193: CF Specimen 2 Observation: | D193: 192 | E193: Additional observations for Cyclic Fatigue test concerning specimen 2. | F193: CF Specimen 2 Observation: Additional observations for Cyclic Fatigue test concerning specimen 2. | J193: Cyclic Fatigue Test | K193: CFT_Analysis_Software_TextBox | L193: Software used for the analysis of the Cyclic Fatigue data.
A194: CFT_Specimen3_Air_Void_Content_TextBox | C194: CF Specimen 3 AV (%): | D194: 193 | E194: Measured air void (AV) content of specimen 3. | F194: CF Specimen 3 AV (%): Measured air void (AV) content of specimen 3. | J194: Cyclic Fatigue Test | K194: CFT_Test_Operator_TextBox | L194: Name of the operator to perform the Cyclic Fatigue test.
A195: CFT_Specimen3_Material_Type_TextBox | C195: CF Specimen 3 Material Type: | D195: 194 | E195: Material type used on the fabrication of specimen 3. E.g.: component material, loose mix, field core. | F195: CF Specimen 3 Material Type: Material type used on the fabrication of specimen 3. E.g.: component material, loose mix, field core. | J195: Cyclic Fatigue Test | K195: CFT_Test_Date_TextBox | L195: Date in which the Cyclic Fatigue test was performed.
A196: CFT_Specimen3_Height_TextBox | C196: CF Specimen 3 Height: | D196: 195 | E196: Measured height of specimen 3. | F196: CF Specimen 3 Height: Measured height of specimen 3. | J196: Cyclic Fatigue Test | K196: CFT_Test_Machine_TextBox | L196: Machine in which the Cyclic Fatigue test was performed.
A197: CFT_Cylindrical_Specimen3_OptionButton | B197: FALSE | C197: CF Specimen 3 Cylindrical Specimen | D197: 196 | G197: FALSE | J197: Cyclic Fatigue Test | K197: CFT_Test_Gauge_Length_TextBox | L197: Gauge length of the the LVDT/extensometers used to measure displacements in the Cyclic Fatigue test.
A198: CFT_Specimen3_Diameter_TextBox | C198: CF Specimen 3 Cylinder Diameter: | D198: 197 | E198: Measured diameter of cylindrical specimen 3. | F198: CF Specimen 3 Cylinder Diameter: Measured diameter of cylindrical specimen 3. | J198: Cyclic Fatigue Test | K198: CFT_Analysis_Operator_TextBox | L198: Name of the operator to perform the Cyclic Fatigue analysis.
A199: CFT_Prismatic_Specimen3_OptionButton | B199: FALSE | C199: CF Specimen 3 Prismatic Specimen | D199: 198 | G199: FALSE | J199: Stress Sweep Rutting Test | K199: SSR_Test_Protocol_TextBox | L199: Test protocol used in rutting characterization. E.g.: Stress Sweep for Rutting (SSR) test.
A200: CFT_Specimen3_Width_TextBox | C200: CF Specimen 3 Prism Width: | D200: 199 | E200: Measured width of prismatic specimen 3. | F200: CF Specimen 3 Prism Width: Measured width of prismatic specimen 3. | J200: Stress Sweep Rutting Test | K200: Additional_Stress_Sweep_Rutting_Comments_TextBox | L200: Additional observations concerning general rutting test procedure.
... 154 more rows

Sheet Data Quality Indicators (hidden)
A1: Data Quality Indicators
A3: Graphical Command Display
A4: Specimen
A16: Table 23. Fatigue Test Quality Indicators | H16: Table 24. Initial 5 Cycles: Strain Command and Measurement
A17: Specimen | B17: Fingerprint Average Load Standard Error se(P) < 10% | C17: Fingerprint Deformation Standard Error se(YD) < 10% | D17: FingerPrint Deformation Uniformity UA < 30% | E17: Fingerprint Phase Uniformity Uθ < 3° | F17: Cyclic Fatigue Average Deformation Standard Error se(P) < 10% | H17: 1: Time (s) | I17: 1: Actuator's Strain (µ) | J17: 1: Command Strain (µ)

Sheet Cities Database (hidden)
A1: Other | B1: AK | C1: AL | D1: AR | E1: AZ | F1: CA | G1: CO | H1: CT | I1: DC | J1: DE | K1: FL | L1: GA | M1: HI | N1: IA | O1: ID | P1: IL | Q1: IN | R1: KS | S1: KY | T1: LA | U1: MA | V1: MD | W1: ME | X1: MI | Y1: MN | Z1: MO | AA1: MS | AB1: MT | AC1: NC | AD1: ND | AE1: NE | AF1: NH | AG1: NJ | AH1: NM | AI1: NV | AJ1: NY | AK1: OH | AL1: OK | AM1: OR | AN1: PA | AO1: PR | AP1: RI | AQ1: SC | AR1: SD | AS1: TN | AT1: TX | AU1: UT | AV1: VA | AW1: VT | AX1: WA | AY1: WI | AZ1: WV | BA1: WY | BD1: state_id | BE1: City (County) | BF1: Latitude | BG1: Longitude | BI1: Latitude | BJ1: Longitude | BK1: HT Grade (std.-98%) | BL1: LT Grade (std.-98%) | BM1: Sapp Temp
A2: 40-46 | B2: Adak (Aleutians West) | C2: Abanda (Chambers) | D2: Adona (Perry) | E2: Aguila (Maricopa) | F2: Acalanes Ridge (Contra Costa) | G2: Acres Green (Douglas) | H2: Ansonia (New Haven) | I2: Washington (District of Columbia) | J2: Arden (New Castle) | K2: Acacia Villas (Palm Beach) | L2: Abbeville (Wilcox) | M2: Ahuimanu (Honolulu) | N2: Ackley (Hardin) | O2: Aberdeen (Bingham) | P2: Abingdon (Knox) | Q2: Aberdeen (Porter) | R2: Abbyville (Reno) | S2: Adairville (Logan) | T2: Abbeville (Vermilion) | U2: Acushnet Center (Bristol) | V2: Aberdeen (Harford) | W2: Auburn (Androscoggin) | X2: Addison (Lenawee) | Y2: Ada (Norman) | Z2: Adrian (Bates) | AA2: Abbeville (Lafayette) | AB2: Absarokee (Stillwater) | AC2: Aberdeen (Moore) | AD2: Abercrombie (Richland) | AE2: Abie (Butler) | AF2: Berlin (Coos) | AG2: Absecon (Atlantic) | AH2: Abeytas (Socorro) | AI2: Alamo (Lincoln) | AJ2: Accord (Ulster) | AK2: Aberdeen (Brown) | AL2: Achille (Bryan) | AM2: Adair Village (Benton) | AN2: Aaronsburg (Centre) | AO2: Aceitunas (Moca) | AP2: Ashaway (Washington) | AQ2: Abbeville (Abbeville) | AR2: Aberdeen (Brown) | AS2: Adams (Robertson) | AT2: Abbott (Hill) | AU2: Alpine (Utah) | AV2: Abingdon (Washington) | AW2: Albany (Orleans) | AX2: Aberdeen (Grays Harbor) | AY2: Abbotsford (Clark) | AZ2: Accoville (Logan) | BA2: Afton (Lincoln) | BD2: AK | BE2: Adak (Aleutians West) | BF2: 51.8815 | BG2: -176.6295 | BI2: 18 | BJ2: -66.875 | BK2: 64 | BL2: 14 | BM2: 36 | BS2: Longitude | BT2: Latitude | BU2: HT Grade (cont.-98%) | BV2: LT Grade (cont.-98%) | BW2: HT Grade (cont.-50%) | BX2: LT Grade (cont.-50%) | BY2: HT Grade (std.-98%) | BZ2: LT Grade (std.-98%) | CA2: DD>10 (max)
A3: 40-40 | B3: Akhiok (Kodiak Island) | C3: Abbeville (Henry) | D3: Alexander (Pulaski) | E3: Ajo (Pima) | F3: Acampo (San Joaquin) | G3: Aetna Estates (Arapahoe) | H3: Baltic (New London) | J3: Ardencroft (New Castle) | K3: Alachua (Alachua) | L3: Acworth (Cobb) | M3: Aiea (Honolulu) | N3: Ackworth (Warren) | O3: Acequia (Minidoka) | P3: Adair (McDonough) | Q3: Advance (Boone) | R3: Abilene (Dickinson) | S3: Ages (Harlan) | T3: Abita Springs (St. Tammany) | U3: Agawam Town (Hampden) | V3: Aberdeen Proving Ground (Harford) | W3: Augusta (Kennebec) | X3: Adrian (Lenawee) | Y3: Adams (Mower) | Z3: Advance (Stoddard) | AA3: Aberdeen (Monroe) | AB3: Alberton (Mineral) | AC3: Advance (Davie) | AD3: Adams (Walsh) | AE3: Adams (Gage) | AF3: Blodgett Landing (Merrimack) | AG3: Allendale (Bergen) | AH3: Abiquiu (Rio Arriba) | AI3: Austin (Lander) | AJ3: Adams (Jefferson) | AK3: Ada (Hardin) | AL3: Ada (Pontotoc) | AM3: Adams (Umatilla) | AN3: Abbottstown (Adams) | AO3: Adjuntas (Adjuntas) | AP3: Bradford (Washington) | AQ3: Aiken (Aiken) | AR3: Agar (Sully) | AS3: Adamsville (McNairy) | AT3: Abernathy (Lubbock) | AU3: Alta (Salt Lake) | AV3: Accomac (Accomack) | AW3: Ascutney (Windsor) | AX3: Aberdeen Gardens (Grays Harbor) | AY3: Abrams (Oconto) | AZ3: Addison (Webster) | BA3: Albany (Albany) | BD3: AK | BE3: Akhiok (Kodiak Island) | BF3: 56.945 | BG3: -154.2151 | BI3: 18 | BJ3: -66.25 | BK3: 64 | BL3: 14 | BM3: 36 | BS3: -126.25 | BT3: 24 | BU3: 46.3 | BV3: 12.1 | BW3: 46.2 | BX3: 5.3 | BY3: 52 | BZ3: 8 | CA3: 1886.3204
A4: 40-34 | B4: Akiachak (Bethel) | C4: Adamsville (Jefferson) | D4: Alicia (Lawrence) | E4: Ak Chin (Pima) | F4: Acton (Los Angeles) | G4: Aguilar (Las Animas) | H4: Bantam (Litchfield) | J4: Ardentown (New Castle) | K4: Alafaya (Orange) | L4: Adairsville (Bartow) | M4: Ainaloa (Hawaii) | N4: Adair (Guthrie) | O4: Albion (Cassia) | P4: Addieville (Washington) | Q4: Akron (Fulton) | R4: Ada (Ottawa) | S4: Albany (Clinton) | T4: Addis (West Baton Rouge) | U4: Amesbury Town (Essex) | V4: Accident (Garrett) | W4: Bangor (Penobscot) | X4: Advance (Charlevoix) | Y4: Adrian (Nobles) | Z4: Affton (St. Louis) | AA4: Ackerman (Choctaw) | AB4: Alder (Madison) | AC4: Ahoskie (Hertford) | AD4: Alamo (Williams) | AE4: Ainsworth (Brown) | AF4: Center Ossipee (Carroll) | AG4: Allenhurst (Monmouth) | AH4: Acomita Lake (Cibola) | AI4: Baker (White Pine) | AJ4: Adams Center (Jefferson) | AK4: Adamsville (Muskingum) | AL4: Adair (Mayes) | AM4: Adrian (Malheur) | AN4: Ackermanville (Northampton) | AO4: Aguada (Aguada) | AP4: Carolina (Washington) | AQ4: Alcolu (Clarendon) | AR4: Agency Village (Roberts) | AS4: Alamo (Crockett) | AT4: Abilene (Taylor) | AU4: Altamont (Duchesne) | AV4: Adwolf (Smyth) | AW4: Barre (Washington) | AX4: Acme (Whatcom) | AY4: Adams (Adams) | AZ4: Albright (Preston) | BA4: Albin (Laramie) | BD4: AK | BE4: Akiachak (Bethel) | BF4: 60.9209 | BG4: -161.402 | BI4: 18 | BJ4: -65.625 | BK4: 64 | BL4: 14 | BM4: 36 | BS4: -126.25 | BT4: 24.5 | BU4: 45.9 | BV4: 11.8 | BW4: 45.8 | BX4: 5.2 | BY4: 46 | BZ4: 8 | CA4: 1847.9036
A5: 40-28 | B5: Akiak (Bethel) | C5: Addison (Winston) | D5: Allport (Lonoke) | E5: Ak-Chin Village (Pinal) | F5: Adelanto (San Bernardino) | G5: Air Force Academy (El Paso) | H5: Bethlehem Village (Litchfield) | J5: Bear (New Castle) | K5: Alford (Jackson) | L5: Adel (Cook) | M5: Anahola (Kauai) | N5: Adel (Dallas) | O5: American Falls (Power) | P5: Addison (DuPage) | Q5: Alamo (Montgomery) | R5: Admire (Lyon) | S5: Alexandria (Campbell) | T5: Albany (Livingston) | U5: Amherst Center (Hampshire) | V5: Accokeek (Prince George's) | W5: Bath (Sagadahoc) | X5: Ahmeek (Keweenaw) | Y5: Afton (Washington) | Z5: Agency (Buchanan) | AA5: Alcorn State University (Claiborne) | AB5: Alzada (Carter) | AC5: Alamance (Alamance) | AD5: Alexander (McKenzie) | AE5: Albion (Boone) | AF5: Center Sandwich (Carroll) | AG5: Allentown (Monmouth) | AH5: Adelino (Valencia) | AI5: Battle Mountain (Lander) | AJ5: Addison (Steuben) | AK5: Addyston (Hamilton) | AL5: Addington (Jefferson) | AM5: Albany (Linn) | AN5: Adamsburg (Westmoreland) | AO5: Aguadilla (Aguadilla) | AP5: Central Falls (Providence) | AQ5: Allendale (Allendale) | AR5: Akaska (Walworth) | AS5: Alcoa (Blount) | AT5: Abram (Hidalgo) | AU5: Alton (Kane) | AV5: Alberta (Brunswick) | AW5: Barton (Orleans) | AX5: Addy (Stevens) | AY5: Adell (Sheboygan) | AZ5: Alderson (Greenbrier) | BA5: Alcova (Natrona) | BD5: AK | BE5: Akiak (Bethel) | BF5: 60.9061 | BG5: -161.2122 | BI5: 18.5 | BJ5: -66.875 | BK5: 64 | BL5: 14 | BM5: 36 | BS5: -126.25 | BT5: 25 | BU5: 45.5 | BV5: 11.5 | BW5: 45.4 | BX5: 5.2 | BY5: 46 | BZ5: 8 | CA5: 1811.2866
A6: 40-22 | B6: Akutan (Aleutians East) | C6: Akron (Hale) | D6: Alma (Crawford) | E6: Alamo Lake (La Paz) | F6: Adin (Modoc) | G6: Akron (Washington) | H6: Blue Hills (Hartford) | J6: Bellefonte (New Castle) | K6: Allentown (Santa Rosa) | L6: Adrian (Emanuel) | M6: Captain Cook (Hawaii) | N6: Afton (Union) | O6: Ammon (Bonneville) | P6: Adeline (Ogle) | Q6: Albany (Delaware) | R6: Agenda (Republic) | S6: Allen (Floyd) | T6: Alexandria (Rapides) | U6: Attleboro (Bristol) | V6: Adamstown (Frederick) | W6: Belfast (Waldo) | X6: Akron (Tuscola) | Y6: Aitkin (Aitkin) | Z6: Airport Drive (Jasper) | AA6: Algoma (Pontotoc) | AB6: Amsterdam (Gallatin) | AC6: Albemarle (Stanly) | AD6: Alice (Cass) | AE6: Alda (Hall) | AF6: Claremont (Sullivan) | AG6: Allenwood (Monmouth) | AH6: Agua Fria (Santa Fe) | AI6: Beatty (Nye) | AJ6: Afton (Chenango) | AK6: Adelphi (Ross) | AL6: Afton (Ottawa) | AM6: Aloha (Washington) | AN6: Adamstown (Lancaster) | AO6: Aguas Buenas (Aguas Buenas) | AP6: Chepachet (Providence) | AQ6: Anderson (Anderson) | AR6: Albee (Grant) | AS6: Alexandria (DeKalb) | AT6: Ackerly (Dawson) | AU6: Amalga (Cache) | AV6: Alexandria (Alexandria) | AW6: Beecher Falls (Essex) | AX6: Ahtanum (Yakima) | AY6: Albany (Green) | AZ6: Alum Creek (Lincoln) | BA6: Alpine (Lincoln) | BD6: AK | BE6: Akutan (Aleutians East) | BF6: 54.1594 | BG6: -165.7328 | BI6: 18.5 | BJ6: -66.25 | BK6: 64 | BL6: 14 | BM6: 36 | BS6: -126.25 | BT6: 25.5 | BU6: 45.2 | BV6: 11.2 | BW6: 45 | BX6: 5.1 | BY6: 46 | BZ6: 8 | CA6: 1775.9912
A7: 40-16 | B7: Alakanuk (Kusilvak) | C7: Alabaster (Shelby) | D7: Almyra (Arkansas) | E7: Ali Chuk (Pima) | F7: Agoura Hills (Los Angeles) | G7: Alamosa (Alamosa) | H7: Branford Center (New Haven) | J7: Bethany Beach (Sussex) | K7: Altamonte Springs (Seminole) | L7: Ailey (Montgomery) | M7: Discovery Harbour (Hawaii) | N7: Agency (Wapello) | O7: Arbon Valley (Power) | P7: Albany (Whiteside) | Q7: Albion (Noble) | R7: Agra (Phillips) | S7: Allensville (Todd) | T7: Ama (St. Charles) | U7: Baldwinville (Worcester) | V7: Adelphi (Prince George's) | W7: Biddeford (York) | X7: Alanson (Emmet) | Y7: Akeley (Hubbard) | Z7: Alba (Jasper) | AA7: Alligator (Bolivar) | AB7: Anaconda (Deer Lodge) | AC7: Alliance (Pamlico) | AD7: Almont (Morton) | AE7: Alexandria (Thayer) | AF7: Concord (Merrimack) | AG7: Alpha (Warren) | AH7: Alamillo (Socorro) | AI7: Beaverdam (Lincoln) | AJ7: Airmont (Rockland) | AK7: Adena (Jefferson) | AL7: Agra (Lincoln) | AM7: Alpine (Benton) | AN7: Adamsville (Crawford) | AO7: Aguas Claras (Ceiba) | AP7: Clayville (Providence) | AQ7: Andrews (Williamsburg) | AR7: Alcester (Union) | AS7: Algood (Putnam) | AT7: Addison (Dallas) | AU7: American Fork (Utah) | AV7: Allisonia (Pulaski) | AW7: Bellows Falls (Windham) | AX7: Airway Heights (Spokane) | AY7: Algoma (Kewaunee) | AZ7: Amherstdale (Logan) | BA7: Alpine Northeast (Lincoln) | BD7: AK | BE7: Alakanuk (Kusilvak) | BF7: 62.6902 | BG7: -164.6305 | BI7: 18.5 | BJ7: -65.625 | BK7: 64 | BL7: 14 | BM7: 36 | BS7: -126.25 | BT7: 26 | BU7: 44.9 | BV7: 11 | BW7: 44.7 | BX7: 5 | BY7: 46 | BZ7: 8 | CA7: 1742.9127
A8: 40-10 | B8: Alatna (Yukon-Koyukuk) | C8: Albertville (Marshall) | D8: Alpena (Boone) | E8: Ali Chukson (Pima) | F8: Agua Dulce (Los Angeles) | G8: Alamosa East (Alamosa) | H8: Bridgeport (Fairfield) | J8: Bethel (Sussex) | K8: Altha (Calhoun) | L8: Alamo (Wheeler) | M8: East Honolulu (Honolulu) | N8: Ainsworth (Washington) | O8: Arco (Butte) | P8: Albers (Clinton) | Q8: Alexandria (Madison) | R8: Albert (Barton) | S8: Anchorage (Jefferson) | T8: Amelia (St. Mary) | U8: Barnstable Town (Barnstable) | V8: Algonquin (Dorchester) | W8: Brewer (Penobscot) | X8: Alba (Antrim) | Y8: Albany (Stearns) | Z8: Albany (Gentry) | AA8: Amory (Monroe) | AB8: Antelope (Sheridan) | AC8: Altamahaw (Alamance) | AD8: Alsen (Cavalier) | AE8: Allen (Dixon) | AF8: Contoocook (Merrimack) | AG8: Alpine (Bergen) | AH8: Alamo (Socorro) | AI8: Bennett Springs (Lincoln) | AJ8: Akron (Erie) | AK8: Akron (Summit) | AL8: Akins (Sequoyah) | AM8: Alsea (Benton) | AN8: Addison (Somerset) | AO8: Aguilita (Juana Díaz) | AP8: Cranston (Providence) | AQ8: Antreville (Abbeville) | AR8: Alexandria (Hanson) | AS8: Allardt (Fentress) | AT8: Adrian (Oldham) | AU8: Aneth (San Juan) | AV8: Altavista (Campbell) | AW8: Burlington (Chittenden) | AX8: Albion (Whitman) | AY8: Allenton (Washington) | AZ8: Anawalt (McDowell) | BA8: Alpine Northwest (Lincoln) | BD8: AK | BE8: Alatna (Yukon-Koyukuk) | BF8: 66.5638 | BG8: -152.8392 | BI8: 19 | BJ8: -160 | BK8: 58 | BL8: 14 | BM8: 33 | BS8: -126.25 | BT8: 26.5 | BU8: 44.6 | BV8: 10.7 | BW8: 44.4 | BX8: 4.9 | BY8: 46 | BZ8: 8 | CA8: 1711.7884
A9: 40-4 | B9: Alcan Border (Southeast Fairbanks) | C9: Alexander City (Tallapoosa) | D9: Altheimer (Jefferson) | E9: Ali Molina (Pima) | F9: Aguanga (Riverside) | G9: Allenspark (Boulder) | H9: Bristol (Hartford) | J9: Blades (Sussex) | K9: Altoona (Lake) | L9: Alapaha (Berrien) | M9: Eden Roc (Hawaii) | N9: Akron (Plymouth) | O9: Arimo (Bannock) | P9: Albion (Edwards) | Q9: Alfordsville (Daviess) | R9: Alden (Rice) | S9: Annville (Jackson) | T9: Amite City (Tangipahoa) | U9: Beverly (Essex) | V9: Allen (Wicomico) | W9: Brunswick Station (Cumberland) | X9: Albion (Calhoun) | Y9: Albert Lea (Freeborn) | Z9: Aldrich (Polk) | AA9: Anguilla (Sharkey) | AB9: Arlee (Lake) | AC9: Andrews (Cherokee) | AD9: Ambrose (Divide) | AE9: Alliance (Box Butte) | AF9: Dover (Strafford) | AG9: Anderson (Warren) | AH9: Alamogordo (Otero) | AI9: Blue Diamond (Clark) | AJ9: Albany (Albany) | AK9: Albany (Athens) | AL9: Albany (Bryan) | AM9: Altamont (Klamath) | AN9: Akron (Lancaster) | AO9: Aibonito (Aibonito) | AP9: Cumberland Hill (Providence) | AQ9: Arcadia (Spartanburg) | AR9: Allen (Bennett) | AS9: Altamont (Grundy) | AT9: Agua Dulce (Nueces) | AU9: Annabella (Sevier) | AV9: Amelia Court House (Amelia) | AW9: Cambridge (Lamoille) | AX9: Alder (Pierce) | AY9: Allouez (Brown) | AZ9: Anmoore (Harrison) | BA9: Alta (Teton) | BD9: AK | BE9: Alcan Border (Southeast Fairbanks) | BF9: 62.6727 | BG9: -141.1321 | BI9: 19 | BJ9: -159.38 | BK9: 58 | BL9: 14 | BM9: 33 | BS9: -126.25 | BT9: 27 | BU9: 44.3 | BV9: 10.4 | BW9: 44 | BX9: 4.8 | BY9: 46 | BZ9: 8 | CA9: 1681.1238
A10: 40+2 | B10: Aleknagik (Dillingham) | C10: Alexandria (Calhoun) | D10: Altus (Franklin) | E10: Alpine (Apache) | F10: Ahwahnee (Madera) | G10: Alma (Park) | H10: Broad Brook (Hartford) | J10: Bowers (Kent) | K10: Alturas (Polk) | L10: Albany (Dougherty) | M10: Eleele (Kauai) | N10: Albert City (Buena Vista) | O10: Ashton (Fremont) | P10: Aledo (Mercer) | Q10: Alton (Crawford) | R10: Alexander (Rush) | S10: Anthoston (Henderson) | T10: Anacoco (Vernon) | U10: Bliss Corner (Bristol) | V10: Andrews AFB (Prince George's) | W10: Calais (Washington) | X10: Alden (Antrim) | Y10: Alberta (Stevens) | Z10: Alexandria (Clark) | AA10: Arcola (Washington) | AB10: Ashland (Rosebud) | AC10: Angier (Harnett) | AD10: Amenia (Cass) | AE10: Alma (Harlan) | AF10: East Merrimack (Hillsborough) | AG10: Andover (Sussex) | AH10: Albuquerque (Bernalillo) | AI10: Boulder City (Clark) | AJ10: Albertson (Nassau) | AK10: Alexandria (Licking) | AL10: Albion (Pushmataha) | AM10: Amity (Yamhill) | AN10: Alba (Bradford) | AO10: Alianza (Camuy) | AP10: East Providence (Providence) | AQ10: Arcadia Lakes (Richland) | AR10: Alpena (Jerauld) | AS10: Andersonville (Anderson) | AT10: Aguilares (Webb) | AU10: Antimony (Garfield) | AV10: Amherst (Amherst) | AW10: Derby Center (Orleans) | AX10: Alderton (Pierce) | AY10: Alma (Buffalo) | AZ10: Ansted (Fayette) | BA10: Antelope Hills (Natrona) | BD10: AK | BE10: Aleknagik (Dillingham) | BF10: 59.2946 | BG10: -158.6896 | BI10: 19 | BJ10: -158.75 | BK10: 58 | BL10: 14 | BM10: 33 | BS10: -126.25 | BT10: 27.5 | BU10: 43.9 | BV10: 10.1 | BW10: 43.7 | BX10: 4.6 | BY10: 46 | BZ10: 8 | CA10: 1649.4412
A11: 40+8 | B11: Aleneva (Kodiak Island) | C11: Aliceville (Pickens) | D11: Amagon (Jackson) | E11: Amado (Santa Cruz) | F11: Airport (Stanislaus) | G11: Alpine (Rio Grande) | H11: Byram (Fairfield) | J11: Bridgeville (Sussex) | K11: Alva (Lee) | L11: Aldora (Lamar) | M11: Ewa Beach (Honolulu) | N11: Albia (Monroe) | O11: Athol (Kootenai) | P11: Alexis (Warren) | Q11: Altona (DeKalb) | R11: Allen (Lyon) | S11: Arjay (Bell) | T11: Angie (Washington) | U11: Boston (Suffolk) | V11: Annapolis (Anne Arundel) | W11: Cape Neddick (York) | X11: Algonac (St. Clair) | Y11: Albertville (Wright) | Z11: Allendale (Worth) | AA11: Arnold Line (Lamar) | AB11: Augusta (Lewis and Clark) | AC11: Ansonville (Anson) | AD11: Amidon (Slope) | AE11: Alvo (Cass) | AF11: Franklin (Merrimack) | AG11: Annandale (Hunterdon) | AH11: Alcalde (Rio Arriba) | AI11: Bunkerville (Clark) | AJ11: Albion (Orleans) | AK11: Alger (Hardin) | AL11: Alderson (Pittsburg) | AM11: Annex (Malheur) | AN11: Albion (Erie) | AO11: Añasco (Añasco) | AP11: Foster Center (Providence) | AQ11: Arial (Pickens) | AR11: Altamont (Deuel) | AS11: Apison (Hamilton) | AT11: Airport Heights (Starr) | AU11: Apple Valley (Washington) | AV11: Annandale (Fairfax) | AW11: Derby Line (Orleans) | AX11: Alderwood Manor (Snohomish) | AY11: Alma Center (Jackson) | AZ11: Apple Grove (Mason) | BA11: Arapahoe (Fremont) | BD11: AK | BE11: Aleneva (Kodiak Island) | BF11: 58.059 | BG11: -152.9091 | BI11: 19 | BJ11: -158.13 | BK11: 58 | BL11: 14 | BM11: 33 | BS11: -126.25 | BT11: 28 | BU11: 43.6 | BV11: 9.8 | BW11: 43.3 | BX11: 4.6 | BY11: 46 | BZ11: 8 | CA11: 1616.3454
A12: 40+14 | B12: Allakaket (Yukon-Koyukuk) | C12: Allgood (Blount) | D12: Amity (Clark) | E12: Anegam (Pima) | F12: Alameda (Alameda) | G12: Altona (Boulder) | H12: Cannondale (Fairfield) | J12: Brookside (New Castle) | K12: Andrews (Levy) | L12: Allenhurst (Liberty) | M12: Ewa Gentry (Honolulu) | N12: Albion (Marshall) | O12: Atomic City (Bingham) | P12: Algonquin (McHenry) | Q12: Ambia (Benton) | R12: Alma (Wabaunsee) | S12: Arlington (Carlisle) | T12: Arabi (St. Bernard) | U12: Braintree Town (Norfolk) | V12: Annapolis Neck (Anne Arundel) | W12: Caribou (Aroostook) | X12: Allegan (Allegan) | Y12: Alden (Freeborn) | Z12: Allenville (Cape Girardeau) | AA12: Artesia (Lowndes) | AB12: Avon (Powell) | AC12: Apex (Wake) | AD12: Anamoose (McHenry) | AE12: Ames (Dodge) | AF12: Groveton (Coos) | AG12: Asbury (Warren) | AH12: Algodones (Sandoval) | AI12: Caliente (Lincoln) | AJ12: Alden (Erie) | AK12: Alliance (Stark) | AL12: Alex (Grady) | AM12: Antelope (Wasco) | AN12: Albrightsville (Carbon) | AO12: Animas (Arecibo) | AP12: Greene (Kent) | AQ12: Atlantic Beach (Horry) | AR12: Anderson (Minnehaha) | AS12: Ardmore (Giles) | AT12: Airport Road Addition (Brooks) | AU12: Aurora (Sevier) | AV12: Appalachia (Wise) | AW12: East Barre (Washington) | AX12: Alger (Skagit) | AY12: Almena (Barron) | AZ12: Arbovale (Pocahontas) | BA12: Arlington (Carbon) | BD12: AK | BE12: Allakaket (Yukon-Koyukuk) | BF12: 66.5506 | BG12: -152.627 | BI12: 19 | BJ12: -157.5 | BK12: 58 | BL12: 14 | BM12: 33 | BS12: -126.25 | BT12: 28.5 | BU12: 43.3 | BV12: 9.4 | BW12: 42.9 | BX12: 4.4 | BY12: 46 | BZ12: 8 | CA12: 1582.2045
A13: 46-46 | B13: Ambler (Northwest Arctic) | C13: Altoona (Etowah) | D13: Anthonyville (Crittenden) | E13: Antares (Mohave) | F13: Alamo (Contra Costa) | G13: Amherst (Phillips) | H13: Canton Valley (Hartford) | J13: Camden (Kent) | K13: Anna Maria (Manatee) | L13: Allentown (Twiggs) | M13: Ewa Villages (Honolulu) | N13: Alburnett (Linn) | O13: Bancroft (Caribou) | P13: Alhambra (Madison) | Q13: Amboy (Miami) | R13: Almena (Norton) | S13: Artemus (Knox) | T13: Arcadia (Bienville) | U13: Bridgewater (Plymouth) | V13: Antietam (Washington) | W13: Chisholm (Franklin) | X13: Allen (Hillsdale) | Y13: Aldrich (Wadena) | Z13: Alma (Lafayette) | AA13: Ashland (Benton) | AB13: Azure (Hill) | AC13: Aquadale (Stanly) | AD13: Aneta (Nelson) | AE13: Amherst (Buffalo) | AF13: Hampton Beach (Rockingham) | AG13: Asbury Park (Monmouth) | AH13: Angel Fire (Colfax) | AI13: Cal-Nev-Ari (Clark) | AJ13: Alexander (Genesee) | AK13: Alvordton (Williams) | AL13: Aline (Alfalfa) | AM13: Arlington (Gilliam) | AN13: Alburtis (Lehigh) | AO13: Anon Raices (Ponce) | AP13: Greenville (Providence) | AQ13: Awendaw (Charleston) | AR13: Andover (Day) | AS13: Arlington (Shelby) | AT13: Alamo (Hidalgo) | AU13: Avon (Cache) | AV13: Apple Mountain Lake (Warren) | AW13: East Burke (Caledonia) | AX13: Algona (King) | AY13: Almond (Portage) | AZ13: Athens (Mercer) | BA13: Arrowhead Springs (Sweetwater) | BD13: AK | BE13: Ambler (Northwest Arctic) | BF13: 67.0897 | BG13: -157.8725 | BI13: 19 | BJ13: -156.88 | BK13: 58 | BL13: 14 | BM13: 33 | BS13: -126.25 | BT13: 29 | BU13: 42.9 | BV13: 9.1 | BW13: 42.6 | BX13: 4.4 | BY13: 46 | BZ13: 8 | CA13: 1547.8679
A14: 46-40 | B14: Anaktuvuk Pass (North Slope) | C14: Andalusia (Covington) | D14: Antoine (Pike) | E14: Anthem (Maricopa) | F14: Albany (Alameda) | G14: Antonito (Conejos) | H14: Cheshire Village (New Haven) | J14: Cheswold (Kent) | K14: Apalachicola (Franklin) | L14: Alma (Bacon) | M14: Fern Acres (Hawaii) | N14: Alden (Hardin) | O14: Banks (Boise) | P14: Allendale (Wabash) | Q14: Americus (Tippecanoe) | R14: Alta Vista (Wabaunsee) | S14: Ashland (Boyd) | T14: Arnaudville (St. Landry) | U14: Brockton (Plymouth) | V14: Aquasco (Prince George's) | W14: Cousins Island (Cumberland) | X14: Allen Park (Wayne) | Y14: Alexandria (Douglas) | Z14: Altamont (Daviess) | AA14: Baldwyn (Lee) | AB14: Babb (Glacier) | AC14: Arapahoe (Pamlico) | AD14: Antler (Bottineau) | AE14: Anoka (Boyd) | AF14: Keene (Cheshire) | AG14: Ashland (Camden) | AH14: Animas (Hidalgo) | AI14: Carlin (Elko) | AJ14: Alexandria Bay (Jefferson) | AK14: Amanda (Fairfield) | AL14: Allen (Pontotoc) | AM14: Ashland (Jackson) | AN14: Aldan (Delaware) | AO14: Antón Ruíz (Humacao) | AP14: Harmony (Providence) | AQ14: Aynor (Horry) | AR14: Antelope (Todd) | AS14: Ashland City (Cheatham) | AT14: Alamo Heights (Bexar) | AU14: Ballard (Uintah) | AV14: Appomattox (Appomattox) | AW14: East Middlebury (Addison) | AX14: Allyn (Mason) | AY14: Altoona (Eau Claire) | AZ14: Auburn (Ritchie) | BA14: Arvada (Sheridan) | BD14: AK | BE14: Anaktuvuk Pass (North Slope) | BF14: 68.15 | BG14: -151.7162 | BI14: 19 | BJ14: -156.25 | BK14: 58 | BL14: 14 | BM14: 33 | BS14: -126.25 | BT14: 29.5 | BU14: 42.6 | BV14: 8.7 | BW14: 42.2 | BX14: 4.3 | BY14: 46 | BZ14: 8 | CA14: 1515.0814
A15: 46-34 | B15: Anchor Point (Kenai Peninsula) | C15: Anderson (Lauderdale) | D15: Arkadelphia (Clark) | E15: Apache Junction (Pinal) | F15: Albion (Mendocino) | G15: Applewood (Jefferson) | H15: Chester Center (Middlesex) | J15: Claymont (New Castle) | K15: Apollo Beach (Hillsborough) | L15: Alpharetta (Fulton) | M15: Fern Forest (Hawaii) | N15: Alexander (Franklin) | O15: Basalt (Bingham) | P15: Allenville (Moultrie) | Q15: Amo (Hendricks) | R15: Altamont (Labette) | S15: Auburn (Logan) | T15: Ashland (Natchitoches) | U15: Buzzards Bay (Barnstable) | V15: Arbutus (Baltimore) | W15: Cumberland Center (Cumberland) | X15: Allendale (Ottawa) | Y15: Alpha (Jackson) | Z15: Altenburg (Perry) | AA15: Bassfield (Jefferson Davis) | AB15: Bainville (Roosevelt) | AC15: Archdale (Randolph) | AD15: Ardoch (Walsh) | AE15: Anselmo (Custer) | AF15: Laconia (Belknap) | AG15: Atlantic City (Atlantic) | AH15: Anthony (Doña Ana) | AI15: Carson City (Carson City) | AJ15: Alfred (Allegany) | AK15: Amberley (Hamilton) | AL15: Altus (Jackson) | AM15: Astoria (Clatsop) | AN15: Alexandria (Huntingdon) | AO15: Arecibo (Arecibo) | AP15: Harrisville (Providence) | AQ15: Bamberg (Bamberg) | AR15: Arlington (Kingsbury) | AS15: Athens (McMinn) | AT15: Alba (Wood) | AU15: Bear River City (Box Elder) | AV15: Aquia Harbour (Stafford) | AW15: Enosburg Falls (Franklin) | AX15: Almira (Lincoln) | AY15: Amberg (Marinette) | AZ15: Aurora (Preston) | BA15: Atlantic City (Fremont) | BD15: AK | BE15: Anchor Point (Kenai Peninsula) | BF15: 59.7703 | BG15: -151.7052 | BI15: 19 | BJ15: -155.63 | BK15: 58 | BL15: 8 | BM15: 30 | BS15: -126.25 | BT15: 30 | BU15: 42.3 | BV15: 8.3 | BW15: 41.8 | BX15: 4.2 | BY15: 46 | BZ15: 8 | CA15: 1482.7223
A16: 46-28 | B16: Anchorage (Anchorage) | C16: Anniston (Calhoun) | D16: Arkansas City (Desha) | E16: Arivaca (Pima) | F16: Alderpoint (Humboldt) | G16: Arboles (Archuleta) | H16: Collinsville (Hartford) | J16: Clayton (Kent) | K16: Apopka (Orange) | L16: Alston (Montgomery) | M16: Haena (Kauai) | N16: Algona (Kossuth) | O16: Bellevue (Blaine) | P16: Allerton (Champaign) | Q16: Anderson (Madison) | R16: Alton (Osborne) | S16: Audubon Park (Jefferson) | T16: Athens (Claiborne) | U16: Cambridge (Middlesex) | V16: Arden on the Severn (Anne Arundel) | W16: Eastport (Washington) | X16: Alma (Gratiot) | Y16: Altura (Winona) | Z16: Alton (Oregon) | AA16: Batesville (Panola) | AB16: Baker (Fallon) | AC16: Archer Lodge (Johnston) | AD16: Argusville (Cass) | AE16: Ansley (Custer) | AF16: Lebanon (Grafton) | AG16: Atlantic Highlands (Monmouth) | AH16: Anton Chico (Guadalupe) | AI16: Carter Springs (Douglas) | AJ16: Allegany (Cattaraugus) | AK16: Amelia (Clermont) | AL16: Alva (Woods) | AM16: Athena (Umatilla) | AN16: Alfarata (Mifflin) | AO16: Arroyo (Arroyo) | AP16: Hope Valley (Washington) | AQ16: Barnwell (Barnwell) | AR16: Armour (Douglas) | AS16: Atoka (Tipton) | AT16: Albany (Shackelford) | AU16: Beaver (Beaver) | AV16: Arcola (Loudoun) | AW16: Essex Junction (Chittenden) | AX16: Altoona (Wahkiakum) | AY16: Amery (Polk) | AZ16: Bancroft (Putnam) | BA16: Auburn (Lincoln) | BD16: AK | BE16: Anchorage (Anchorage) | BF16: 61.1508 | BG16: -149.1091 | BI16: 19 | BJ16: -155 | BK16: 58 | BL16: 14 | BM16: 33 | BS16: -126.25 | BT16: 30.5 | BU16: 42 | BV16: 7.9 | BW16: 41.5 | BX16: 4.1 | BY16: 46 | BZ16: 2 | CA16: 1447.4143
A17: 46-22 | B17: Anderson (Denali) | C17: Arab (Marshall) | D17: Ash Flat (Sharp) | E17: Arivaca Junction (Pima) | F17: Alhambra (Los Angeles) | G17: Aristocrat Ranchettes (Weld) | H17: Conning Towers Nautilus Park (New London) | J17: Dagsboro (Sussex) | K17: Arcadia (DeSoto) | L17: Alto (Banks) | M17: Haiku-Pauwela (Maui) | N17: Alleman (Polk) | O17: Bennington (Bear Lake) | P17: Alma (Marion) | Q17: Andrews (Huntington) | R17: Altoona (Wilson) | S17: Augusta (Bracken) | T17: Atlanta (Winn) | U17: Chelsea (Suffolk) | V17: Arnold (Anne Arundel) | W17: Ellsworth (Hancock) | X17: Almont (Lapeer) | Y17: Alvarado (Marshall) | Z17: Amazonia (Andrew) | AA17: Bay Springs (Jasper) | AB17: Ballantine (Yellowstone) | AC17: Asheboro (Randolph) | AD17: Arnegard (McKenzie) | AE17: Arapahoe (Furnas) | AF17: Manchester (Hillsborough) | AG17: Audubon (Camden) | AH17: Anzac Village (Cibola) | AI17: Cold Springs (Washoe) | AJ17: Almond (Allegany) | AK17: Amesville (Athens) | AL17: Amber (Grady) | AM17: Aumsville (Marion) | AN17: Aliquippa (Beaver) | AO17: Bairoa La Veinticinco (Caguas) | AP17: Kingston (Washington) | AQ17: Batesburg-Leesville (Lexington) | AR17: Artas (Campbell) | AS17: Atwood (Carroll) | AT17: Aldine (Harris) | AU17: Benjamin (Utah) | AV17: Arlington (Arlington) | AW17: Graniteville (Washington) | AX17: Amanda Park (Grays Harbor) | AY17: Amherst (Portage) | AZ17: Barboursville (Cabell) | BA17: Baggs (Carbon) | BD17: AK | BE17: Anderson (Denali) | BF17: 64.3074 | BG17: -149.1562 | BI17: 19.5 | BJ17: -160 | BK17: 58 | BL17: 14 | BM17: 33 | BS17: -126.25 | BT17: 31 | BU17: 41.6 | BV17: 7.7 | BW17: 41 | BX17: 4 | BY17: 46 | BZ17: 2 | CA17: 1410.9397
A18: 46-16 | B18: Angoon (Hoonah-Angoon) | C18: Ardmore (Limestone) | D18: Ashdown (Little River) | E18: Arizona City (Pinal) | F18: Alhambra Valley (Contra Costa) | G18: Arriba (Lincoln) | H18: Cos Cob (Fairfield) | J18: Delaware City (New Castle) | K18: Archer (Alachua) | L18: Ambrose (Coffee) | M18: Halaula (Hawaii) | N18: Allerton (Wayne) | O18: Blackfoot (Bingham) | P18: Alorton (St. Clair) | Q18: Angola (Steuben) | R18: Americus (Lyon) | S18: Auxier (Floyd) | T18: Avondale (Jefferson) | U18: Chicopee (Hampden) | V18: Ashton-Sandy Spring (Montgomery) | W18: Falmouth Foreside (Cumberland) | X18: Alpena (Alpena) | Y18: Amboy (Blue Earth) | Z18: Amity (DeKalb) | AA18: Bay St. Louis (Hancock) | AB18: Basin (Jefferson) | AC18: Asheville (Buncombe) | AD18: Arthur (Cass) | AE18: Arcadia (Valley) | AF18: Melvin Village (Carroll) | AG18: Audubon Park (Camden) | AH18: Apache Creek (Catron) | AI18: Crescent Valley (Eureka) | AJ18: Altamont (Albany) | AK18: Amherst (Lorain) | AL18: Ames (Major) | AM18: Aurora (Marion) | AN18: Alleghenyville (Berks) | AO18: Bajadero (Arecibo) | AP18: Melville (Newport) | AQ18: Beaufort (Beaufort) | AR18: Artesian (Sanborn) | AS18: Auburntown (Cannon) | AT18: Aledo (Parker) | AU18: Benson (Cache) | AV18: Arrington (Nelson) | AW18: Greensboro Bend (Orleans) | AX18: Amboy (Clark) | AY18: Amherst Junction (Portage) | AZ18: Barrackville (Marion) | BA18: Bairoil (Sweetwater) | BD18: AK | BE18: Angoon (Hoonah-Angoon) | BF18: 57.455 | BG18: -134.4978 | BI18: 19.5 | BJ18: -159.38 | BK18: 58 | BL18: 14 | BM18: 33 | BS18: -126.25 | BT18: 31.5 | BU18: 41.2 | BV18: 7.3 | BW18: 40.6 | BX18: 3.9 | BY18: 46 | BZ18: 2 | CA18: 1375.5087
A19: 46-10 | B19: Aniak (Bethel) | C19: Argo (Jefferson) | D19: Atkins (Pope) | E19: Arizona Village (Mohave) | F19: Aliso Viejo (Orange) | G19: Arvada (Jefferson) | H19: Coventry Lake (Tolland) | J19: Delmar (Sussex) | K19: Aripeka (Pasco) | L19: Americus (Sumter) | M19: Halawa (Honolulu) | N19: Allison (Butler) | O19: Blanchard (Bonner) | P19: Alpha (Henry) | Q19: Arcadia (Hamilton) | R19: Andale (Sedgwick) | S19: Bancroft (Jefferson) | T19: Baker (East Baton Rouge) | U19: Cochituate (Middlesex) | V19: Aspen Hill (Montgomery) | W19: Gardiner (Kennebec) | X19: Alpha (Iron) | Y19: Andover (Anoka) | Z19: Amoret (Bates) | AA19: Beaumont (Perry) | AB19: Batavia (Flathead) | AC19: Ashley Heights (Hoke) | AD19: Ashley (McIntosh) | AE19: Archer (Merrick) | AF19: Milton Mills (Strafford) | AG19: Avalon (Cape May) | AH19: Aragon (Catron) | AI19: Crystal Bay (Washoe) | AJ19: Altmar (Oswego) | AK19: Amsterdam (Jefferson) | AL19: Amorita (Alfalfa) | AM19: Baker City (Baker) | AN19: Allenport (Washington) | AO19: Bajandas (Humacao) | AP19: Misquamicut (Washington) | AQ19: Belton (Anderson) | AR19: Ashland Heights (Pennington) | AS19: Baileyton (Greene) | AT19: Alfred (Jim Wells) | AU19: Beryl Junction (Iron) | AV19: Ashburn (Loudoun) | AW19: Hyde Park (Lamoille) | AX19: Ames Lake (King) | AY19: Angelica (Shawano) | AZ19: Bartley (McDowell) | BA19: Bar Nunn (Natrona) | BD19: AK | BE19: Aniak (Bethel) | BF19: 61.5817 | BG19: -159.5451 | BI19: 19.5 | BJ19: -158.75 | BK19: 58 | BL19: 14 | BM19: 33 | BS19: -126.25 | BT19: 32 | BU19: 40.9 | BV19: 7 | BW19: 40.2 | BX19: 3.8 | BY19: 46 | BZ19: 2 | CA19: 1339.3011
A20: 46-4 | B20: Anvik (Yukon-Koyukuk) | C20: Ariton (Dale) | D20: Aubrey (Lee) | E20: Arlington (Maricopa) | F20: Alleghany (Sierra) | G20: Aspen (Pitkin) | H20: Crystal Lake (Tolland) | J20: Dewey Beach (Sussex) | K20: Asbury Lake (Clay) | L20: Andersonville (Sumter) | M20: Haleiwa (Honolulu) | N20: Alta (Buena Vista) | O20: Bliss (Gooding) | P20: Alsey (Scott) | Q20: Argos (Marshall) | R20: Andover (Butler) | S20: Bandana (Ballard) | T20: Baldwin (St. Mary) | U20: Cordaville (Worcester) | V20: Baden (Prince George's) | W20: Hallowell (Kennebec) | X20: Amasa (Iron) | Y20: Angle Inlet (Lake of the Woods) | Z20: Amsterdam (Bates) | AA20: Beauregard (Copiah) | AB20: Bear Dance (Lake) | AC20: Askewville (Bertie) | AD20: Auburn (Walsh) | AE20: Arlington (Washington) | AF20: Mountain Lakes (Grafton) | AG20: Avenel (Middlesex) | AH20: Arenas Valley (Grant) | AI20: Dayton (Lyon) | AJ20: Amagansett (Suffolk) | AK20: Andersonville (Ross) | AL20: Anadarko (Caddo) | AM20: Bandon (Coos) | AN20: Allensville (Mifflin) | AO20: Barahona (Morovis) | AP20: Narragansett Pier (Washington) | AQ20: Belvedere (Aiken) | AR20: Ashton (Spink) | AS20: Baneberry (Jefferson) | AT20: Alice (Jim Wells) | AU20: Bicknell (Wayne) | AV20: Ashland (Hanover) | AW20: Island Pond (Essex) | AX20: Anacortes (Skagit) | AY20: Aniwa (Shawano) | AZ20: Bartow (Pocahontas) | BA20: Basin (Big Horn) | BD20: AK | BE20: Anvik (Yukon-Koyukuk) | BF20: 62.6541 | BG20: -160.214 | BI20: 19.5 | BJ20: -158.13 | BK20: 58 | BL20: 14 | BM20: 33 | BS20: -126.25 | BT20: 32.5 | BU20: 40.5 | BV20: 6.7 | BW20: 39.8 | BX20: 3.7 | BY20: 46 | BZ20: 2 | CA20: 1303.2512
A21: 46+2 | B21: Arctic Village (Yukon-Koyukuk) | C21: Arley (Winston) | D21: Augusta (Woodruff) | E21: Ash Fork (Yavapai) | F21: Allendale (Solano) | G21: Aspen Park (Jefferson) | H21: Danbury (Fairfield) | J21: Dover (Kent) | K21: Astatula (Lake) | L21: Appling (Columbia) | M21: Haliimaile (Maui) | N21: Alta Vista (Chickasaw) | O21: Bloomington (Bear Lake) | P21: Alsip (Cook) | Q21: Arlington (Rush) | R21: Anthony (Harper) | S21: Barbourmeade (Jefferson) | T21: Ball (Rapides) | U21: Dennis Port (Barnstable) | V21: Bagtown (Washington) | W21: Kittery Point (York) | X21: Ann Arbor (Washtenaw) | Y21: Annandale (Wright) | Z21: Anderson (McDonald) | AA21: Beechwood (Warren) | AB21: Bearcreek (Carbon) | AC21: Atkinson (Pender) | AD21: Ayr (Cass) | AE21: Arnold (Custer) | AF21: Nashua (Hillsborough) | AG21: Avon-by-the-Sea (Monmouth) | AH21: Arrey (Sierra) | AI21: Denio (Humboldt) | AJ21: Ames (Montgomery) | AK21: Andover (Ashtabula) | AL21: Antlers (Pushmataha) | AM21: Banks (Washington) | AN21: Allentown (Lehigh) | AO21: Barceloneta (Barceloneta) | AP21: Newport (Newport) | AQ21: Bennettsville (Marlboro) | AR21: Astoria (Deuel) | AS21: Banner Hill (Unicoi) | AT21: Alice Acres (Jim Wells) | AU21: Big Water (Kane) | AV21: Atkins (Smyth) | AW21: Jacksonville (Windham) | AX21: Anderson Island (Pierce) | AY21: Antigo (Langlade) | AZ21: Bath (Morgan) | BA21: Bear River (Uinta) | BD21: AK | BE21: Arctic Village (Yukon-Koyukuk) | BF21: 68.1421 | BG21: -145.4957 | BI21: 19.5 | BJ21: -157.5 | BK21: 58 | BL21: 14 | BM21: 33 | BS21: -126.25 | BT21: 33 | BU21: 40.1 | BV21: 6.5 | BW21: 39.4 | BX21: 3.5 | BY21: 46 | BZ21: 2 | CA21: 1267.9719
A22: 46+8 | B22: Atka (Aleutians West) | C22: Ashford (Houston) | D22: Austin (Lonoke) | E22: Avenue B and C (Yuma) | F22: Allensworth (Tulare) | G22: Atwood (Logan) | H22: Danielson (Windham) | J22: Dover Base Housing (Kent) | K22: Astor (Lake) | L22: Arabi (Crisp) | M22: Hana (Maui) | N22: Alton (Sioux) | O22: Boise (Ada) | P22: Altamont (Effingham) | Q22: Ashley (DeKalb) | R22: Arcadia (Crawford) | S22: Barbourville (Knox) | T22: Banks Springs (Caldwell) | U22: Devens (Worcester) | V22: Bakersville (Washington) | W22: Lake Arrowhead (York) | X22: Applegate (Sanilac) | Y22: Anoka (Anoka) | Z22: Annada (Pike) | AA22: Belmont (Tishomingo) | AB22: Beaver Creek (Hill) | AC22: Atlantic (Carteret) | AD22: Balfour (McHenry) | AE22: Arthur (Arthur) | AF22: North Conway (Carroll) | AG22: Barclay (Camden) | AH22: Arroyo Hondo (Taos) | AI22: Double Spring (Douglas) | AJ22: Amityville (Suffolk) | AK22: Anna (Shelby) | AL22: Apache (Caddo) | AM22: Barlow (Clackamas) | AN22: Allenwood (Union) | AO22: Barranquitas (Barranquitas) | AP22: Newport East (Newport) | AQ22: Berea (Greenville) | AR22: Aurora (Brookings) | AS22: Bartlett (Shelby) | AT22: Allen (Collin) | AU22: Blanding (San Juan) | AV22: Atlantic (Accomack) | AW22: Jeffersonville (Lamoille) | AX22: Arlington (Snohomish) | AY22: Appleton (Outagamie) | AZ22: Bayard (Grant) | BA22: Bedford (Lincoln) | BD22: AK | BE22: Atka (Aleutians West) | BF22: 52.2301 | BG22: -174.2133 | BI22: 19.5 | BJ22: -156.88 | BK22: 58 | BL22: 14 | BM22: 33 | BS22: -126.25 | BT22: 33.5 | BU22: 39.8 | BV22: 6 | BW22: 39 | BX22: 3.4 | BY22: 40 | BZ22: 2 | CA22: 1231.8481
A23: 46+14 | B23: Atmautluak (Bethel) | C23: Ashland (Clay) | D23: Avilla (Saline) | E23: Avondale (Maricopa) | F23: Almanor (Plumas) | G23: Ault (Weld) | H23: Deep River Center (Middlesex) | J23: Edgemoor (New Castle) | K23: Atlantic Beach (Duval) | L23: Aragon (Polk) | M23: Hanalei (Kauai) | N23: Altoona (Polk) | O23: Bonners Ferry (Boundary) | P23: Alto Pass (Union) | Q23: Atlanta (Hamilton) | R23: Argonia (Sumner) | S23: Bardstown (Nelson) | T23: Barataria (Jefferson) | U23: East Dennis (Barnstable) | V23: Ballenger Creek (Frederick) | W23: Lewiston (Androscoggin) | X23: Arcadia (Manistee) | Y23: Apple Valley (Dakota) | Z23: Annapolis (Iron) | AA23: Belzoni (Humphreys) | AB23: Belfry (Carbon) | AC23: Atlantic Beach (Carteret) | AD23: Balta (Pierce) | AE23: Ashland (Saunders) | AF23: North Haverhill (Grafton) | AG23: Barnegat Light (Ocean) | AH23: Arroyo Seco (Taos) | AI23: Dry Valley (Lincoln) | AJ23: Amsterdam (Montgomery) | AK23: Ansonia (Darke) | AL23: Arapaho (Custer) | AM23: Barview (Coos) | AN23: Allison (Fayette) | AO23: Bartolo (Río Grande) | AP23: Pascoag (Providence) | AQ23: Bethune (Kershaw) | AR23: Aurora Center (Aurora) | AS23: Baxter (Putnam) | AT23: Alma (Ellis) | AU23: Bluebell (Duchesne) | AV23: Augusta Springs (Augusta) | AW23: Jericho (Chittenden) | AX23: Arlington Heights (Snohomish) | AY23: Arcadia (Trempealeau) | AZ23: Beards Fork (Fayette) | BA23: Bessemer Bend (Natrona) | BD23: AK | BE23: Atmautluak (Bethel) | BF23: 60.8622 | BG23: -162.2858 | BI23: 19.5 | BJ23: -156.25 | BK23: 58 | BL23: 14 | BM23: 33 | BS23: -126.25 | BT23: 34 | BU23: 39.4 | BV23: 5.7 | BW23: 38.6 | BX23: 3.3 | BY23: 40 | BZ23: 2 | CA23: 1195.5839
A24: 52-46 | B24: Atqasuk (North Slope) | C24: Ashville (St. Clair) | D24: Avoca (Benton) | E24: Avra Valley (Pima) | F24: Alondra Park (Los Angeles) | G24: Aurora (Adams) | H24: Derby (New Haven) | J24: Ellendale (Sussex) | K24: Atlantis (Palm Beach) | L24: Arcade (Jackson) | M24: Hanamaulu (Kauai) | N24: Alvord (Lyon) | O24: Bovill (Latah) | P24: Alton (Madison) | Q24: Attica (Fountain) | R24: Arkansas City (Cowley) | S24: Bardwell (Carlisle) | T24: Basile (Evangeline) | U24: East Douglas (Worcester) | V24: Baltimore (Baltimore) | W24: Lisbon Falls (Androscoggin) | X24: Argentine (Genesee) | Y24: Appleton (Swift) | Z24: Anniston (Mississippi) | AA24: Benoit (Bolivar) | AB24: Belgrade (Gallatin) | AC24: Aulander (Bertie) | AD24: Bantry (McHenry) | AE24: Ashton (Sherman) | AF24: North Walpole (Cheshire) | AG24: Barrington (Camden) | AH24: Artesia (Eddy) | AI24: Dyer (Esmeralda) | AJ24: Andover (Allegany) | AK24: Antioch (Monroe) | AL24: Arcadia (Oklahoma) | AM24: Bay City (Tillamook) | AN24: Allison Park (Allegheny) | AO24: Bayamón (Bayamón) | AP24: Pawtucket (Providence) | AQ24: Bishopville (Lee) | AR24: Avon (Bon Homme) | AS24: Bean Station (Grainger) | AT24: Alpine (Brewster) | AU24: Bluff (San Juan) | AV24: Bailey's Crossroads (Fairfax) | AW24: Johnson (Lamoille) | AX24: Artondale (Pierce) | AY24: Arena (Iowa) | AZ24: Beaver (Raleigh) | BA24: Beulah (Crook) | BD24: AK | BE24: Atqasuk (North Slope) | BF24: 70.481 | BG24: -157.3835 | BI24: 19.5 | BJ24: -155.63 | BK24: 58 | BL24: 2 | BM24: 27 | BS24: -126.25 | BT24: 34.5 | BU24: 39 | BV24: 5.4 | BW24: 38.1 | BX24: 3.1 | BY24: 40 | BZ24: 2 | CA24: 1158.5506
A25: 52-40 | B25: Attu Station (Aleutians West) | C25: Athens (Limestone) | D25: Bald Knob (White) | E25: Aztec (Yuma) | F25: Alpaugh (Tulare) | G25: Avon (Eagle) | H25: East Brooklyn (Windham) | J25: Elsmere (New Castle) | K25: Auburndale (Polk) | L25: Argyle (Clinch) | M25: Hanapepe (Kauai) | N25: Amana (Iowa) | O25: Buhl (Twin Falls) | P25: Altona (Knox) | Q25: Auburn (DeKalb) | R25: Arlington (Reno) | S25: Barlow (Ballard) | T25: Baskin (Franklin) | U25: East Falmouth (Barnstable) | V25: Baltimore Highlands (Baltimore) | W25: Little Falls (Cumberland) | X25: Armada (Macomb) | Y25: Arco (Lincoln) | Z25: Appleton City (St. Clair) | AA25: Bentonia (Yazoo) | AB25: Belknap (Sanders) | AC25: Aurora (Beaufort) | AD25: Barney (Richland) | AE25: Aten (Cedar) | AF25: North Woodstock (Grafton) | AG25: Bay Head (Ocean) | AH25: Atoka (Eddy) | AI25: East Valley (Douglas) | AJ25: Angelica (Allegany) | AK25: Antwerp (Paulding) | AL25: Ardmore (Carter) | AM25: Bayside Gardens (Tillamook) | AN25: Allport (Clearfield) | AO25: Benítez (Canóvanas) | AP25: Providence (Providence) | AQ25: Blacksburg (Cherokee) | AR25: Badger (Kingsbury) | AS25: Beersheba Springs (Grundy) | AT25: Alto (Cherokee) | AU25: Bluffdale (Salt Lake) | AV25: Baskerville (Mecklenburg) | AW25: Ludlow (Windsor) | AX25: Ashford (Pierce) | AY25: Argonne (Forest) | AZ25: Beckley (Raleigh) | BA25: Big Horn (Sheridan) | BD25: AK | BE25: Attu Station (Aleutians West) | BF25: 52.8955 | BG25: 173.123 | BI25: 19.5 | BJ25: -155 | BK25: 58 | BL25: 8 | BM25: 30 | BS25: -126.25 | BT25: 35 | BU25: 38.6 | BV25: 5.1 | BW25: 37.7 | BX25: 3 | BY25: 40 | BZ25: 2 | CA25: 1120.7182
A26: 52-34 | B26: Badger (Fairbanks North Star) | C26: Atmore (Escambia) | D26: Banks (Bradley) | E26: Bagdad (Yavapai) | F26: Alpine (San Diego) | G26: Avondale (Pueblo) | H26: Essex Village (Middlesex) | J26: Farmington (Kent) | K26: Aucilla (Jefferson) | L26: Arlington (Calhoun) | M26: Hauula (Honolulu) | N26: Ames (Story) | O26: Burley (Cassia) | P26: Alvan (Vermilion) | Q26: Aurora (Dearborn) | R26: Arma (Crawford) | S26: Beattyville (Lee) | T26: Bastrop (Morehouse) | U26: East Harwich (Barnstable) | V26: Barclay (Queen Anne's) | W26: Littlejohn Island (Cumberland) | X26: Ashley (Gratiot) | Y26: Arden Hills (Ramsey) | Z26: Arbela (Scotland) | AA26: Beulah (Bolivar) | AB26: Belt (Cascade) | AC26: Autryville (Sampson) | AD26: Barton (Pierce) | AE26: Atkinson (Holt) | AF26: Pinardville (Hillsborough) | AG26: Bayonne (Hudson) | AH26: Aztec (San Juan) | AI26: Elko (Elko) | AJ26: Angola (Erie) | AK26: Apple Creek (Wayne) | AL26: Arkoma (Le Flore) | AM26: Beatty (Klamath) | AN26: Almedia (Columbia) | AO26: Betances (Cabo Rojo) | AP26: Quonochontaug (Washington) | AQ26: Blackville (Barnwell) | AR26: Baltic (Minnehaha) | AS26: Bell Buckle (Bedford) | AT26: Alto Bonito Heights (Starr) | AU26: Bonanza (Uintah) | AV26: Bassett (Henry) | AW26: Lyndonville (Caledonia) | AX26: Asotin (Asotin) | AY26: Argyle (Lafayette) | AZ26: Beech Bottom (Brooke) | BA26: Big Piney (Sublette) | BD26: AK | BE26: Badger (Fairbanks North Star) | BF26: 64.8006 | BG26: -147.3877 | BI26: 20 | BJ26: -160 | BK26: 58 | BL26: 14 | BM26: 33 | BS26: -126.25 | BT26: 35.5 | BU26: 38.2 | BV26: 4.7 | BW26: 37.2 | BX26: 2.9 | BY26: 40 | BZ26: 2 | CA26: 1083.8037
A27: 52-28 | B27: Bear Creek (Kenai Peninsula) | C27: Attalla (Etowah) | D27: Barling (Sebastian) | E27: Bear Flat (Gila) | F27: Alpine Village (Alpine) | G27: Bark Ranch (Boulder) | H27: Falls Village (Litchfield) | J27: Felton (Kent) | K27: Avalon (Santa Rosa) | L27: Arnoldsville (Oglethorpe) | M27: Hawaiian Acres (Hawaii) | N27: Anamosa (Jones) | O27: Butte City (Butte) | P27: Amboy (Lee) | Q27: Austin (Scott) | R27: Asherville (Mitchell) | S27: Beaver Dam (Ohio) | T27: Baton Rouge (East Baton Rouge) | U27: East Pepperell (Middlesex) | V27: Barnesville (Montgomery) | W27: North Windham (Cumberland) | X27: Athens (Calhoun) | Y27: Argyle (Marshall) | Z27: Arbyrd (Dunklin) | AA27: Big Creek (Calhoun) | AB27: Biddle (Powder River) | AC27: Avery Creek (Buncombe) | AD27: Bathgate (Pembina) | AE27: Atlanta (Phelps) | AF27: Portsmouth (Rockingham) | AG27: Beach Haven (Ocean) | AH27: Bayard (Grant) | AI27: Ely (White Pine) | AJ27: Angola on the Lake (Erie) | AK27: Apple Valley (Knox) | AL27: Armstrong (Bryan) | AM27: Beaver (Tillamook) | AN27: Alsace Manor (Berks) | AO27: Boquerón (Cabo Rojo) | AP27: Valley Falls (Providence) | AQ27: Blenheim (Marlboro) | AR27: Bancroft (Kingsbury) | AS27: Belle Meade (Davidson) | AT27: Alton (Hidalgo) | AU27: Boulder (Garfield) | AV27: Basye (Shenandoah) | AW27: Manchester (Bennington) | AX27: Auburn (King) | AY27: Arkansaw (Pepin) | AZ27: Belington (Barbour) | BA27: Bondurant (Sublette) | BD27: AK | BE27: Bear Creek (Kenai Peninsula) | BF27: 60.2071 | BG27: -149.3524 | BI27: 20 | BJ27: -159.38 | BK27: 58 | BL27: 14 | BM27: 33 | BS27: -126.25 | BT27: 36 | BU27: 37.8 | BV27: 4.3 | BW27: 36.8 | BX27: 2.7 | BY27: 40 | BZ27: 2 | CA27: 1048.1197
A28: 52-22 | B28: Beaver (Yukon-Koyukuk) | C28: Auburn (Lee) | D28: Bassett (Mississippi) | E28: Beaver Dam (Mohave) | F28: Alta (Placer) | G28: Basalt (Eagle) | H28: Fenwick (Middlesex) | J28: Fenwick Island (Sussex) | K28: Aventura (Miami-Dade) | L28: Ashburn (Turner) | M28: Hawaiian Beaches (Hawaii) | N28: Anderson (Fremont) | O28: Caldwell (Canyon) | P28: Anchor (McLean) | Q28: Avilla (Noble) | R28: Ashland (Clark) | S28: Bedford (Trimble) | T28: Bawcomville (Ouachita) | U28: East Sandwich (Barnstable) | V28: Barrelville (Allegany) | W28: Old Town (Penobscot) | X28: Atlanta (Montmorency) | Y28: Arlington (Sibley) | Z28: Arcadia (Iron) | AA28: Big Point (Jackson) | AB28: Big Arm (Lake) | AC28: Avon (Dare) | AD28: Beach (Golden Valley) | AE28: Auburn (Nemaha) | AF28: Rochester (Strafford) | AG28: Beach Haven West (Ocean) | AH28: Beclabito (San Juan) | AI28: Empire (Washoe) | AJ28: Antwerp (Jefferson) | AK28: Aquilla (Geauga) | AL28: Arnett (Ellis) | AM28: Beavercreek (Clackamas) | AN28: Altamont (Schuylkill) | AO28: Breñas (Vega Alta) | AP28: Wakefield-Peacedale (Washington) | AQ28: Bluffton (Beaufort) | AR28: Batesland (Oglala Lakota) | AS28: Bells (Crockett) | AT28: Alvarado (Johnson) | AU28: Bountiful (Davis) | AV28: Bayside (Accomack) | AW28: Manchester Center (Bennington) | AX28: Bainbridge Island (Kitsap) | AY28: Arkdale (Adams) | AZ28: Belle (Kanawha) | BA28: Boulder (Sublette) | BD28: AK | BE28: Beaver (Yukon-Koyukuk) | BF28: 66.383 | BG28: -147.3219 | BI28: 20 | BJ28: -158.75 | BK28: 58 | BL28: 14 | BM28: 33 | BS28: -126.25 | BT28: 36.5 | BU28: 37.4 | BV28: 4 | BW28: 36.4 | BX28: 2.6 | BY28: 40 | BZ28: 2 | CA28: 1010.1161
A29: 52-16 | B29: Beluga (Kenai Peninsula) | C29: Autaugaville (Autauga) | D29: Batesville (Independence) | E29: Beaver Valley (Gila) | F29: Alta Sierra (Nevada) | G29: Battlement Mesa (Garfield) | H29: Gales Ferry (New London) | J29: Frankford (Sussex) | K29: Avon Park (Highlands) | L29: Athens (Clarke) | M29: Hawaiian Ocean View (Hawaii) | N29: Andover (Clinton) | O29: Cambridge (Washington) | P29: Andalusia (Rock Island) | Q29: Avoca (Lawrence) | R29: Assaria (Saline) | S29: Beech Grove (McLean) | T29: Bayou Blue (Lafourche) | U29: Easthampton Town (Hampshire) | V29: Barton (Allegany) | W29: Portland (Cumberland) | X29: Attica (Lapeer) | Y29: Ashby (Grant) | Z29: Archie (Cass) | AA29: Biloxi (Harrison) | AB29: Big Sandy (Chouteau) | AC29: Ayden (Pitt) | AD29: Belcourt (Rolette) | AE29: Aurora (Hamilton) | AF29: Sanbornville (Carroll) | AG29: Beachwood (Ocean) | AH29: Belen (Valencia) | AI29: Enterprise (Clark) | AJ29: Apalachin (Tioga) | AK29: Arcadia (Hancock) | AL29: Arpelar (Pittsburg) | AM29: Beaverton (Washington) | AN29: Altoona (Blair) | AO29: Buena Vista (Arroyo) | AP29: Warwick (Kent) | AQ29: Blythewood (Richland) | AR29: Bath (Brown) | AS29: Benton (Polk) | AT29: Alvin (Brazoria) | AU29: Brian Head (Iron) | AV29: Bealeton (Fauquier) | AW29: Marshfield (Washington) | AX29: Bangor Base (Kitsap) | AY29: Arlington (Columbia) | AZ29: Belmont (Pleasants) | BA29: Boulder Flats (Fremont) | BD29: AK | BE29: Beluga (Kenai Peninsula) | BF29: 61.1869 | BG29: -151.1637 | BI29: 20 | BJ29: -158.13 | BK29: 58 | BL29: 14 | BM29: 33 | BS29: -126.25 | BT29: 37 | BU29: 37 | BV29: 3.5 | BW29: 35.9 | BX29: 2.5 | BY29: 40 | BZ29: 2 | CA29: 969.4405
A30: 52-10 | B30: Bethel (Bethel) | C30: Avon (Houston) | D30: Bauxite (Saline) | E30: Benson (Cochise) | F30: Altadena (Los Angeles) | G30: Bayfield (La Plata) | H30: Georgetown (Fairfield) | J30: Frederica (Kent) | K30: Azalea Park (Orange) | L30: Atlanta (Fulton) | M30: Hawaiian Paradise Park (Hawaii) | N30: Andrew (Jackson) | O30: Carey (Blaine) | P30: Andover (Henry) | Q30: Avon (Hendricks) | R30: Atchison (Atchison) | S30: Beechmont (Muhlenberg) | T30: Bayou Cane (Terrebonne) | U30: Everett (Middlesex) | V30: Bartonsville (Frederick) | W30: Presque Isle (Aroostook) | X30: Au Gres (Arenac) | Y30: Askov (Pine) | Z30: Arcola (Dade) | AA30: Blue Mountain (Tippah) | AB30: Big Sky (Gallatin) | AC30: Badin (Stanly) | AD30: Belfield (Stark) | AE30: Avoca (Cass) | AF30: Seabrook Beach (Rockingham) | AG30: Beattystown (Warren) | AH30: Bent (Otero) | AI30: Eureka (Eureka) | AJ30: Aquebogue (Suffolk) | AK30: Arcanum (Darke) | AL30: Asher (Pottawatomie) | AM30: Bellfountain (Benton) | AN30: Ambler (Montgomery) | AO30: Búfalo (Barceloneta) | AP30: Watch Hill (Washington) | AQ30: Boiling Springs (Spartanburg) | AR30: Bath Corner (Brown) | AS30: Berry Hill (Davidson) | AT30: Alvord (Wise) | AU30: Brigham City (Box Elder) | AV30: Bedford (Bedford) | AW30: Montpelier (Washington) | AX30: Banks Lake South (Grant) | AY30: Arpin (Wood) | AZ30: Belva (Nicholas) | BA30: Brookhurst (Natrona) | BD30: AK | BE30: Bethel (Bethel) | BF30: 60.7928 | BG30: -161.7917 | BI30: 20 | BJ30: -157.5 | BK30: 58 | BL30: 14 | BM30: 33 | BS30: -126.25 | BT30: 37.5 | BU30: 36.6 | BV30: 3 | BW30: 35.4 | BX30: 2.4 | BY30: 40 | BZ30: 2 | CA30: 930.7185
A31: 52-4 | B31: Bettles (Yukon-Koyukuk) | C31: Axis (Mobile) | D31: Bay (Craighead) | E31: Beyerville (Santa Cruz) | F31: Alto (Marin) | G31: Bennett (Adams) | H31: Glastonbury Center (Hartford) | J31: Georgetown (Sussex) | K31: Babson Park (Polk) | L31: Attapulgus (Decatur) | M31: Hawi (Hawaii) | N31: Anita (Cass) | O31: Cascade (Valley) | P31: Anna (Union) | Q31: Bainbridge (Putnam) | R31: Athol (Smith) | S31: Beechwood Village (Jefferson) | T31: Bayou Corne (Assumption) | U31: Fall River (Bristol) | V31: Beaver Creek (Washington) | W31: Rockland (Knox) | X31: Au Sable (Iosco) | Y31: Atwater (Kandiyohi) | Z31: Argyle (Osage) | AA31: Blue Springs (Union) | AB31: Big Timber (Sweet Grass) | AC31: Bailey (Nash) | AD31: Benedict (McLean) | AE31: Axtell (Kearney) | AF31: Somersworth (Strafford) | AG31: Beckett (Gloucester) | AH31: Berino (Doña Ana) | AI31: Fallon (Churchill) | AJ31: Arcade (Wyoming) | AK31: Archbold (Fulton) | AL31: Ashland (Pittsburg) | AM31: Bend (Deschutes) | AN31: Ambridge (Beaver) | AO31: Cabán (Aguadilla) | AP31: Weekapaug (Washington) | AQ31: Bonneau (Berkeley) | AR31: Belle Fourche (Butte) | AS31: Bethel Springs (McNairy) | AT31: Amada Acres (Starr) | AU31: Bryce Canyon City (Garfield) | AV31: Belle Haven (Accomack) | AW31: Morrisville (Lamoille) | AX31: Barberton (Clark) | AY31: Ashippun (Dodge) | AZ31: Benwood (Marshall) | BA31: Buffalo (Johnson) | BD31: AK | BE31: Bettles (Yukon-Koyukuk) | BF31: 66.9084 | BG31: -151.5369 | BI31: 20 | BJ31: -156.88 | BK31: 58 | BL31: 14 | BM31: 33 | BS31: -126.25 | BT31: 38 | BU31: 36.3 | BV31: 2.7 | BW31: 35 | BX31: 2.3 | BY31: 40 | BZ31: 2 | CA31: 900.8522
A32: 52+2 | B32: Big Delta (Southeast Fairbanks) | C32: Babbie (Covington) | D32: Bearden (Ouachita) | E32: Bisbee (Cochise) | F32: Alturas (Modoc) | G32: Berkley (Adams) | H32: Glenville (Fairfield) | J32: Glasgow (New Castle) | K32: Bagdad (Santa Rosa) | L32: Auburn (Barrow) | M32: Heeia (Honolulu) | N32: Ankeny (Polk) | O32: Castleford (Twin Falls) | P32: Annapolis (Crawford) | Q32: Bargersville (Johnson) | R32: Atlanta (Cowley) | S32: Belfry (Pike) | T32: Bayou Country Club (Lafourche) | U32: Fiskdale (Worcester) | V32: Bel Air (Harford) | W32: Saco (York) | X32: Auburn (Bay) | Y32: Audubon (Becker) | Z32: Arkoe (Nodaway) | AA32: Bogue Chitto (Neshoba) | AB32: Bigfork (Flathead) | AC32: Bakersville (Mitchell) | AD32: Bergen (McHenry) | AE32: Ayr (Adams) | AF32: South Hooksett (Merrimack) | AG32: Belford (Monmouth) | AH32: Bernalillo (Sandoval) | AI32: Fallon Station (Churchill) | AJ32: Ardsley (Westchester) | AK32: Arlington (Hancock) | AL32: Atoka (Atoka) | AM32: Bethany (Washington) | AN32: Amity Gardens (Berks) | AO32: Cabo Rojo (Cabo Rojo) | AP32: Woonsocket (Providence) | AQ32: Bonneau Beach (Berkeley) | AR32: Belvidere (Jackson) | AS32: Bethpage (Sumner) | AT32: Amargosa (Jim Wells) | AU32: Cache (Cache) | AV32: Bellwood (Chesterfield) | AW32: Newbury (Orange) | AX32: Baring (King) | AY32: Ashland (Ashland) | AZ32: Bergoo (Webster) | BA32: Burlington (Big Horn) | BD32: AK | BE32: Big Delta (Southeast Fairbanks) | BF32: 64.1486 | BG32: -145.7453 | BI32: 20 | BJ32: -156.25 | BK32: 58 | BL32: 14 | BM32: 33 | BS32: -126.25 | BT32: 38.5 | BU32: 36.1 | BV32: 2.4 | BW32: 34.8 | BX32: 2.2 | BY32: 40 | BZ32: 2 | CA32: 881.4891
A33: 52+8 | B33: Big Lake (Matanuska-Susitna) | C33: Baileyton (Cullman) | D33: Beaver (Carroll) | E33: Bitter Springs (Coconino) | F33: Alum Rock (Santa Clara) | G33: Berthoud (Larimer) | H33: Groton (New London) | J33: Greenville (New Castle) | K33: Bal Harbour (Miami-Dade) | L33: Augusta (Richmond) | M33: Hickam Housing (Honolulu) | N33: Anthon (Woodbury) | O33: Challis (Custer) | P33: Annawan (Henry) | Q33: Bass Lake (Starke) | R33: Attica (Harper) | S33: Bellefonte (Greenup) | T33: Bayou Gauche (St. Charles) | U33: Fitchburg (Worcester) | V33: Bel Air North (Harford) | W33: Sanford (York) | X33: Auburn Hills (Oakland) | Y33: Aurora (St. Louis) | Z33: Armstrong (Howard) | AA33: Bolton (Hinds) | AB33: Billings (Yellowstone) | AC33: Bald Head Island (Brunswick) | AD33: Berlin (LaMoure) | AE33: Bancroft (Cuming) | AF33: Suissevale (Carroll) | AG33: Belle Mead (Somerset) | AH33: Bibo (Cibola) | AI33: Fernley (Lyon) | AJ33: Argyle (Washington) | AK33: Arlington Heights (Hamilton) | AL33: Atwood (Hughes) | AM33: Biggs Junction (Sherman) | AN33: Ancient Oaks (Lehigh) | AO33: Cacao (Quebradillas) | AP33: Wyoming (Washington) | AQ33: Bowman (Orangeburg) | AR33: Beresford (Union) | AS33: Big Sandy (Benton) | AT33: Amarillo (Potter) | AU33: Cannonville (Garfield) | AV33: Belmont (Loudoun) | AW33: Newfane (Windham) | AX33: Barstow (Ferry) | AY33: Ashwaubenon (Brown) | AZ33: Berwind (McDowell) | BA33: Burns (Laramie) | BD33: AK | BE33: Big Lake (Matanuska-Susitna) | BF33: 61.526 | BG33: -149.9721 | BI33: 20 | BJ33: -155.63 | BK33: 58 | BL33: 8 | BM33: 30 | BS33: -126.25 | BT33: 39 | BU33: 35.9 | BV33: 2 | BW33: 34.6 | BX33: 2 | BY33: 40 | BZ33: 2 | CA33: 863.0881
A34: 52+14 | B34: Birch Creek (Yukon-Koyukuk) | C34: Bakerhill (Barbour) | D34: Beebe (White) | E34: Black Canyon City (Yavapai) | F34: Amador City (Amador) | G34: Bethune (Kit Carson) | H34: Groton Long Point (New London) | J34: Greenwood (Sussex) | K34: Baldwin (Duval) | L34: Austell (Cobb) | M34: Hilo (Hawaii) | N34: Aplington (Butler) | O34: Chubbuck (Bannock) | P34: Antioch (Lake) | Q34: Batesville (Ripley) | R34: Atwood (Rawlins) | S34: Bellemeade (Jefferson) | T34: Bayou Goula (Iberville) | U34: Forestdale (Barnstable) | V34: Bel Air South (Harford) | W34: South Eliot (York) | X34: Augusta (Kalamazoo) | Y34: Austin (Mower) | Z34: Arnold (Jefferson) | AA34: Booneville (Prentiss) | AB34: Birney (Rosebud) | AC34: Balfour (Henderson) | AD34: Berthold (Ward) | AE34: Barada (Richardson) | AF34: Suncook (Merrimack) | AG34: Belleplain (Cape May) | AH34: Black Rock (McKinley) | AI34: Fish Springs (Douglas) | AJ34: Arkport (Steuben) | AK34: Ashland (Ashland) | AL34: Avant (Osage) | AM34: Black Butte Ranch (Deschutes) | AN34: Annville (Lebanon) | AO34: Caguas (Caguas) | AQ34: Boykin (Kershaw) | AR34: Big Stone City (Grant) | AS34: Blaine (Grainger) | AT34: Amaya (Zavala) | AU34: Carbonville (Carbon) | AV34: Belmont Estates (Rockingham) | AW34: Newport (Orleans) | AX34: Basin City (Franklin) | AY34: Athens (Marathon) | AZ34: Bethany (Brooke) | BA34: Byron (Big Horn) | BD34: AK | BE34: Birch Creek (Yukon-Koyukuk) | BF34: 66.2686 | BG34: -145.8698 | BI34: 20 | BJ34: -155 | BK34: 58 | BL34: 14 | BM34: 33 | BS34: -126.25 | BT34: 39.5 | BU34: 35.6 | BV34: 1.6 | BW34: 34.2 | BX34: 1.9 | BY34: 40 | BZ34: -4 | CA34: 835.6138
A35: 58-46 | B35: Brevig Mission (Nome) | C35: Ballplay (Etowah) | D35: Beedeville (Jackson) | E35: Blackwater (Pinal) | F35: American Canyon (Napa) | G35: Beulah Valley (Pueblo) | H35: Guilford Center (New Haven) | J35: Harrington (Kent) | K35: Balm (Hillsborough) | L35: Avalon (Stephens) | M35: Holualoa (Hawaii) | N35: Arcadia (Carroll) | O35: Clark Fork (Bonner) | P35: Apple Canyon Lake (Jo Daviess) | Q35: Battle Ground (Tippecanoe) | R35: Auburn (Shawnee) | S35: Belleview (Boone) | T35: Bayou L'Ourse (Assumption) | U35: Framingham (Middlesex) | V35: Beltsville (Prince George's) | W35: South Paris (Oxford) | X35: Bad Axe (Huron) | Y35: Avoca (Murray) | Z35: Arrow Point (Barry) | AA35: Boyle (Bolivar) | AB35: Black Eagle (Cascade) | AC35: Banner Elk (Avery) | AD35: Beulah (Mercer) | AE35: Barneston (Gage) | AF35: Tilton Northfield (Belknap) | AG35: Bellmawr (Camden) | AH35: Blanco (San Juan) | AI35: Fort McDermitt (Humboldt) | AJ35: Arlington (Dutchess) | AK35: Ashley (Delaware) | AL35: Badger Lee (Sequoyah) | AM35: Blodgett (Benton) | AN35: Apollo (Armstrong) | AO35: Calzada (Ponce) | AQ35: Bradley (Greenwood) | AR35: Bijou Hills (Brule) | AS35: Bloomingdale (Sullivan) | AT35: Ames (Liberty) | AU35: Castle Dale (Emery) | AV35: Belspring (Pulaski) | AW35: Newport Center (Orleans) | AX35: Battle Ground (Clark) | AY35: Auburndale (Wood) | AZ35: Bethlehem (Ohio) | BA35: Carpenter (Laramie) | BD35: AK | BE35: Brevig Mission (Nome) | BF35: 65.3413 | BG35: -166.4953 | BI35: 20.5 | BJ35: -160 | BK35: 58 | BL35: 14 | BM35: 33 | BS35: -126.25 | BT35: 40 | BU35: 35.3 | BV35: 1.3 | BW35: 33.8 | BX35: 1.7 | BY35: 40 | BZ35: -4 | CA35: 804.5445
A36: 58-40 | B36: Buckland (Northwest Arctic) | C36: Banks (Pike) | D36: Bella Vista (Benton) | E36: Bluewater (La Paz) | F36: Amesti (Santa Cruz) | G36: Black Forest (El Paso) | H36: Hartford (Hartford) | J36: Hartly (Kent) | K36: Bardmoor (Pinellas) | L36: Avera (Jefferson) | M36: Honalo (Hawaii) | N36: Archer (O'Brien) | O36: Clayton (Custer) | P36: Apple River (Jo Daviess) | Q36: Bedford (Lawrence) | R36: Augusta (Butler) | S36: Bellevue (Campbell) | T36: Bayou Vista (St. Mary) | U36: Franklin Town (Norfolk) | V36: Benedict (Charles) | W36: South Portland (Cumberland) | X36: Baldwin (Lake) | Y36: Avon (Stearns) | Z36: Arrow Rock (Saline) | AA36: Brandon (Rankin) | AB36: Boneau (Chouteau) | AC36: Barker Heights (Henderson) | AD36: Binford (Griggs) | AE36: Bartlett (Wheeler) | AF36: Union (Carroll) | AG36: Belmar (Monmouth) | AH36: Bloomfield (San Juan) | AI36: Gabbs (Nye) | AJ36: Armonk (Westchester) | AK36: Ashtabula (Ashtabula) | AL36: Ballou (Mayes) | AM36: Boardman (Morrow) | AN36: Applewold (Armstrong) | AO36: Campanilla (Toa Baja) | AQ36: Branchville (Orangeburg) | AR36: Bison (Perkins) | AS36: Blountville (Sullivan) | AT36: Amherst (Lamb) | AU36: Castle Valley (Grand) | AV36: Belview (Montgomery) | AW36: North Bennington (Bennington) | AX36: Bay Center (Pacific) | AY36: Augusta (Eau Claire) | AZ36: Beverly (Randolph) | BA36: Carter (Uinta) | BD36: AK | BE36: Buckland (Northwest Arctic) | BF36: 65.9784 | BG36: -161.1341 | BI36: 20.5 | BJ36: -159.38 | BK36: 58 | BL36: 14 | BM36: 33 | BS36: -126.25 | BT36: 40.5 | BU36: 35.1 | BV36: 0.9 | BW36: 33.6 | BX36: 1.6 | BY36: 40 | BZ36: -4 | CA36: 782.7964
A37: 58-34 | B37: Buffalo Soapstone (Matanuska-Susitna) | C37: Bay Minette (Baldwin) | D37: Bellefonte (Boone) | E37: Bouse (La Paz) | F37: Anaheim (Orange) | G37: Black Hawk (Gilpin) | H37: Hazardville (Hartford) | J37: Henlopen Acres (Sussex) | K37: Bartow (Polk) | L37: Avondale Estates (DeKalb) | M37: Honaunau-Napoopoo (Hawaii) | N37: Aredale (Butler) | O37: Clifton (Franklin) | P37: Arcola (Douglas) | Q37: Beech Grove (Marion) | R37: Aurora (Cloud) | S37: Bellewood (Jefferson) | T37: Belcher (Caddo) | U37: Gardner (Worcester) | V37: Bensville (Charles) | W37: South Windham (Cumberland) | X37: Bancroft (Shiawassee) | Y37: Babbitt (St. Louis) | Z37: Asbury (Jasper) | AA37: Braxton (Simpson) | AB37: Bonner-West Riverside (Missoula) | AC37: Barker Ten Mile (Robeson) | AD37: Bisbee (Towner) | AE37: Bartley (Red Willow) | AF37: West Stewartstown (Coos) | AG37: Belvidere (Warren) | AH37: Bluewater Acres (Cibola) | AI37: Gardnerville (Douglas) | AJ37: Asharoken (Suffolk) | AK37: Ashville (Pickaway) | AL37: Barnsdall (Osage) | AM37: Bonanza (Klamath) | AN37: Arcadia University (Montgomery) | AO37: Campo Rico (Canóvanas) | AQ37: Briarcliffe Acres (Horry) | AR37: Blackhawk (Meade) | AS37: Bluff City (Sullivan) | AT37: Amistad (Val Verde) | AU37: Cedar City (Iron) | AV37: Benns Church (Isle of Wight) | AW37: North Hartland (Windsor) | AX37: Bay View (Skagit) | AY37: Avoca (Iowa) | AZ37: Big Chimney (Kanawha) | BA37: Casper (Natrona) | BD37: AK | BE37: Buffalo Soapstone (Matanuska-Susitna) | BF37: 61.7073 | BG37: -149.1095 | BI37: 20.5 | BJ37: -158.75 | BK37: 58 | BL37: 14 | BM37: 33 | BS37: -126.25 | BT37: 41 | BU37: 35 | BV37: 0.5 | BW37: 33.4 | BX37: 1.5 | BY37: 40 | BZ37: -4 | CA37: 770.1146
A38: 58-28 | B38: Butte (Matanuska-Susitna) | C38: Bayou La Batre (Mobile) | D38: Belleville (Yell) | E38: Bowie (Cochise) | F38: Anchor Bay (Mendocino) | G38: Blanca (Costilla) | H38: Heritage Village (New Haven) | J38: Highland Acres (Kent) | K38: Bascom (Jackson) | L38: Baconton (Mitchell) | M38: Honokaa (Hawaii) | N38: Arion (Crawford) | O38: Coeur d'Alene (Kootenai) | P38: Arenzville (Cass) | Q38: Berne (Adams) | R38: Axtell (Marshall) | S38: Benham (Harlan) | T38: Belle Chasse (Plaquemines) | U38: Gloucester (Essex) | V38: Berlin (Worcester) | W38: Steep Falls (Cumberland) | X38: Bangor (Van Buren) | Y38: Backus (Cass) | Z38: Ash Grove (Greene) | AA38: Bridgetown (DeSoto) | AB38: Boulder (Jefferson) | AC38: Bath (Beaufort) | AD38: Bismarck (Burleigh) | AE38: Bassett (Rock) | AF38: West Swanzey (Cheshire) | AG38: Bergenfield (Bergen) | AH38: Bluewater Village (Cibola) | AI38: Gardnerville Ranchos (Douglas) | AJ38: Athens (Greene) | AK38: Athalia (Lawrence) | AL38: Bartlesville (Washington) | AM38: Brogan (Malheur) | AN38: Archbald (Lackawanna) | AO38: Camuy (Camuy) | AQ38: Brookdale (Orangeburg) | AR38: Blucksberg Mountain (Meade) | AS38: Bolivar (Hardeman) | AT38: Anacua (Starr) | AU38: Cedar Fort (Utah) | AV38: Bensley (Chesterfield) | AW38: North Springfield (Windsor) | AX38: Beaux Arts Village (King) | AY38: Babcock (Wood) | AZ38: Big Creek (Logan) | BA38: Casper Mountain (Natrona) | BD38: AK | BE38: Butte (Matanuska-Susitna) | BF38: 61.5539 | BG38: -149.0035 | BI38: 20.5 | BJ38: -158.13 | BK38: 58 | BL38: 14 | BM38: 33 | BS38: -126.25 | BT38: 41.5 | BU38: 35 | BV38: 0.1 | BW38: 33.3 | BX38: 1.4 | BY38: 40 | BZ38: -4 | CA38: 762.8682
A39: 58-22 | B39: Cantwell (Denali) | C39: Bear Creek (Marion) | D39: Ben Lomond (Sevier) | E39: Brenda (La Paz) | F39: Anderson (Shasta) | G39: Blende (Pueblo) | H39: Higganum (Middlesex) | J39: Hockessin (New Castle) | K39: Bay Harbor Islands (Miami-Dade) | L39: Bainbridge (Decatur) | M39: Honolulu (Honolulu) | N39: Arispe (Union) | O39: Conkling Park (Kootenai) | P39: Argenta (Macon) | Q39: Bethany (Morgan) | R39: Baileyville (Nemaha) | S39: Benton (Marshall) | T39: Belle Rose (Assumption) | U39: Green Harbor-Cedar Crest (Plymouth) | V39: Berwyn Heights (Prince George's) | W39: Waterville (Kennebec) | X39: Baraga (Baraga) | Y39: Badger (Roseau) | Z39: Ashburn (Pike) | AA39: Brookhaven (Lincoln) | AB39: Box Elder (Hill) | AC39: Bayboro (Pamlico) | AD39: Blanchard (Traill) | AE39: Battle Creek (Madison) | AF39: Woodsville (Grafton) | AG39: Berlin (Camden) | AH39: Boles Acres (Otero) | AI39: Genoa (Douglas) | AJ39: Atlantic Beach (Nassau) | AK39: Athens (Athens) | AL39: Bearden (Okfuskee) | AM39: Brookings (Curry) | AN39: Ardmore (Montgomery) | AO39: Candelaria (Toa Baja) | AQ39: Brunson (Hampton) | AR39: Blunt (Hughes) | AS39: Bon Aqua Junction (Hickman) | AT39: Anahuac (Chambers) | AU39: Cedar Hills (Utah) | AV39: Berryville (Clarke) | AW39: North Troy (Orleans) | AX39: Belfair (Mason) | AY39: Bagley (Grant) | AZ39: Big Sandy (McDowell) | BA39: Centennial (Albany) | BD39: AK | BE39: Cantwell (Denali) | BF39: 63.379 | BG39: -148.8158 | BI39: 20.5 | BJ39: -157.5 | BK39: 58 | BL39: 14 | BM39: 33 | BS39: -126.25 | BT39: 42 | BU39: 35.1 | BV39: -0.4 | BW39: 33.3 | BX39: 1.3 | BY39: 40 | BZ39: -4 | CA39: 762.3064
A40: 58-16 | B40: Central (Yukon-Koyukuk) | C40: Beatrice (Monroe) | D40: Benton (Saline) | E40: Bryce (Graham) | F40: Angels (Calaveras) | G40: Blue River (Summit) | H40: Jewett City (New London) | J40: Houston (Kent) | K40: Bay Hill (Orange) | L40: Baldwin (Habersham) | M40: Honomu (Hawaii) | N40: Arlington (Fayette) | O40: Cottonwood (Idaho) | P40: Arlington (Bureau) | Q40: Beverly Shores (Porter) | R40: Baldwin City (Douglas) | S40: Berea (Madison) | T40: Belmont (Sabine) | U40: Greenfield Town (Franklin) | V40: Bethesda (Montgomery) | W40: West Kennebunk (York) | X40: Barnes Lake-Millers Lake (Lapeer) | Y40: Bagley (Clearwater) | Z40: Ashland (Boone) | AA40: Brooksville (Noxubee) | AB40: Boyd (Carbon) | AC40: Bayshore (New Hanover) | AD40: Bottineau (Bottineau) | AE40: Bayard (Morrill) | AG40: Bernardsville (Somerset) | AH40: Bosque Farms (Valencia) | AI40: Gerlach (Washoe) | AJ40: Attica (Wyoming) | AK40: Attica (Seneca) | AL40: Beaver (Beaver) | AM40: Brooks (Marion) | AN40: Arendtsville (Adams) | AO40: Candelaria Arenas (Toa Baja) | AQ40: Bucksport (Horry) | AR40: Bonesteel (Gregory) | AS40: Bowman (Cumberland) | AT40: Anderson (Grimes) | AU40: Centerfield (Sanpete) | AV40: Bethel Manor (York) | AW40: North Westminster (Windham) | AX40: Bell Hill (Clallam) | AY40: Baileys Harbor (Door) | AZ40: Birch River (Nicholas) | BA40: Cheyenne (Laramie) | BD40: AK | BE40: Central (Yukon-Koyukuk) | BF40: 65.5213 | BG40: -144.6409 | BI40: 20.5 | BJ40: -156.88 | BK40: 58 | BL40: 14 | BM40: 33 | BS40: -126.25 | BT40: 42.5 | BU40: 35.2 | BV40: -0.8 | BW40: 33.4 | BX40: 1.2 | BY40: 40 | BZ40: -4 | CA40: 768.9142
A41: 58-10 | B41: Chalkyitsik (Yukon-Koyukuk) | C41: Beaverton (Lamar) | D41: Bentonville (Benton) | E41: Buckeye (Maricopa) | F41: Angwin (Napa) | G41: Blue Sky (Morgan) | H41: Kensington (Hartford) | J41: Kent Acres (Kent) | K41: Bay Lake (Orange) | L41: Ball Ground (Cherokee) | M41: Iroquois Point (Honolulu) | N41: Armstrong (Emmet) | O41: Council (Adams) | P41: Arlington Heights (Cook) | Q41: Bicknell (Knox) | R41: Barnard (Lincoln) | S41: Berry (Harrison) | T41: Benton (Bossier) | U41: Hanscom AFB (Middlesex) | V41: Betterton (Kent) | W41: Westbrook (Cumberland) | X41: Baroda (Berrien) | Y41: Baker (Clay) | Z41: Ashley (Pike) | AA41: Bruce (Calhoun) | AB41: Bozeman (Gallatin) | AC41: Bayview (Beaufort) | AD41: Bowbells (Burke) | AE41: Bazile Mills (Knox) | AG41: Beverly (Burlington) | AH41: Brazos (Rio Arriba) | AI41: Glenbrook (Douglas) | AJ41: Au Sable Forks (Clinton) | AK41: Atwater (Portage) | AL41: Bee (Johnston) | AM41: Brownsville (Linn) | AN41: Aristes (Columbia) | AO41: Candelero Abajo (Humacao) | AQ41: Buffalo (Union) | AR41: Bowdle (Edmunds) | AS41: Braden (Fayette) | AT41: Andrews (Andrews) | AU41: Centerville (Davis) | AV41: Big Island (Bedford) | AW41: Old Bennington (Bennington) | AX41: Bellevue (King) | AY41: Baldwin (St. Croix) | AZ41: Blacksville (Monongalia) | BA41: Chugcreek (Platte) | BD41: AK | BE41: Chalkyitsik (Yukon-Koyukuk) | BF41: 66.6468 | BG41: -143.7822 | BI41: 20.5 | BJ41: -156.25 | BK41: 58 | BL41: 8 | BM41: 30 | BS41: -126.25 | BT41: 43 | BU41: 35.5 | BV41: -1.2 | BW41: 33.5 | BX41: 1.1 | BY41: 40 | BZ41: -4 | CA41: 780.1721
A42: 58-4 | B42: Chase (Matanuska-Susitna) | C42: Belgreen (Franklin) | D42: Bergman (Boone) | E42: Buckshot (Yuma) | F42: Antelope (Sacramento) | G42: Bonanza (Saguache) | H42: Lake Pocotopaug (Middlesex) | J42: Kenton (Kent) | K42: Bay Pines (Pinellas) | L42: Barnesville (Lamar) | M42: Kaaawa (Honolulu) | N42: Arnolds Park (Dickinson) | O42: Craigmont (Lewis) | P42: Armington (Tazewell) | Q42: Birdseye (Dubois) | R42: Barnes (Washington) | S42: Betsy Layne (Floyd) | T42: Bernice (Union) | U42: Harwich Center (Barnstable) | V42: Bier (Allegany) | W42: York Harbor (York) | X42: Barryton (Mecosta) | Y42: Balaton (Lyon) | Z42: Atlanta (Macon) | AA42: Buckatunna (Wayne) | AB42: Brady (Pondera) | AC42: Bear Grass (Martin) | AD42: Bowdon (Wells) | AE42: Beatrice (Gage) | AG42: Blackwells Mills (Somerset) | AH42: Brimhall Nizhoni (McKinley) | AI42: Golconda (Humboldt) | AJ42: Auburn (Cayuga) | AK42: Aurora (Portage) | AL42: Beggs (Okmulgee) | AM42: Bull Mountain (Washington) | AN42: Arlington Heights (Monroe) | AO42: Candelero Arriba (Humacao) | AQ42: Burnettown (Aiken) | AR42: Box Elder (Pennington) | AS42: Bradford (Gibson) | AT42: Angleton (Brazoria) | AU42: Central (Washington) | AV42: Big Stone Gap (Wise) | AW42: Orleans (Orleans) | AX42: Bellingham (Whatcom) | AY42: Balsam Lake (Polk) | AZ42: Blennerhassett (Wood) | BA42: Chugwater (Platte) | BD42: AK | BE42: Chase (Matanuska-Susitna) | BF42: 62.4624 | BG42: -149.9371 | BI42: 20.5 | BJ42: -155.63 | BK42: 58 | BL42: 14 | BM42: 33 | BS42: -126.25 | BT42: 43.5 | BU42: 35.7 | BV42: -1.5 | BW42: 33.6 | BX42: 0.9 | BY42: 40 | BZ42: -4 | CA42: 789.1273
A43: 58+2 | B43: Chefornak (Bethel) | C43: Belk (Fayette) | D43: Berryville (Carroll) | E43: Bullhead City (Mohave) | F43: Antioch (Contra Costa) | G43: Bonanza Mountain Estates (Boulder) | H43: Lakeville (Litchfield) | J43: Laurel (Sussex) | K43: Bayonet Point (Pasco) | L43: Bartow (Jefferson) | M43: Kaanapali (Maui) | N43: Arthur (Ida) | O43: Crouch (Boise) | P43: Aroma Park (Kankakee) | Q43: Blanford (Vermillion) | R43: Bartlett (Labette) | S43: Big Clifty (Grayson) | T43: Berwick (St. Mary) | U43: Harwich Port (Barnstable) | V43: Big Pool (Washington) | X43: Barton Hills (Washtenaw) | Y43: Ball Club (Itasca) | Z43: Augusta (St. Charles) | AA43: Bude (Franklin) | AB43: Bridger (Carbon) | AC43: Beaufort (Carteret) | AD43: Bowman (Bowman) | AE43: Beaver City (Furnas) | AG43: Blackwood (Camden) | AH43: Buckhorn (Grant) | AI43: Golden Valley (Washoe) | AJ43: Aurora (Cayuga) | AK43: Austinburg (Ashtabula) | AL43: Belfonte (Sequoyah) | AM43: Bunker Hill (Coos) | AN43: Armagh (Indiana) | AO43: Canóvanas (Canóvanas) | AQ43: Burton (Beaufort) | AR43: Bradley (Clark) | AS43: Bransford (Sumner) | AT43: Angus (Navarro) | AU43: Central Valley (Sevier) | AV43: Blacksburg (Montgomery) | AW43: Perkinsville (Windsor) | AX43: Benton City (Benton) | AY43: Bancroft (Portage) | AZ43: Bluefield (Mercer) | BA43: Clearmont (Sheridan) | BD43: AK | BE43: Chefornak (Bethel) | BF43: 60.155 | BG43: -164.255 | BI43: 20.5 | BJ43: -155 | BK43: 58 | BL43: 14 | BM43: 33 | BS43: -126.25 | BT43: 44 | BU43: 35.8 | BV43: -2 | BW43: 33.7 | BX43: 0.8 | BY43: 40 | BZ43: -4 | CA43: 791.0319
A44: 58+8 | B44: Chena Ridge (Fairbanks North Star) | C44: Bellamy (Sumter) | D44: Bethel Heights (Benton) | E44: Burnside (Apache) | F44: Anza (Riverside) | G44: Boone (Pueblo) | H44: Litchfield (Litchfield) | J44: Leipsic (Kent) | K44: Bayport (Hernando) | L44: Barwick (Thomas) | M44: Kahaluu (Honolulu) | N44: Asbury (Dubuque) | O44: Culdesac (Nez Perce) | P44: Arrowsmith (McLean) | Q44: Bloomfield (Greene) | R44: Basehor (Leavenworth) | S44: Blackey (Letcher) | T44: Bienville (Bienville) | U44: Haverhill (Essex) | V44: Big Spring (Washington) | X44: Bath (Clinton) | Y44: Barnesville (Clay) | Z44: Aullville (Lafayette) | AA44: Burnsville (Tishomingo) | AB44: Broadus (Powder River) | AC44: Beech Mountain (Avery) | AD44: Braddock (Emmons) | AE44: Beaver Crossing (Seward) | AG44: Blawenburg (Somerset) | AH44: Caballo (Sierra) | AI44: Goldfield (Esmeralda) | AJ44: Averill Park (Rensselaer) | AK44: Austintown (Mahoning) | AL44: Bell (Adair) | AM44: Burns (Harney) | AN44: Arnold (Westmoreland) | AO44: Capitanejo (Juana Díaz) | AQ44: Calhoun Falls (Abbeville) | AR44: Brandon (Minnehaha) | AS44: Brentwood (Williamson) | AT44: Anna (Collin) | AU44: Charleston (Wasatch) | AV44: Blackstone (Nottoway) | AW44: Poultney (Rutland) | AX44: Bethel (Kitsap) | AY44: Bangor (La Crosse) | AZ44: Bluewell (Mercer) | BA44: Clearview Acres (Sweetwater) | BD44: AK | BE44: Chena Ridge (Fairbanks North Star) | BF44: 64.7941 | BG44: -148.0357 | BI44: 21 | BJ44: -160 | BK44: 58 | BL44: 14 | BM44: 33 | BS44: -126.25 | BT44: 44.5 | BU44: 35.9 | BV44: -2.4 | BW44: 33.7 | BX44: 0.6 | BY44: 40 | BZ44: -4 | CA44: 789.6639
A45: 58+14 | B45: Chenega (Valdez-Cordova) | C45: Belle Fontaine (Mobile) | D45: Big Flat (Baxter) | E45: Bylas (Graham) | F45: Apple Valley (San Bernardino) | G45: Boulder (Boulder) | H45: Long Hill (New London) | J45: Lewes (Sussex) | K45: Bayshore Gardens (Manatee) | L45: Baxley (Appling) | M45: Kahaluu-Keauhou (Hawaii) | N45: Ashton (Osceola) | O45: Dalton Gardens (Kootenai) | P45: Arthur (Douglas) | Q45: Bloomingdale (Parke) | R45: Bassett (Allen) | S45: Blaine (Lawrence) | T45: Blanchard (Caddo) | U45: Holyoke (Hampden) | V45: Bishopville (Worcester) | X45: Battle Creek (Calhoun) | Y45: Barnum (Carlton) | Z45: Aurora (Lawrence) | AA45: Byhalia (Marshall) | AB45: Broadview (Yellowstone) | AC45: Belhaven (Beaufort) | AD45: Briarwood (Cass) | AE45: Bee (Seward) | AG45: Bloomingdale (Passaic) | AH45: Cañada de los Alamos (Santa Fe) | AI45: Goodsprings (Clark) | AJ45: Avoca (Steuben) | AK45: Avon (Lorain) | AL45: Bennington (Bryan) | AM45: Butte Falls (Jackson) | AN45: Arnold City (Fayette) | AO45: Carolina (Carolina) | AQ45: Camden (Kershaw) | AR45: Brandt (Deuel) | AS45: Brighton (Tipton) | AT45: Annetta (Parker) | AU45: Circleville (Piute) | AV45: Blairs (Pittsylvania) | AW45: Proctorsville (Windsor) | AX45: Bickleton (Klickitat) | AY45: Baraboo (Sauk) | AZ45: Boaz (Wood) | BA45: Cody (Park) | BD45: AK | BE45: Chenega (Valdez-Cordova) | BF45: 60.0757 | BG45: -148.0194 | BI45: 21 | BJ45: -159.38 | BK45: 58 | BL45: 14 | BM45: 33 | BS45: -126.25 | BT45: 45 | BU45: 35.9 | BV45: -2.8 | BW45: 33.6 | BX45: 0.4 | BY45: 40 | BZ45: -4 | CA45: 783.9982
A46: 64-46 | B46: Chevak (Kusilvak) | C46: Benton (Lowndes) | D46: Bigelow (Perry) | E46: Cactus Flats (Graham) | F46: Aptos (Santa Cruz) | G46: Bow Mar (Arapahoe) | H46: Madison Center (New Haven) | J46: Little Creek (Kent) | K46: Beacon Square (Pasco) | L46: Bellville (Evans) | M46: Kahuku (Honolulu) | N46: Aspinwall (Crawford) | O46: Dayton (Franklin) | P46: Ashkum (Iroquois) | Q46: Bloomington (Monroe) | R46: Baxter Springs (Cherokee) | S46: Blandville (Ballard) | T46: Bogalusa (Washington) | U46: Housatonic (Berkshire) | V46: Bivalve (Wicomico) | X46: Bay City (Bay) | Y46: Barrett (Grant) | Z46: Auxvasse (Callaway) | AA46: Byram (Hinds) | AB46: Brockton (Roosevelt) | AC46: Bell Arthur (Pitt) | AD46: Brinsmade (Benson) | AE46: Beemer (Cuming) | AG46: Bloomsbury (Hunterdon) | AH46: Canjilon (Rio Arriba) | AI46: Grass Valley (Pershing) | AJ46: Avon (Livingston) | AK46: Avon Lake (Lorain) | AL46: Bernice (Delaware) | AM46: Butteville (Marion) | AN46: Arnot (Tioga) | AO46: Carrizales (Hatillo) | AQ46: Cameron (Calhoun) | AR46: Brant Lake (Lake) | AS46: Bristol (Sullivan) | AT46: Annetta North (Parker) | AU46: Clarkston (Cache) | AV46: Bland (Bland) | AW46: Quechee (Windsor) | AX46: Big Lake (Skagit) | AY46: Barneveld (Iowa) | AZ46: Bolivar (Jefferson) | BA46: Cokeville (Lincoln) | BD46: AK | BE46: Chevak (Kusilvak) | BF46: 61.5296 | BG46: -165.5941 | BI46: 21 | BJ46: -158.75 | BK46: 58 | BL46: 14 | BM46: 33 | BS46: -126.25 | BT46: 45.5 | BU46: 35.8 | BV46: -3.2 | BW46: 33.4 | BX46: 0.2 | BY46: 40 | BZ46: -4 | CA46: 768.99
A47: 64-40 | B47: Chickaloon (Matanuska-Susitna) | C47: Berry (Fayette) | D47: Biggers (Randolph) | E47: Cactus Forest (Pinal) | F47: Aptos Hills-Larkin Valley (Santa Cruz) | G47: Brandon (Kiowa) | H47: Mansfield Center (Tolland) | J47: Long Neck (Sussex) | K47: Bear Creek (Pinellas) | L47: Belvedere Park (DeKalb) | M47: Kahului (Maui) | N47: Atalissa (Muscatine) | O47: De Smet (Benewah) | P47: Ashland (Cass) | Q47: Blountsville (Henry) | R47: Bazine (Ness) | S47: Bloomfield (Nelson) | T47: Bonita (Morehouse) | U47: Lawrence (Essex) | V47: Bladensburg (Prince George's) | X47: Bay Port (Huron) | Y47: Barry (Big Stone) | Z47: Ava (Douglas) | AA47: Caledonia (Lowndes) | AB47: Browning (Glacier) | AC47: Belmont (Gaston) | AD47: Brocket (Ramsey) | AE47: Belden (Cedar) | AG47: Bogota (Bergen) | AH47: Cannon AFB (Curry) | AI47: Hawthorne (Mineral) | AJ47: Babylon (Suffolk) | AK47: Bailey Lakes (Ashland) | AL47: Bessie (Washita) | AM47: Camp Sherman (Jefferson) | AN47: Arona (Westmoreland) | AO47: Cataño (Cataño) | AQ47: Campobello (Spartanburg) | AR47: Brentford (Spink) | AS47: Brownsville (Haywood) | AT47: Annetta South (Parker) | AU47: Clawson (Emery) | AV47: Bloxom (Accomack) | AW47: Rutland (Rutland) | AX47: Bingen (Klickitat) | AY47: Barron (Barron) | AZ47: Bolt (Raleigh) | BA47: Cora (Sublette) | BD47: AK | BE47: Chickaloon (Matanuska-Susitna) | BF47: 61.804 | BG47: -148.4103 | BI47: 21 | BJ47: -158.13 | BK47: 58 | BL47: 14 | BM47: 33 | BS47: -126.25 | BT47: 46 | BU47: 35.5 | BV47: -3.6 | BW47: 33.1 | BX47: 0.1 | BY47: 40 | BZ47: -4 | CA47: 742.0405
A48: 64-34 | B48: Chicken (Southeast Fairbanks) | C48: Bessemer (Jefferson) | D48: Birdsong (Mississippi) | E48: Cameron (Coconino) | F48: Arbuckle (Colusa) | G48: Branson (Las Animas) | H48: Mashantucket (New London) | J48: Magnolia (Kent) | K48: Bee Ridge (Sarasota) | L48: Berkeley Lake (Gwinnett) | M48: Kailua (Honolulu) | N48: Athelstan (Taylor) | O48: Deary (Latah) | P48: Ashley (Washington) | Q48: Bluffton (Wells) | R48: Beattie (Marshall) | S48: Blue Ridge Manor (Jefferson) | T48: Boothville (Plaquemines) | U48: Leominster (Worcester) | V48: Bloomington (Garrett) | X48: Bay Shore (Charlevoix) | Y48: Battle Lake (Otter Tail) | Z48: Avilla (Jasper) | AA48: Calhoun City (Calhoun) | AB48: Busby (Big Horn) | AC48: Belville (Brunswick) | AD48: Brooktree Park (Cass) | AE48: Belgrade (Nance) | AG48: Boonton (Morris) | AH48: Cañon (Sandoval) | AI48: Henderson (Clark) | AJ48: Bainbridge (Chenango) | AK48: Bainbridge (Ross) | AL48: Bethany (Oklahoma) | AM48: Canby (Clackamas) | AN48: Ashland (Schuylkill) | AO48: Cayey (Cayey) | AQ48: Cane Savannah (Sumter) | AR48: Bridgewater (McCook) | AS48: Bruceton (Carroll) | AT48: Annona (Red River) | AU48: Clear Creek (Carbon) | AV48: Blue Ridge (Botetourt) | AW48: Saxtons River (Windham) | AX48: Birch Bay (Whatcom) | AY48: Barronett (Barron) | AZ48: Boomer (Fayette) | BA48: Cowley (Big Horn) | BD48: AK | BE48: Chicken (Southeast Fairbanks) | BF48: 64.0877 | BG48: -141.8283 | BI48: 21 | BJ48: -157.5 | BK48: 58 | BL48: 14 | BM48: 33 | BS48: -126.25 | BT48: 46.5 | BU48: 35.2 | BV48: -3.9 | BW48: 32.7 | BX48: -0.1 | BY48: 40 | BZ48: -4 | CA48: 714.2061
A49: 64-28 | B49: Chignik (Lake and Peninsula) | C49: Billingsley (Autauga) | D49: Black Oak (Craighead) | E49: Camp Verde (Yavapai) | F49: Arcadia (Los Angeles) | G49: Breckenridge (Summit) | H49: Meriden (New Haven) | J49: Middletown (New Castle) | K49: Bell (Gilchrist) | L49: Berlin (Colquitt) | M49: Kalaeloa (Honolulu) | N49: Atkins (Benton) | O49: Declo (Cassia) | P49: Ashmore (Coles) | Q49: Boonville (Warrick) | R49: Bel Aire (Sedgwick) | S49: Bonnieville (Hart) | T49: Bordelonville (Avoyelles) | U49: Littleton Common (Middlesex) | V49: Boonsboro (Washington) | X49: Bay View (Emmet) | Y49: Baudette (Lake of the Woods) | Z49: Avondale (Clay) | AA49: Canton (Madison) | AB49: Butte (Silver Bow) | AC49: Belvoir (Pitt) | AD49: Buchanan (Stutsman) | AE49: Bellevue (Sarpy) | AG49: Bordentown (Burlington) | AH49: Cañones (Rio Arriba) | AI49: Hiko (Lincoln) | AJ49: Baiting Hollow (Suffolk) | AK49: Bairdstown (Wood) | AL49: Bethel Acres (Pottawatomie) | AM49: Cannon Beach (Clatsop) | AN49: Ashley (Luzerne) | AO49: Cayuco (Utuado) | AQ49: Carlisle (Union) | AR49: Bristol (Day) | AS49: Bulls Gap (Hawkins) | AT49: Anson (Jones) | AU49: Clearfield (Davis) | AV49: Blue Ridge Shores (Louisa) | AW49: South Barre (Washington) | AX49: Black Diamond (King) | AY49: Bay City (Pierce) | AZ49: Bowden (Randolph) | BA49: Crowheart (Fremont) | BD49: AK | BE49: Chignik (Lake and Peninsula) | BF49: 56.3003 | BG49: -158.4132 | BI49: 21 | BJ49: -156.88 | BK49: 58 | BL49: 14 | BM49: 33 | BS49: -126.25 | BT49: 47 | BU49: 34.9 | BV49: -4.4 | BW49: 32.4 | BX49: -0.2 | BY49: 40 | BZ49: -10 | CA49: 686.1648
A50: 64-22 | B50: Chignik Lagoon (Lake and Peninsula) | C50: Birmingham (Jefferson) | D50: Black Rock (Lawrence) | E50: Campo Bonito (Pinal) | F50: Arcata (Humboldt) | G50: Brick Center (Arapahoe) | H50: Middletown (Middlesex) | J50: Milford (Sussex) | K50: Bellair-Meadowbrook Terrace (Clay) | L50: Bethlehem (Barrow) | M50: Kalaheo (Kauai) | N50: Atlantic (Cass) | O50: Dietrich (Lincoln) | P50: Ashton (Lee) | Q50: Borden (Clark) | R50: Belle Plaine (Sumner) | S50: Booneville (Owsley) | T50: Bossier City (Bossier) | U50: Lowell (Middlesex) | V50: Bowie (Prince George's) | X50: Beal City (Isabella) | Y50: Baxter (Crow Wing) | Z50: Bagnell (Miller) | AA50: Carrollton (Carroll) | AB50: Bynum (Teton) | AC50: Belwood (Cleveland) | AD50: Bucyrus (Adams) | AE50: Bellwood (Butler) | AG50: Bound Brook (Somerset) | AH50: Canova (Rio Arriba) | AI50: Humboldt River Ranch (Pershing) | AJ50: Baldwin (Nassau) | AK50: Ballville (Sandusky) | AL50: Big Cabin (Craig) | AM50: Canyon City (Grant) | AN50: Ashville (Cambria) | AO50: Ceiba (Ceiba) | AQ50: Catawba (York) | AR50: Britton (Marshall) | AS50: Burlison (Tipton) | AT50: Anthony (El Paso) | AU50: Cleveland (Emery) | AV50: Bluefield (Tazewell) | AW50: South Burlington (Chittenden) | AX50: Blaine (Whatcom) | AY50: Bayfield (Bayfield) | AZ50: Bradley (Raleigh) | BA50: Daniel (Sublette) | BD50: AK | BE50: Chignik Lagoon (Lake and Peninsula) | BF50: 56.3041 | BG50: -158.5004 | BI50: 21 | BJ50: -156.25 | BK50: 58 | BL50: 8 | BM50: 30 | BS50: -126.25 | BT50: 47.5 | BU50: 34.5 | BV50: -4.8 | BW50: 31.9 | BX50: -0.4 | BY50: 40 | BZ50: -10 | CA50: 646.6962
A51: 64-16 | B51: Chignik Lake (Lake and Peninsula) | C51: Black (Geneva) | D51: Black Springs (Montgomery) | E51: Cane Beds (Mohave) | F51: Arden-Arcade (Sacramento) | G51: Brighton (Adams) | H51: Milford city (New Haven) | J51: Millsboro (Sussex) | K51: Belle Glade (Palm Beach) | L51: Between (Walton) | M51: Kalaoa (Hawaii) | N51: Auburn (Sac) | O51: Donnelly (Valley) | P51: Assumption (Christian) | Q51: Boston (Wayne) | R51: Belleville (Republic) | S51: Boston (Nelson) | T51: Bourg (Terrebonne) | U51: Lynn (Essex) | V51: Bowleys Quarters (Baltimore) | X51: Bear Lake (Manistee) | Y51: Bayport (Washington) | Z51: Baker (Stoddard) | AA51: Carthage (Leake) | AB51: Camas (Sanders) | AC51: Bennett (Chatham) | AD51: Buffalo (Cass) | AE51: Belmar (Keith) | AG51: Bradley Beach (Monmouth) | AH51: Capitan (Lincoln) | AI51: Imlay (Pershing) | AJ51: Baldwin Harbor (Nassau) | AK51: Baltic (Tuscarawas) | AL51: Billings (Noble) | AM51: Canyonville (Douglas) | AN51: Aspers (Adams) | AO51: Celada (Gurabo) | AQ51: Cayce (Lexington) | AR51: Broadland (Beadle) | AS51: Burns (Dickson) | AT51: Anton (Hockley) | AU51: Clinton (Davis) | AV51: Bobtown (Accomack) | AW51: South Royalton (Windsor) | AX51: Blyn (Clallam) | AY51: Bayside (Milwaukee) | AZ51: Bradshaw (McDowell) | BA51: Dayton (Sheridan) | BD51: AK | BE51: Chignik Lake (Lake and Peninsula) | BF51: 56.2631 | BG51: -158.8049 | BI51: 21 | BJ51: -155.63 | BK51: 58 | BL51: 14 | BM51: 33 | BS51: -126.25 | BT51: 48 | BU51: 33.9 | BV51: -5.5 | BW51: 31.2 | BX51: -0.6 | BY51: 34 | BZ51: -10 | CA51: 598.5992
A52: 64-10 | B52: Chiniak (Kodiak Island) | C52: Blountsville (Blount) | D52: Blevins (Hempstead) | E52: Canyon Day (Gila) | F52: Armona (Kings) | G52: Brookside (Fremont) | H52: Moodus (Middlesex) | J52: Millville (Sussex) | K52: Belle Isle (Orange) | L52: Bishop (Oconee) | M52: Kalihiwai (Kauai) | N52: Audubon (Audubon) | O52: Dover (Bonner) | P52: Astoria (Fulton) | Q52: Boswell (Benton) | R52: Beloit (Mitchell) | S52: Bowling Green (Warren) | T52: Boutte (St. Charles) | U52: Madaket (Nantucket) | V52: Bowling Green (Allegany) | X52: Beaverton (Gladwin) | Y52: Beardsley (Big Stone) | Z52: Bakersfield (Ozark) | AA52: Cary (Sharkey) | AB52: Camp Three (Musselshell) | AC52: Benson (Johnston) | AD52: Burlington (Ward) | AE52: Belvidere (Thayer) | AG52: Bradley Gardens (Somerset) | AH52: Capulin (Union) | AI52: Incline Village (Washoe) | AJ52: Baldwinsville (Onondaga) | AK52: Baltimore (Fairfield) | AL52: Binger (Caddo) | AM52: Cape Meares (Tillamook) | AN52: Aspinwall (Allegheny) | AO52: Central Aguirre (Salinas) | AQ52: Centerville (Anderson) | AR52: Brookings (Brookings) | AS52: Byrdstown (Pickett) | AT52: Appleby (Nacogdoches) | AU52: Coalville (Summit) | AV52: Bon Air (Chesterfield) | AW52: South Shaftsbury (Bennington) | AX52: Bonney Lake (Pierce) | AY52: Bear Creek (Outagamie) | AZ52: Bramwell (Mercer) | BA52: Deaver (Big Horn) | BD52: AK | BE52: Chiniak (Kodiak Island) | BF52: 57.5775 | BG52: -152.2743 | BI52: 21 | BJ52: -155 | BK52: 58 | BL52: 14 | BM52: 33 | BS52: -126.25 | BT52: 48.5 | BU52: 33.4 | BV52: -6.2 | BW52: 30.6 | BX52: -0.7 | BY52: 34 | BZ52: -10 | CA52: 552.5954
A53: 64-4 | B53: Chisana (Valdez-Cordova) | C53: Blue Ridge (Elmore) | D53: Blue Eye (Carroll) | E53: Carefree (Maricopa) | F53: Arnold (Calaveras) | G53: Broomfield (Broomfield) | H53: Moosup (Windham) | J53: Milton (Sussex) | K53: Belleair (Pinellas) | L53: Blackshear (Pierce) | M53: Kaneohe (Honolulu) | N53: Aurelia (Cherokee) | O53: Downey (Bannock) | P53: Athens (Menard) | Q53: Bourbon (Marshall) | R53: Belpre (Edwards) | S53: Bradfordsville (Marion) | T53: Boyce (Rapides) | U53: Malden (Middlesex) | V53: Bowmans Addition (Allegany) | X53: Beecher (Genesee) | Y53: Beaulieu (Mahnomen) | Z53: Baldwin Park (Cass) | AA53: Centreville (Wilkinson) | AB53: Cardwell (Jefferson) | AC53: Bent Creek (Buncombe) | AD53: Butte (McLean) | AE53: Benedict (York) | AG53: Brainards (Warren) | AH53: Carlsbad (Eddy) | AI53: Indian Hills (Douglas) | AJ53: Ballston Spa (Saratoga) | AK53: Bannock (Belmont) | AL53: Bison (Garfield) | AM53: Carlton (Yamhill) | AN53: Atglen (Chester) | AO53: Cerrillos Hoyos (Ponce) | AQ53: Central (Pickens) | AR53: Bruce (Brookings) | AS53: Calhoun (McMinn) | AT53: Aquilla (Hill) | AU53: Copperton (Salt Lake) | AV53: Boones Mill (Franklin) | AW53: St. Albans (Franklin) | AX53: Bothell (King) | AY53: Beaver Dam (Dodge) | AZ53: Brandonville (Preston) | BA53: Diamondville (Lincoln) | BD53: AK | BE53: Chisana (Valdez-Cordova) | BF53: 62.0946 | BG53: -142.034 | BI53: 21.5 | BJ53: -160 | BK53: 58 | BL53: 14 | BM53: 33 | BS53: -126.25 | BT53: 49 | BU53: 35.5 | BV53: -7.7 | BW53: 32.5 | BX53: -0.7 | BY53: 40 | BZ53: -10 | CA53: 698.0834
A54: 64+2 | B54: Chistochina (Valdez-Cordova) | C54: Blue Springs (Barbour) | D54: Blue Mountain (Logan) | E54: Carrizo (Gila) | F54: Aromas (San Benito) | G54: Brush (Morgan) | H54: Mystic (New London) | J54: New Castle (New Castle) | K54: Belleair Beach (Pinellas) | L54: Blairsville (Union) | M54: Kaneohe Station (Honolulu) | N54: Aurora (Buchanan) | O54: Driggs (Teton) | P54: Atkinson (Henry) | Q54: Brazil (Clay) | R54: Belvue (Pottawatomie) | S54: Brandenburg (Meade) | T54: Branch (Acadia) | U54: Mansfield Center (Bristol) | V54: Braddock Heights (Frederick) | X54: Beechwood (Ottawa) | Y54: Beaver Bay (Lake) | Z54: Ballwin (St. Louis) | AA54: Charleston (Tallahatchie) | AB54: Carlton (Missoula) | AC54: Bermuda Run (Davie) | AD54: Buxton (Traill) | AE54: Benkelman (Dundy) | AG54: Branchville (Sussex) | AH54: Carnuel (Bernalillo) | AI54: Indian Springs (Clark) | AJ54: Balmville (Orange) | AK54: Barberton (Summit) | AL54: Bixby (Tulsa) | AM54: Cascade Locks (Hood River) | AN54: Athens (Bradford) | AO54: Ciales (Ciales) | AQ54: Central Pacolet (Spartanburg) | AR54: Bryant (Hamlin) | AS54: Camden (Benton) | AT54: Aransas Pass (San Patricio) | AU54: Corinne (Box Elder) | AV54: Boston (Accomack) | AW54: Swanton (Franklin) | AX54: Bothell East (Snohomish) | AY54: Belgium (Ozaukee) | AZ54: Brandywine (Pendleton) | BA54: Dixon (Carbon) | BD54: AK | BE54: Chistochina (Valdez-Cordova) | BF54: 62.5921 | BG54: -144.8136 | BI54: 21.5 | BJ54: -159.38 | BK54: 58 | BL54: 14 | BM54: 33 | BS54: -126.25 | BT54: 49.5 | BU54: 41.5 | BV54: -14.9 | BW54: 37.9 | BX54: -0.3 | BY54: 46 | BZ54: -16 | CA54: 1139.0818
A55: 64+8 | B55: Chitina (Valdez-Cordova) | C55: Boaz (Marshall) | D55: Bluff City (Nevada) | E55: Casa Blanca (Pinal) | F55: Arroyo Grande (San Luis Obispo) | G55: Buena Vista (Chaffee) | H55: Naugatuck (New Haven) | J55: Newark (New Castle) | K55: Belleair Bluffs (Pinellas) | L55: Blakely (Early) | M55: Kapaa (Kauai) | N55: Avoca (Pottawattamie) | O55: Drummond (Fremont) | P55: Atlanta (Logan) | Q55: Bremen (Marshall) | R55: Bendena (Doniphan) | S55: Breckinridge Center (Union) | T55: Breaux Bridge (St. Martin) | U55: Marion Center (Plymouth) | V55: Brandywine (Prince George's) | X55: Belding (Ionia) | Y55: Beaver Creek (Rock) | Z55: Baring (Knox) | AA55: Chunky (Newton) | AB55: Carter (Chouteau) | AC55: Bessemer City (Gaston) | AD55: Caledonia (Traill) | AE55: Bennet (Lancaster) | AG55: Brass Castle (Warren) | AH55: Carrizozo (Lincoln) | AI55: Jackpot (Elko) | AJ55: Bardonia (Rockland) | AK55: Barnesville (Belmont) | AL55: Blackburn (Pawnee) | AM55: Cascadia (Linn) | AN55: Atkinson Mills (Mifflin) | AO55: Cidra (Cidra) | AQ55: Chapin (Lexington) | AR55: Buffalo (Harding) | AS55: Carthage (Smith) | AT55: Archer City (Archer) | AU55: Cornish (Cache) | AV55: Bowling Green (Caroline) | AW55: Vergennes (Addison) | AX55: Bothell West (Snohomish) | AY55: Bell Center (Crawford) | AZ55: Brenton (Wyoming) | BA55: Douglas (Converse) | BD55: AK | BE55: Chitina (Valdez-Cordova) | BF55: 61.5276 | BG55: -144.2991 | BI55: 21.5 | BJ55: -158.75 | BK55: 58 | BL55: 14 | BM55: 33 | BS55: -126.25 | BT55: 50 | BU55: 42.4 | BV55: -22.8 | BW55: 38.6 | BX55: 0.1 | BY55: 46 | BZ55: -28 | CA55: 1196.1446
A56: 64+14 | B56: Chuathbaluk (Bethel) | C56: Boligee (Greene) | D56: Blytheville (Mississippi) | E56: Casa Grande (Pinal) | F56: Artesia (Los Angeles) | G56: Burlington (Kit Carson) | H56: New Britain (Hartford) | J56: Newport (New Castle) | K56: Belleair Shore (Pinellas) | L56: Bloomingdale (Chatham) | M56: Kapaau (Hawaii) | N56: Ayrshire (Palo Alto) | O56: Dubois (Clark) | P56: Atwood (Douglas) | Q56: Bright (Dearborn) | R56: Benedict (Wilson) | S56: Bremen (Muhlenberg) | T56: Bridge City (Jefferson) | U56: Marlborough (Middlesex) | V56: Breathedsville (Washington) | X56: Bellaire (Antrim) | Y56: Becker (Sherburne) | Z56: Barnard (Nodaway) | AA56: Clara (Wayne) | AB56: Cascade (Cascade) | AC56: Bethania (Forsyth) | AD56: Calio (Cavalier) | AE56: Bennington (Douglas) | AG56: Bridgeton (Cumberland) | AH56: Casa Colorada (Valencia) | AI56: Johnson Lane (Douglas) | AJ56: Barker (Niagara) | AK56: Barnhill (Tuscarawas) | AL56: Blackgum (Sequoyah) | AM56: Cave Junction (Josephine) | AN56: Atlantic (Crawford) | AO56: Coamo (Coamo) | AQ56: Charleston (Charleston) | AR56: Buffalo Chip (Meade) | AS56: Caryville (Campbell) | AT56: Arcola (Fort Bend) | AU56: Cottonwood Heights (Salt Lake) | AV56: Boyce (Clarke) | AW56: Waterbury (Washington) | AX56: Boulevard Park (King) | AY56: Belleville (Dane) | AZ56: Bridgeport (Harrison) | BA56: Dubois (Fremont) | BD56: AK | BE56: Chuathbaluk (Bethel) | BF56: 61.5746 | BG56: -159.2489 | BI56: 21.5 | BJ56: -158.13 | BK56: 58 | BL56: 8 | BM56: 30 | BS56: -126.25 | BT56: 50.5 | BU56: 45.5 | BV56: -21.6 | BW56: 41.3 | BX56: -0.1 | BY56: 46 | BZ56: -22 | CA56: 1436.4785
A57: 70-46 | B57: Circle (Yukon-Koyukuk) | C57: Bon Air (Talladega) | D57: Bodcaw (Nevada) | E57: Casas Adobes (Pima) | F57: Artois (Glenn) | G57: Byers (Arapahoe) | H57: New Hartford Center (Litchfield) | J57: North Star (New Castle) | K57: Belleview (Marion) | L57: Blue Ridge (Fannin) | M57: Kapalua (Maui) | N57: Badger (Webster) | O57: Eagle (Ada) | P57: Auburn (Sangamon) | Q57: Bristol (Elkhart) | R57: Bennington (Ottawa) | S57: Briarwood (Jefferson) | T57: Broussard (Lafayette) | U57: Marshfield Hills (Plymouth) | V57: Brentwood (Prince George's) | X57: Belleville (Wayne) | Y57: Bejou (Mahnomen) | Z57: Barnett (Morgan) | AA57: Clarksdale (Coahoma) | AB57: Charlo (Lake) | AC57: Bethel (Pitt) | AD57: Calvin (Cavalier) | AE57: Berea (Box Butte) | AG57: Bridgeville (Warren) | AH57: Causey (Roosevelt) | AI57: Kingsbury (Douglas) | AJ57: Barnum Island (Nassau) | AK57: Bascom (Seneca) | AL57: Blackwell (Kay) | AM57: Cayuse (Umatilla) | AN57: Atlas (Northumberland) | AO57: Coco (Salinas) | AQ57: Cheraw (Chesterfield) | AR57: Buffalo Gap (Custer) | AS57: Castalian Springs (Sumner) | AT57: Argyle (Denton) | AU57: Cove (Cache) | AV57: Boydton (Mecklenburg) | AW57: Websterville (Washington) | AX57: Boyds (Ferry) | AY57: Bellevue (Brown) | AZ57: Brookhaven (Monongalia) | BA57: East Thermopolis (Hot Springs) | BD57: AK | BE57: Circle (Yukon-Koyukuk) | BF57: 65.7936 | BG57: -144.1813 | BI57: 21.5 | BJ57: -157.5 | BK57: 58 | BL57: 14 | BM57: 33 | BS57: -125.63 | BT57: 24 | BU57: 46.2 | BV57: 12 | BW57: 46.1 | BX57: 5.3 | BY57: 52 | BZ57: 8 | CA57: 1879.4285
A58: 70-40 | B58: Clam Gulch (Kenai Peninsula) | C58: Bon Secour (Baldwin) | D58: Bonanza (Sebastian) | E58: Catalina (Pima) | F58: Arvin (Kern) | G58: Calhan (El Paso) | H58: New Haven (New Haven) | J58: Ocean View (Sussex) | K58: Bellview (Escambia) | L58: Bluffton (Clay) | M58: Kapolei (Honolulu) | N58: Bagley (Guthrie) | O58: East Hope (Bonner) | P58: Augusta (Hancock) | Q58: Brook (Newton) | R58: Bentley (Sedgwick) | S58: Brodhead (Rockcastle) | T58: Brownfields (East Baton Rouge) | U58: Mashpee Neck (Barnstable) | V58: Brock Hall (Prince George's) | X58: Bellevue (Eaton) | Y58: Belgrade (Stearns) | Z58: Barnhart (Jefferson) | AA58: Cleary (Rankin) | AB58: Charlos Heights (Ravalli) | AC58: Bethlehem (Alexander) | AD58: Cando (Towner) | AE58: Bertrand (Phelps) | AG58: Brielle (Monmouth) | AH58: Cedar Crest (Bernalillo) | AI58: Kingston (Lander) | AJ58: Batavia (Genesee) | AK58: Batavia (Clermont) | AL58: Blair (Jackson) | AM58: Cedar Hills (Washington) | AN58: Atlasburg (Washington) | AO58: Comerío (Comerío) | AQ58: Cherryvale (Sumter) | AR58: Bullhead (Corson) | AS58: Cedar Hill (Robertson) | AT58: Arlington (Tarrant) | AU58: Dammeron Valley (Washington) | AV58: Boykins (Southampton) | AW58: Wells River (Orange) | AX58: Brady (Grays Harbor) | AY58: Belmont (Lafayette) | AZ58: Bruceton Mills (Preston) | BA58: Eden (Sweetwater) | BD58: AK | BE58: Clam Gulch (Kenai Peninsula) | BF58: 60.2001 | BG58: -151.3939 | BI58: 21.5 | BJ58: -156.88 | BK58: 58 | BL58: 14 | BM58: 33 | BS58: -125.63 | BT58: 24.5 | BU58: 45.8 | BV58: 11.8 | BW58: 45.7 | BX58: 5.2 | BY58: 46 | BZ58: 8 | CA58: 1840.3127
A59: 70-34 | B59: Clark's Point (Dillingham) | C59: Boykin (Wilcox) | D59: Bono (Craighead) | E59: Catalina Foothills (Pima) | F59: Ashland (Alameda) | G59: Campo (Baca) | H59: New London (New London) | J59: Odessa (New Castle) | K59: Berrydale (Santa Rosa) | L59: Blythe (Richmond) | M59: Kaumakani (Kauai) | N59: Baldwin (Jackson) | O59: Eden (Jerome) | P59: Aurora (Kane) | Q59: Brooklyn (Morgan) | R59: Benton (Butler) | S59: Broeck Pointe (Jefferson) | T59: Brownsville (Ouachita) | U59: Mattapoisett Center (Plymouth) | V59: Brookeville (Montgomery) | X59: Bendon (Benzie) | Y59: Belle Plaine (Scott) | Z59: Bates City (Lafayette) | AA59: Cleveland (Bolivar) | AB59: Chester (Liberty) | AC59: Beulaville (Duplin) | AD59: Cannon Ball (Sioux) | AE59: Berwyn (Custer) | AG59: Brigantine (Atlantic) | AH59: Cedar Grove (Santa Fe) | AI59: Lakeridge (Douglas) | AJ59: Bath (Steuben) | AK59: Batesville (Noble) | AL59: Blanchard (McClain) | AM59: Cedar Mill (Washington) | AN59: Atwood (Armstrong) | AO59: Comunas (Yabucoa) | AQ59: Chesnee (Spartanburg) | AR59: Burke (Gregory) | AS59: Celina (Clay) | AT59: Arp (Smith) | AU59: Daniel (Wasatch) | AV59: Bracey (Mecklenburg) | AW59: West Brattleboro (Windham) | AX59: Bremerton (Kitsap) | AY59: Beloit (Rock) | AZ59: Bruno (Logan) | BA59: Edgerton (Natrona) | BD59: AK | BE59: Clark's Point (Dillingham) | BF59: 58.8329 | BG59: -158.5276 | BI59: 21.5 | BJ59: -156.25 | BK59: 58 | BL59: 14 | BM59: 33 | BS59: -125.63 | BT59: 25 | BU59: 45.5 | BV59: 11.5 | BW59: 45.3 | BX59: 5.2 | BY59: 46 | BZ59: 8 | CA59: 1803.6138
A60: 70-28 | B60: Coffman Cove (Prince of Wales-Hyder) | C60: Brantley (Crenshaw) | D60: Booneville (Logan) | E60: Cave Creek (Maricopa) | F60: Aspen Springs (Mono) | G60: Cañon City (Fremont) | H60: New Preston (Litchfield) | J60: Pike Creek (New Castle) | K60: Beverly Beach (Flagler) | L60: Bogart (Oconee) | M60: Kaunakakai (Maui) | N60: Balltown (Dubuque) | O60: Elk City (Idaho) | P60: Ava (Jackson) | Q60: Brooksburg (Jefferson) | R60: Bern (Nemaha) | S60: Bromley (Kenton) | T60: Brusly (West Baton Rouge) | U60: Medford (Middlesex) | V60: Brooklyn Park (Anne Arundel) | X60: Benton Harbor (Berrien) | Y60: Bellechester (Goodhue) | Z60: Battlefield (Greene) | AA60: Clinton (Hinds) | AB60: Chinook (Blaine) | AC60: Biltmore Forest (Buncombe) | AD60: Canton City (Pembina) | AE60: Big Springs (Deuel) | AG60: Broadway (Warren) | AH60: Cedar Hill (San Juan) | AI60: Lamoille (Elko) | AJ60: Baxter Estates (Nassau) | AK60: Bay View (Erie) | AL60: Blanco (Pittsburg) | AM60: Central Point (Jackson) | AN60: Auburn (Schuylkill) | AO60: Coquí (Salinas) | AQ60: Chester (Chester) | AR60: Bushnell (Brookings) | AS60: Centertown (Warren) | AT60: Arroyo Colorado Estates (Cameron) | AU60: Delta (Millard) | AV60: Brambleton (Loudoun) | AW60: West Burke (Caledonia) | AX60: Brewster (Okanogan) | AY60: Benton (Lafayette) | AZ60: Brush Fork (Mercer) | BA60: Elk Mountain (Carbon) | BD60: AK | BE60: Coffman Cove (Prince of Wales-Hyder) | BF60: 56.0057 | BG60: -132.8395 | BI60: 21.5 | BJ60: -155.63 | BK60: 58 | BL60: 14 | BM60: 33 | BS60: -125.63 | BT60: 25.5 | BU60: 45.1 | BV60: 11.2 | BW60: 44.9 | BX60: 5.1 | BY60: 46 | BZ60: 8 | CA60: 1767.7805
A61: 70-22 | B61: Cohoe (Kenai Peninsula) | C61: Brantleyville (Shelby) | D61: Bradford (White) | E61: Cedar Creek (Gila) | F61: Atascadero (San Luis Obispo) | G61: Capulin (Conejos) | H61: Newtown (Fairfield) | J61: Pike Creek Valley (New Castle) | K61: Beverly Hills (Citrus) | L61: Bonanza (Clayton) | M61: Kawela Bay (Honolulu) | N61: Bancroft (Kossuth) | O61: Elk River (Clearwater) | P61: Aviston (Clinton) | Q61: Brookston (White) | R61: Beverly (Lincoln) | S61: Brooks (Bullitt) | T61: Bryceland (Bienville) | U61: Melrose (Middlesex) | V61: Brookmont (Montgomery) | X61: Benton Heights (Berrien) | Y61: Bellingham (Lac qui Parle) | Z61: Bell City (Stoddard) | AA61: Cloverdale (Adams) | AB61: Choteau (Teton) | AC61: Biscoe (Montgomery) | AD61: Carpio (Ward) | AE61: Bladen (Webster) | AG61: Brookdale (Essex) | AH61: Cedro (Bernalillo) | AI61: Las Vegas (Clark) | AJ61: Bay Park (Nassau) | AK61: Bay Village (Cuyahoga) | AL61: Blue (Bryan) | AM61: Chenoweth (Wasco) | AN61: Audubon (Montgomery) | AO61: Corazón (Guayama) | AQ61: Chesterfield (Chesterfield) | AR61: Butler (Day) | AS61: Centerville (Hickman) | AT61: Arroyo Gardens (Cameron) | AU61: Deseret (Millard) | AV61: Branchville (Southampton) | AW61: Westminster (Windham) | AX61: Bridgeport (Douglas) | AY61: Berlin (Green Lake) | AZ61: Buckhannon (Upshur) | BA61: Encampment (Carbon) | BD61: AK | BE61: Cohoe (Kenai Peninsula) | BF61: 60.2681 | BG61: -151.2843 | BI61: 21.5 | BJ61: -155 | BK61: 58 | BL61: 14 | BM61: 33 | BS61: -125.63 | BT61: 26 | BU61: 44.8 | BV61: 10.9 | BW61: 44.6 | BX61: 5 | BY61: 46 | BZ61: 8 | CA61: 1733.8632
A62: 70-16 | B62: Cold Bay (Aleutians East) | C62: Brent (Bibb) | D62: Bradley (Lafayette) | E62: Centennial Park (Mohave) | F62: Atherton (San Mateo) | G62: Carbondale (Garfield) | H62: Niantic (New London) | J62: Rehoboth Beach (Sussex) | K62: Big Coppitt Key (Monroe) | L62: Boston (Thomas) | M62: Keaau (Hawaii) | N62: Bankston (Dubuque) | O62: Emmett (Gem) | P62: Avon (Fulton) | Q62: Brookville (Franklin) | R62: Bird City (Cheyenne) | S62: Brooksville (Bracken) | T62: Bunkie (Avoyelles) | U62: Methuen Town (Essex) | V62: Brookview (Dorchester) | X62: Benzonia (Benzie) | Y62: Beltrami (Polk) | Z62: Bella Villa (St. Louis) | AA62: Coahoma (Coahoma) | AB62: Churchill (Gallatin) | AC62: Black Creek (Wilson) | AD62: Carrington (Foster) | AE62: Blair (Washington) | AG62: Brookfield (Warren) | AH62: Chama (Rio Arriba) | AI62: Laughlin (Clark) | AJ62: Bay Shore (Suffolk) | AK62: Beach City (Stark) | AL62: Bluejacket (Craig) | AM62: Chiloquin (Klamath) | AN62: Austin (Potter) | AO62: Corcovado (Hatillo) | AQ62: City View (Greenville) | AR62: Camp Crook (Harding) | AS62: Central (Carter) | AT62: Asherton (Dimmit) | AU62: Deweyville (Box Elder) | AV62: Brandermill (Chesterfield) | AW62: White River Junction (Windsor) | AX62: Brier (Snohomish) | AY62: Big Bend (Waukesha) | AZ62: Bud (Wyoming) | BA62: Esterbrook (Converse) | BD62: AK | BE62: Cold Bay (Aleutians East) | BF62: 55.2122 | BG62: -162.7475 | BI62: 22 | BJ62: -160 | BK62: 58 | BL62: 14 | BM62: 33 | BS62: -125.63 | BT62: 26.5 | BU62: 44.5 | BV62: 10.6 | BW62: 44.2 | BX62: 4.9 | BY62: 46 | BZ62: 8 | CA62: 1702.0419
A63: 70-10 | B63: Coldfoot (Yukon-Koyukuk) | C63: Brewton (Escambia) | D63: Branch (Franklin) | E63: Central (Graham) | F63: Atwater (Merced) | G63: Cascade-Chipita Park (El Paso) | H63: Noank (New London) | J63: Rising Sun-Lebanon (Kent) | K63: Big Pine Key (Monroe) | L63: Bostwick (Morgan) | M63: Kealakekua (Hawaii) | N63: Barnes City (Mahaska) | O63: Fairfield (Camas) | P63: Baldwin (Randolph) | Q63: Brownsburg (Hendricks) | R63: Bison (Rush) | S63: Brownsboro Farm (Jefferson) | T63: Buras (Plaquemines) | U63: Middleborough Center (Plymouth) | V63: Broomes Island (Calvert) | X63: Berkley (Oakland) | Y63: Belview (Redwood) | Z63: Belle (Maries) | AA63: Coffeeville (Yalobusha) | AB63: Circle (McCone) | AC63: Black Mountain (Buncombe) | AD63: Carson (Grant) | AE63: Bloomfield (Knox) | AG63: Brooklawn (Camden) | AH63: Chamberino (Doña Ana) | AI63: Lemmon Valley (Washoe) | AJ63: Bayport (Suffolk) | AK63: Beachwood (Cuyahoga) | AL63: Boise City (Cimarron) | AM63: Clatskanie (Columbia) | AN63: Avalon (Allegheny) | AO63: Corozal (Corozal) | AQ63: Clarks Hill (McCormick) | AR63: Canistota (McCook) | AS63: Chapel Hill (Marshall) | AT63: Aspermont (Stonewall) | AU63: Draper (Salt Lake) | AV63: Bridgewater (Rockingham) | AW63: Wilder (Windsor) | AX63: Brinnon (Jefferson) | AY63: Big Falls (Waupaca) | AZ63: Buffalo (Putnam) | BA63: Ethete (Fremont) | BD63: AK | BE63: Coldfoot (Yukon-Koyukuk) | BF63: 67.2475 | BG63: -150.1079 | BI63: 22 | BJ63: -159.38 | BK63: 58 | BL63: 8 | BM63: 30 | BS63: -125.63 | BT63: 27 | BU63: 44.1 | BV63: 10.3 | BW63: 43.9 | BX63: 4.8 | BY63: 46 | BZ63: 8 | CA63: 1670.2213
A64: 70-4 | B64: College (Fairbanks North Star) | C64: Bridgeport (Jackson) | D64: Briarcliff (Baxter) | E64: Central Heights-Midland City (Gila) | F64: Auberry (Fresno) | G64: Castle Pines (Douglas) | H64: North Granby (Hartford) | J64: Riverview (Kent) | K64: Biscayne Park (Miami-Dade) | L64: Bowdon (Carroll) | M64: Kekaha (Kauai) | N64: Barnum (Webster) | O64: Ferdinand (Idaho) | P64: Banner (Fulton) | Q64: Brownstown (Jackson) | R64: Blue Mound (Linn) | S64: Brownsboro Village (Jefferson) | T64: Cade (St. Martin) | U64: Millers Falls (Franklin) | V64: Brownsville (Washington) | X64: Berrien Springs (Berrien) | Y64: Bemidji (Beltrami) | Z64: Bellefontaine Neighbors (St. Louis) | AA64: Coldwater (Tate) | AB64: Clancy (Jefferson) | AC64: Bladenboro (Bladen) | AD64: Casselton (Cass) | AE64: Bloomington (Franklin) | AG64: Browns Mills (Burlington) | AH64: Chamisal (Taos) | AI64: Logan Creek (Douglas) | AJ64: Bayville (Nassau) | AK64: Beallsville (Monroe) | AL64: Bokchito (Bryan) | AM64: Cloverdale (Tillamook) | AN64: Avella (Washington) | AO64: Corral Viejo (Ponce) | AQ64: Clearwater (Aiken) | AR64: Canova (Miner) | AS64: Charleston (Bradley) | AT64: Atascocita (Harris) | AU64: Duchesne (Duchesne) | AV64: Brightwood (Madison) | AW64: Winooski (Chittenden) | AX64: Browns Point (Pierce) | AY64: Birch Hill (Ashland) | AZ64: Burlington (Mineral) | BA64: Etna (Lincoln) | BD64: AK | BE64: College (Fairbanks North Star) | BF64: 64.8694 | BG64: -147.8217 | BI64: 22 | BJ64: -158.75 | BK64: 58 | BL64: 14 | BM64: 33 | BS64: -125.63 | BT64: 27.5 | BU64: 43.8 | BV64: 10 | BW64: 43.5 | BX64: 4.7 | BY64: 46 | BZ64: 8 | CA64: 1637.1784
A65: 70+2 | B65: Cooper Landing (Kenai Peninsula) | C65: Brighton (Jefferson) | D65: Brinkley (Monroe) | E65: Chandler (Maricopa) | F65: Auburn (Placer) | G65: Castle Pines Village (Douglas) | H65: North Grosvenor Dale (Windham) | J65: Rodney Village (Kent) | K65: Bithlo (Orange) | L65: Bowersville (Hart) | M65: Keokea (Maui) | N65: Bartlett (Fremont) | O65: Fernan Lake Village (Kootenai) | P65: Bannockburn (Lake) | Q65: Bruceville (Knox) | R65: Blue Rapids (Marshall) | S65: Brownsville (Edmonson) | T65: Calhoun (Ouachita) | U65: Millis-Clicquot (Norfolk) | V65: Brunswick (Frederick) | X65: Bessemer (Gogebic) | Y65: Bena (Cass) | Z65: Bellerive Acres (St. Louis) | AA65: Collins (Covington) | AB65: Clinton (Missoula) | AC65: Blowing Rock (Watauga) | AD65: Cathay (Wells) | AE65: Blue Hill (Webster) | AG65: Brownville (Middlesex) | AH65: Chamita (Rio Arriba) | AI65: Lovelock (Pershing) | AJ65: Baywood (Suffolk) | AK65: Beaver (Pike) | AL65: Bokoshe (Le Flore) | AM65: Coburg (Lane) | AN65: Avis (Clinton) | AO65: Coto Laurel (Ponce) | AQ65: Clemson (Pickens) | AR65: Canton (Lincoln) | AS65: Charlotte (Dickson) | AT65: Athens (Henderson) | AU65: Dugway (Tooele) | AV65: Bristol (Bristol) | AW65: Woodstock (Windsor) | AX65: Brush Prairie (Clark) | AY65: Birchwood (Washburn) | AZ65: Burnsville (Braxton) | BA65: Evanston (Uinta) | BD65: AK | BE65: Cooper Landing (Kenai Peninsula) | BF65: 60.4945 | BG65: -149.8409 | BI65: 22 | BJ65: -158.13 | BK65: 58 | BL65: 14 | BM65: 33 | BS65: -125.63 | BT65: 28 | BU65: 43.5 | BV65: 9.7 | BW65: 43.2 | BX65: 4.6 | BY65: 46 | BZ65: 8 | CA65: 1601.9782
A66: 70+8 | B66: Copper Center (Valdez-Cordova) | C66: Brilliant (Marion) | D66: Brookland (Craighead) | E66: Charco (Pima) | F66: Auburn Lake Trails (El Dorado) | G66: Castle Rock (Douglas) | H66: Northwest Harwinton (Litchfield) | J66: Seaford (Sussex) | K66: Black Diamond (Citrus) | L66: Bowman (Elbert) | M66: Kihei (Maui) | N66: Bassett (Chickasaw) | O66: Filer (Twin Falls) | P66: Bardolph (McDonough) | Q66: Bryant (Jay) | R66: Bluff City (Harper) | S66: Buckhorn (Perry) | T66: Calvin (Winn) | U66: Monomoscoy Island (Barnstable) | V66: Bryans Road (Charles) | X66: Beulah (Benzie) | Y66: Benson (Swift) | Z66: Bellflower (Montgomery) | AA66: Collinsville (Lauderdale) | AB66: Clyde Park (Park) | AC66: Blue Clay Farms (New Hanover) | AD66: Cavalier (Pembina) | AE66: Blue Springs (Gage) | AG66: Budd Lake (Morris) | AH66: Chamizal (Socorro) | AI66: Lund (White Pine) | AJ66: Beacon (Dutchess) | AK66: Beavercreek (Greene) | AL66: Boley (Okfuskee) | AM66: Columbia City (Columbia) | AN66: Avoca (Luzerne) | AO66: Coto Norte (Manatí) | AQ66: Clifton (Spartanburg) | AR66: Caputa (Pennington) | AS66: Chattanooga (Hamilton) | AT66: Atlanta (Cass) | AU66: Dutch John (Daggett) | AV66: Broadlands (Loudoun) | AX66: Bryant (Snohomish) | AY66: Birnamwood (Shawano) | AZ66: Cairo (Ritchie) | BA66: Evansville (Natrona) | BD66: AK | BE66: Copper Center (Valdez-Cordova) | BF66: 61.9845 | BG66: -145.3544 | BI66: 22 | BJ66: -157.5 | BK66: 58 | BL66: 14 | BM66: 33 | BS66: -125.63 | BT66: 28.5 | BU66: 43.1 | BV66: 9.3 | BW66: 42.8 | BX66: 4.5 | BY66: 46 | BZ66: 8 | CA66: 1565.5381
A67: 70+14 | B67: Cordova (Valdez-Cordova) | C67: Bristow Cove (Etowah) | D67: Bryant (Saline) | E67: Chiawuli Tak (Pima) | F67: August (San Joaquin) | G67: Cathedral (Hinsdale) | H67: Norwalk (Fairfield) | J67: Selbyville (Sussex) | K67: Black Hammock (Seminole) | L67: Boykin (Miller) | M67: Kilauea (Kauai) | N67: Batavia (Jefferson) | O67: Firth (Bingham) | P67: Barrington (Cook) | Q67: Buck Creek (Tippecanoe) | R67: Bogue (Graham) | S67: Buckner (Oldham) | T67: Cameron (Cameron) | U67: Monson Center (Hampden) | V67: Bryantown (Charles) | X67: Beverly Hills (Oakland) | Y67: Bertha (Todd) | Z67: Bel-Nor (St. Louis) | AA67: Columbia (Marion) | AB67: Colstrip (Rosebud) | AC67: Boardman (Columbus) | AD67: Cayuga (Sargent) | AE67: Bow Valley (Cedar) | AG67: Buena (Atlantic) | AH67: Chaparral (Doña Ana) | AI67: McDermitt (Humboldt) | AJ67: Beaver Dam Lake (Orange) | AK67: Beaverdam (Allen) | AL67: Boswell (Choctaw) | AM67: Condon (Gilliam) | AN67: Avon (Lebanon) | AO67: Culebra (Culebra) | AQ67: Clinton (Laurens) | AR67: Carthage (Miner) | AS67: Chesterfield (Henderson) | AT67: Aubrey (Denton) | AU67: Eagle Mountain (Utah) | AV67: Broadway (Rockingham) | AX67: Bryn Mawr-Skyway (King) | AY67: Biron (Wood) | AZ67: Camden-on-Gauley (Webster) | BA67: Fairview (Lincoln) | BD67: AK | BE67: Cordova (Valdez-Cordova) | BF67: 60.5348 | BG67: -145.6092 | BI67: 22 | BJ67: -156.88 | BK67: 58 | BL67: 14 | BM67: 33 | BS67: -125.63 | BT67: 29 | BU67: 42.7 | BV67: 9 | BW67: 42.4 | BX67: 4.4 | BY67: 46 | BZ67: 8 | CA67: 1529.0418
A68: 76-46 | B68: Covenant Life (Haines) | C68: Brook Highland (Shelby) | D68: Buckner (Lafayette) | E68: Chilchinbito (Navajo) | F68: Avalon (Los Angeles) | G68: Catherine (Garfield) | H68: Norwich (New London) | J68: Slaughter Beach (Sussex) | K68: Bloomingdale (Hillsborough) | L68: Braselton (Jackson) | M68: Ko Olina (Honolulu) | N68: Battle Creek (Ida) | O68: Fort Hall (Bannock) | P68: Barrington Hills (Cook) | Q68: Buffalo (White) | R68: Bonner Springs (Wyandotte) | S68: Buffalo (Larue) | T68: Campti (Natchitoches) | U68: Monument Beach (Barnstable) | V68: Buckeystown (Frederick) | X68: Big Bay (Marquette) | Y68: Bethel (Anoka) | Z68: Bel-Ridge (St. Louis) | AA68: Columbus (Lowndes) | AB68: Columbia Falls (Flathead) | AC68: Bogue (Carteret) | AD68: Center (Oliver) | AE68: Boys Town (Douglas) | AG68: Burleigh (Cape May) | AH68: Chical (Valencia) | AI68: McGill (White Pine) | AJ68: Bedford Hills (Westchester) | AK68: Beckett Ridge (Butler) | AL68: Bowlegs (Seminole) | AM68: Coos Bay (Coos) | AN68: Avondale (Chester) | AO68: Daguao (Naguabo) | AQ68: Clio (Marlboro) | AR68: Castlewood (Hamlin) | AS68: Christiana (Rutherford) | AT68: Aurora (Wise) | AU68: Echo (Summit) | AV68: Brodnax (Brunswick) | AX68: Buckley (Pierce) | AY68: Black Creek (Outagamie) | AZ68: Cameron (Marshall) | BA68: Farson (Sweetwater) | BD68: AK | BE68: Covenant Life (Haines) | BF68: 59.3998 | BG68: -136.0946 | BI68: 22 | BJ68: -156.25 | BK68: 58 | BL68: 14 | BM68: 33 | BS68: -125.63 | BT68: 29.5 | BU68: 42.4 | BV68: 8.6 | BW68: 42 | BX68: 4.3 | BY68: 46 | BZ68: 8 | CA68: 1492.9829
A69: 76-40 | B69: Craig (Prince of Wales-Hyder) | C69: Brookside (Jefferson) | D69: Bull Shoals (Marion) | E69: Chinle (Apache) | F69: Avenal (Kings) | G69: Cattle Creek (Garfield) | H69: Oakville (Litchfield) | J69: Smyrna (Kent) | K69: Blountstown (Calhoun) | L69: Braswell (Paulding) | M69: Koloa (Kauai) | N69: Baxter (Jasper) | O69: Franklin (Franklin) | P69: Barry (Pike) | Q69: Bunker Hill (Miami) | R69: Brewster (Thomas) | S69: Burgin (Mercer) | T69: Cankton (St. Landry) | U69: New Bedford (Bristol) | V69: Burkittsville (Frederick) | X69: Big Rapids (Mecosta) | Y69: Big Falls (Koochiching) | Z69: Belton (Cass) | AA69: Columbus AFB (Lowndes) | AB69: Columbus (Stillwater) | AC69: Boiling Spring Lakes (Brunswick) | AD69: Christine (Richland) | AE69: Bradshaw (York) | AG69: Burlington (Burlington) | AH69: Chili (Rio Arriba) | AI69: Mesquite (Clark) | AJ69: Belle Terre (Suffolk) | AK69: Bedford (Cuyahoga) | AL69: Box (Sequoyah) | AM69: Coquille (Coos) | AN69: Avonia (Erie) | AO69: Dorado (Dorado) | AQ69: Clover (York) | AR69: Cavour (Beadle) | AS69: Church Hill (Hawkins) | AT69: Austin (Travis) | AU69: Eden (Weber) | AV69: Brookneal (Campbell) | AX69: Bucoda (Thurston) | AY69: Black Earth (Dane) | AZ69: Capon Bridge (Hampshire) | BA69: Fontenelle (Lincoln) | BD69: AK | BE69: Craig (Prince of Wales-Hyder) | BF69: 55.4913 | BG69: -133.1165 | BI69: 22 | BJ69: -155.63 | BK69: 58 | BL69: 14 | BM69: 33 | BS69: -125.63 | BT69: 30 | BU69: 42 | BV69: 8.2 | BW69: 41.6 | BX69: 4.3 | BY69: 46 | BZ69: 8 | CA69: 1457.3535
A70: 76-34 | B70: Crooked Creek (Bethel) | C70: Brookwood (Tuscaloosa) | D70: Burdette (Mississippi) | E70: Chino Valley (Yavapai) | F70: Avery (Calaveras) | G70: Cedaredge (Delta) | H70: Old Greenwich (Fairfield) | J70: South Bethany (Sussex) | K70: Boca Raton (Palm Beach) | L70: Bremen (Haralson) | M70: Kualapuu (Maui) | N70: Bayard (Guthrie) | O70: Fruitland (Payette) | P70: Bartelso (Clinton) | Q70: Burket (Kosciusko) | R70: Bronson (Bourbon) | S70: Burkesville (Cumberland) | T70: Carencro (Lafayette) | U70: New Seabury (Barnstable) | V70: Burtonsville (Montgomery) | X70: Bingham Farms (Oakland) | Y70: Big Lake (Sherburne) | Z70: Bennett Springs (Laclede) | AA70: Como (Panola) | AB70: Condon (Missoula) | AC70: Boiling Springs (Cleveland) | AD70: Churchs Ferry (Ramsey) | AE70: Brady (Lincoln) | AG70: Butler (Morris) | AH70: Chilili (Bernalillo) | AI70: Mina (Mineral) | AJ70: Bellerose (Nassau) | AK70: Bedford Heights (Cuyahoga) | AL70: Boynton (Muskogee) | AM70: Cornelius (Washington) | AN70: Avonmore (Westmoreland) | AO70: Duque (Naguabo) | AQ70: Cokesbury (Greenwood) | AR70: Centerville (Turner) | AS70: Clarkrange (Fentress) | AT70: Austwell (Refugio) | AU70: Elberta (Utah) | AV70: Buchanan (Botetourt) | AX70: Buena (Yakima) | AY70: Black River Falls (Jackson) | AZ70: Carolina (Marion) | BA70: Fort Bridger (Uinta) | BD70: AK | BE70: Crooked Creek (Bethel) | BF70: 61.8439 | BG70: -158.1082 | BI70: 22 | BJ70: -155 | BK70: 58 | BL70: 14 | BM70: 33 | BS70: -125.63 | BT70: 30.5 | BU70: 41.7 | BV70: 7.8 | BW70: 41.2 | BX70: 4.2 | BY70: 46 | BZ70: 2 | CA70: 1421.1262
A71: 76-28 | B71: Crown Point (Kenai Peninsula) | C71: Broomtown (Cherokee) | D71: Cabot (Lonoke) | E71: Chloride (Mohave) | F71: Avila Beach (San Luis Obispo) | G71: Centennial (Arapahoe) | H71: Old Mystic (New London) | J71: St. Georges (New Castle) | K71: Bokeelia (Lee) | L71: Brinson (Decatur) | M71: Kukuihaele (Hawaii) | N71: Beacon (Mahaska) | O71: Garden City (Ada) | P71: Bartlett (Cook) | Q71: Burlington (Carroll) | R71: Brookville (Saline) | S71: Burlington (Boone) | T71: Carlyss (Calcasieu) | U71: Newburyport (Essex) | V71: Butlertown (Kent) | X71: Birch Run (Saginaw) | Y71: Bigelow (Nobles) | Z71: Benton (Scott) | AA71: Conehatta (Newton) | AB71: Conner (Ravalli) | AC71: Bolivia (Brunswick) | AD71: Cleveland (Stutsman) | AE71: Brainard (Butler) | AG71: Buttzville (Warren) | AH71: Chimayo (Santa Fe) | AI71: Minden (Douglas) | AJ71: Bellerose Terrace (Nassau) | AK71: Beechwood Trails (Licking) | AL71: Bradley (Grady) | AM71: Corvallis (Benton) | AN71: Baden (Beaver) | AO71: El Combate (Cabo Rojo) | AQ71: Columbia (Richland) | AR71: Central City (Lawrence) | AS71: Clarksburg (Carroll) | AT71: Avery (Red River) | AU71: Elk Ridge (Utah) | AV71: Buckhall (Prince William) | AX71: Bunk Foss (Snohomish) | AY71: Blair (Trempealeau) | AZ71: Carpendale (Mineral) | BA71: Fort Laramie (Goshen) | BD71: AK | BE71: Crown Point (Kenai Peninsula) | BF71: 60.4267 | BG71: -149.3529 | BI71: 22.5 | BJ71: -160 | BK71: 58 | BL71: 14 | BM71: 33 | BS71: -125.63 | BT71: 31 | BU71: 41.3 | BV71: 7.5 | BW71: 40.7 | BX71: 4 | BY71: 46 | BZ71: 2 | CA71: 1384.8012
A72: 76-22 | B72: Deering (Northwest Arctic) | C72: Brundidge (Pike) | D72: Caddo Valley (Clark) | E72: Christopher Creek (Gila) | F72: Avocado Heights (Los Angeles) | G72: Center (Saguache) | H72: Old Saybrook Center (Middlesex) | J72: Townsend (New Castle) | K72: Bonifay (Holmes) | L72: Bronwood (Terrell) | M72: Kula (Maui) | N72: Beaconsfield (Ringgold) | O72: Garden Valley (Boise) | P72: Bartonville (Peoria) | Q72: Burnettsville (White) | R72: Brownell (Ness) | S72: Burna (Livingston) | T72: Castor (Bienville) | U72: Newton (Middlesex) | V72: Cabin John (Montgomery) | X72: Birmingham (Oakland) | Y72: Bigfork (Itasca) | Z72: Benton City (Audrain) | AA72: Corinth (Alcorn) | AB72: Conrad (Pondera) | AC72: Bolton (Columbus) | AD72: Clifford (Traill) | AE72: Brewster (Blaine) | AG72: Byram Center (Sussex) | AH72: Chupadero (Santa Fe) | AI72: Moapa Town (Clark) | AJ72: Belleville (Jefferson) | AK72: Bellaire (Belmont) | AL72: Braggs (Muskogee) | AM72: Cottage Grove (Lane) | AN72: Baidland (Washington) | AO72: El Mangó (Juncos) | AQ72: Converse (Spartanburg) | AR72: Chamberlain (Brule) | AS72: Clarksville (Montgomery) | AT72: Avinger (Cass) | AU72: Elmo (Emery) | AV72: Buckingham Courthouse (Buckingham) | AX72: Burbank (Walla Walla) | AY72: Blanchardville (Lafayette) | AZ72: Cass (Pocahontas) | BA72: Fort Washakie (Fremont) | BD72: AK | BE72: Deering (Northwest Arctic) | BF72: 66.0723 | BG72: -162.7437 | BI72: 22.5 | BJ72: -159.38 | BK72: 58 | BL72: 8 | BM72: 30 | BS72: -125.63 | BT72: 31.5 | BU72: 40.9 | BV72: 7.2 | BW72: 40.4 | BX72: 3.9 | BY72: 46 | BZ72: 2 | CA72: 1350.2638
A73: 76-16 | B73: Delta Junction (Southeast Fairbanks) | C73: Bucks (Mobile) | D73: Caldwell (St. Francis) | E73: Chuichu (Pinal) | F73: Azusa (Los Angeles) | G73: Central City (Gilpin) | H73: Oxoboxo River (New London) | J73: Viola (Kent) | K73: Bonita Springs (Lee) | L73: Brookhaven (DeKalb) | M73: Kurtistown (Hawaii) | N73: Beaman (Grundy) | O73: Genesee (Latah) | P73: Basco (Hancock) | Q73: Burns City (Martin) | R73: Bucklin (Ford) | S73: Burnside (Pulaski) | T73: Catahoula (St. Martin) | U73: North Adams (Berkshire) | V73: California (St. Mary's) | X73: Blissfield (Lenawee) | Y73: Bingham Lake (Cottonwood) | Z73: Berger (Franklin) | AA73: Courtland (Panola) | AB73: Cooke City (Park) | AC73: Bonnetsville (Sampson) | AD73: Cogswell (Sargent) | AE73: Bridgeport (Morrill) | AG73: Caldwell (Essex) | AH73: Church Rock (McKinley) | AI73: Moapa Valley (Clark) | AJ73: Bellmore (Nassau) | AK73: Bellbrook (Greene) | AL73: Braman (Kay) | AM73: Cove (Union) | AN73: Baileyville (Centre) | AO73: El Negro (Yabucoa) | AQ73: Conway (Horry) | AR73: Chancellor (Turner) | AS73: Cleveland (Bradley) | AT73: Azle (Tarrant) | AU73: Elsinore (Sevier) | AV73: Buena Vista (Buena Vista) | AX73: Burien (King) | AY73: Bloomer (Chippewa) | AZ73: Cassville (Monongalia) | BA73: Fox Farm-College (Laramie) | BD73: AK | BE73: Delta Junction (Southeast Fairbanks) | BF73: 64.0604 | BG73: -145.7058 | BI73: 22.5 | BJ73: -158.75 | BK73: 58 | BL73: 14 | BM73: 33 | BS73: -125.63 | BT73: 32 | BU73: 40.6 | BV73: 6.9 | BW73: 39.9 | BX73: 3.8 | BY73: 46 | BZ73: 2 | CA73: 1312.9625
A74: 76-10 | B74: Deltana (Southeast Fairbanks) | C74: Butler (Choctaw) | D74: Cale (Nevada) | E74: Cibecue (Navajo) | F74: Baker (San Bernardino) | G74: Chacra (Garfield) | H74: Pawcatuck (New London) | J74: Wilmington (New Castle) | K74: Boulevard Gardens (Broward) | L74: Brooklet (Bulloch) | M74: Lahaina (Maui) | N74: Beaver (Boone) | O74: Georgetown (Bear Lake) | P74: Batavia (Kane) | Q74: Burns Harbor (Porter) | R74: Bucyrus (Miami) | S74: Butler (Pendleton) | T74: Cecilia (St. Martin) | U74: North Amherst (Hampshire) | V74: Calvert Beach (Calvert) | X74: Bloomfield Hills (Oakland) | Y74: Birchwood Village (Washington) | Z74: Berkeley (St. Louis) | AA74: Crawford (Lowndes) | AB74: Coram (Flathead) | AC74: Boone (Watauga) | AD74: Coleharbor (McLean) | AE74: Bristow (Boyd) | AG74: Califon (Hunterdon) | AH74: Cimarron (Colfax) | AI74: Mogul (Washoe) | AJ74: Bellport (Suffolk) | AK74: Belle Center (Logan) | AL74: Bray (Stephens) | AM74: Crabtree (Linn) | AN74: Bainbridge (Lancaster) | AO74: El Ojo (Santa Isabel) | AQ74: Cope (Orangeburg) | AR74: Chelsea (Faulk) | AS74: Clifton (Wayne) | AT74: B and E (Starr) | AU74: Elwood (Box Elder) | AV74: Bull Run (Prince William) | AX74: Burley (Kitsap) | AY74: Bloomfield (Walworth) | AZ74: Cedar Grove (Kanawha) | BA74: Frannie (Big Horn) | BD74: AK | BE74: Deltana (Southeast Fairbanks) | BF74: 63.8724 | BG74: -145.2158 | BI74: 22.5 | BJ74: -158.13 | BK74: 58 | BL74: 14 | BM74: 33 | BS74: -125.63 | BT74: 32.5 | BU74: 40.2 | BV74: 6.6 | BW74: 39.5 | BX74: 3.7 | BY74: 46 | BZ74: 2 | CA74: 1276.3687
A75: 76-4 | B75: Denali Park (Denali) | C75: Calera (Shelby) | D75: Calico Rock (Izard) | E75: Cibola (La Paz) | F75: Bakersfield (Kern) | G75: Cheraw (Otero) | H75: Pemberwick (Fairfield) | J75: Wilmington Manor (New Castle) | K75: Bowling Green (Hardee) | L75: Brooks (Fayette) | M75: Laie (Honolulu) | N75: Beaverdale (Des Moines) | O75: Glenns Ferry (Elmore) | P75: Batchtown (Calhoun) | Q75: Butler (DeKalb) | R75: Buffalo (Wilson) | S75: Cadiz (Trigg) | T75: Center Point (Avoyelles) | U75: North Eastham (Barnstable) | V75: Calverton (Montgomery) | X75: Bloomingdale (Van Buren) | Y75: Bird Island (Renville) | Z75: Bernie (Stoddard) | AA75: Crenshaw (Quitman) | AB75: Corvallis (Ravalli) | AC75: Boonville (Yadkin) | AD75: Colfax (Richland) | AE75: Broadwater (Morrill) | AG75: Camden (Camden) | AH75: City of the Sun (Luna) | AI75: Montello (Elko) | AJ75: Belmont (Allegany) | AK75: Belle Valley (Noble) | AL75: Breckenridge (Garfield) | AM75: Crane (Harney) | AN75: Bairdford (Allegheny) | AO75: El Paraiso (Ponce) | AQ75: Cordova (Orangeburg) | AR75: Chester (Lake) | AS75: Clinton (Anderson) | AT75: Bacliff (Galveston) | AU75: Emery (Emery) | AV75: Bull Run Mountain Estates (Prince William) | AX75: Burlington (Skagit) | AY75: Bloomington (Grant) | AZ75: Century (Barbour) | BA75: Freedom (Lincoln) | BD75: AK | BE75: Denali Park (Denali) | BF75: 63.5909 | BG75: -148.7107 | BI75: 22.5 | BJ75: -157.5 | BK75: 58 | BL75: 14 | BM75: 33 | BS75: -125.63 | BT75: 33 | BU75: 39.8 | BV75: 6.4 | BW75: 39.1 | BX75: 3.6 | BY75: 40 | BZ75: 2 | CA75: 1240.6951
A76: 76+2 | B76: Diamond Ridge (Kenai Peninsula) | C76: Calvert (Mobile) | D76: Calion (Union) | E76: Cienega Springs (La Paz) | F76: Baldwin Park (Los Angeles) | G76: Cherry Creek (Arapahoe) | H76: Plainfield Village (Windham) | J76: Woodside (Kent) | K76: Boynton Beach (Palm Beach) | L76: Broxton (Coffee) | M76: Lanai City (Maui) | N76: Bedford (Taylor) | O76: Gooding (Gooding) | P76: Bath (Mason) | Q76: Butlerville (Jennings) | R76: Buhler (Reno) | S76: Calhoun (McLean) | T76: Central (East Baton Rouge) | U76: North Falmouth (Barnstable) | V76: Cambridge (Dorchester) | X76: Boon (Wexford) | Y76: Biscay (McLeod) | Z76: Bertrand (Mississippi) | AA76: Crosby (Amite) | AB76: Corwin Springs (Park) | AC76: Bostic (Rutherford) | AD76: Columbus (Burke) | AE76: Brock (Nemaha) | AG76: Cape May (Cape May) | AH76: Clayton (Union) | AI76: Mount Charleston (Clark) | AJ76: Bemus Point (Chautauqua) | AK76: Bellefontaine (Logan) | AL76: Brent (Sequoyah) | AM76: Crawfordsville (Linn) | AN76: Bakerstown (Allegheny) | AO76: El Tumbao (Guánica) | AQ76: Coronaca (Greenwood) | AR76: Claire City (Roberts) | AS76: Coalfield (Morgan) | AT76: Bailey (Fannin) | AU76: Emigration Canyon (Salt Lake) | AV76: Burke (Fairfax) | AX76: Camano (Island) | AY76: Blue Mounds (Dane) | AZ76: Ceredo (Wayne) | BA76: Garland (Park) | BD76: AK | BE76: Diamond Ridge (Kenai Peninsula) | BF76: 59.7024 | BG76: -151.5545 | BI76: 22.5 | BJ76: -156.88 | BK76: 58 | BL76: 14 | BM76: 33 | BS76: -125.63 | BT76: 33.5 | BU76: 39.4 | BV76: 5.9 | BW76: 38.7 | BX76: 3.5 | BY76: 40 | BZ76: 2 | CA76: 1203.5173
A77: 76+8 | B77: Dillingham (Dillingham) | C77: Camden (Wilcox) | D77: Camden (Ouachita) | E77: Citrus Park (Maricopa) | F77: Ballard (Santa Barbara) | G77: Cherry Hills Village (Arapahoe) | H77: Plantsville (Hartford) | J77: Woodside East (Kent) | K77: Bradenton (Manatee) | L77: Brunswick (Glynn) | M77: Launiupoko (Maui) | N77: Belle Plaine (Benton) | O77: Grace (Caribou) | P77: Bay View Gardens (Woodford) | Q77: Cadiz (Henry) | R77: Bunker Hill (Russell) | S77: California (Campbell) | T77: Chackbay (Lafourche) | U77: North Lakeville (Plymouth) | V77: Camp Springs (Prince George's) | X77: Boyne City (Charlevoix) | Y77: Biwabik (St. Louis) | Z77: Bethany (Harrison) | AA77: Crowder (Quitman) | AB77: Craig (Lewis and Clark) | AC77: Bowmore (Hoke) | AD77: Conway (Walsh) | AE77: Broken Bow (Custer) | AG77: Cape May Court House (Cape May) | AH77: Cliff (Grant) | AI77: Mount Wilson (Lincoln) | AJ77: Bergen (Genesee) | AK77: Bellevue (Huron) | AL77: Bridge Creek (Grady) | AM77: Creswell (Lane) | AN77: Baldwin (Allegheny) | AO77: Emajagua (Maunabo) | AQ77: Cottageville (Colleton) | AR77: Claremont (Brown) | AS77: Coalmont (Grundy) | AT77: Bailey's Prairie (Brazoria) | AU77: Enoch (Iron) | AV77: Burke Centre (Fairfax) | AX77: Camas (Clark) | AY77: Blue River (Grant) | AZ77: Chapmanville (Logan) | BA77: Gillette (Campbell) | BD77: AK | BE77: Dillingham (Dillingham) | BF77: 59.055 | BG77: -158.5379 | BI77: 22.5 | BJ77: -156.25 | BK77: 58 | BL77: 14 | BM77: 33 | BS77: -125.63 | BT77: 34 | BU77: 39 | BV77: 5.6 | BW77: 38.2 | BX77: 3.3 | BY77: 40 | BZ77: 2 | CA77: 1165.1477
A78: 76+14 | B78: Diomede (Nome) | C78: Camp Hill (Tallapoosa) | D78: Cammack Village (Pulaski) | E78: Clacks Canyon (Mohave) | F78: Ballico (Merced) | G78: Cheyenne Wells (Cheyenne) | H78: Poquonock Bridge (New London) | J78: Wyoming (Kent) | K78: Bradenton Beach (Manatee) | L78: Buchanan (Haralson) | M78: Laupahoehoe (Hawaii) | N78: Bellevue (Jackson) | O78: Grand View (Owyhee) | P78: Baylis (Pike) | Q78: Cambridge City (Wayne) | R78: Burden (Cowley) | S78: Calvert City (Marshall) | T78: Chalmette (St. Bernard) | U78: North Pembroke (Plymouth) | V78: Cape St. Claire (Anne Arundel) | X78: Boyne Falls (Charlevoix) | Y78: Blackduck (Beltrami) | Z78: Bethel (Shelby) | AA78: Cruger (Holmes) | AB78: Crane (Richland) | AC78: Brevard (Transylvania) | AD78: Cooperstown (Griggs) | AE78: Brownlee (Cherry) | AG78: Cape May Point (Cape May) | AH78: Cloudcroft (Otero) | AI78: Nellis AFB (Clark) | AJ78: Bethpage (Nassau) | AK78: Bellville (Sandusky) | AL78: Bridgeport (Caddo) | AM78: Culver (Jefferson) | AN78: Bally (Berks) | AO78: Esperanza (Vieques) | AQ78: Coward (Florence) | AR78: Clark (Clark) | AS78: Collegedale (Hamilton) | AT78: Baird (Callahan) | AU78: Enterprise (Washington) | AV78: Burkeville (Nottoway) | AX78: Canterwood (Pierce) | AY78: Bluffview (Sauk) | AZ78: Charles Town (Jefferson) | BA78: Glendo (Platte) | BD78: AK | BE78: Diomede (Nome) | BF78: 65.7536 | BG78: -168.9219 | BI78: 22.5 | BJ78: -155.63 | BK78: 58 | BL78: 8 | BM78: 30 | BS78: -125.63 | BT78: 34.5 | BU78: 38.6 | BV78: 5.3 | BW78: 37.8 | BX78: 3.2 | BY78: 40 | BZ78: 2 | CA78: 1126.9833
A79: 82-46 | B79: Dot Lake (Southeast Fairbanks) | C79: Carbon Hill (Walker) | D79: Campbell Station (Jackson) | E79: Clarkdale (Yavapai) | F79: Bangor (Butte) | G79: Cimarron Hills (El Paso) | H79: Quinebaug (Windham) | K79: Bradley Junction (Polk) | L79: Buckhead (Morgan) | M79: Lawai (Kauai) | N79: Belmond (Wright) | O79: Grangeville (Idaho) | P79: Beach Park (Lake) | Q79: Camden (Carroll) | R79: Burdett (Pawnee) | S79: Camargo (Montgomery) | T79: Charenton (St. Mary) | U79: North Plymouth (Plymouth) | V79: Capitol Heights (Prince George's) | X79: Breckenridge (Gratiot) | Y79: Blaine (Anoka) | Z79: Beverly Hills (St. Louis) | AA79: Crystal Springs (Copiah) | AB79: Crow Agency (Big Horn) | AC79: Brices Creek (Craven) | AD79: Courtenay (Stutsman) | AE79: Brownville (Nemaha) | AG79: Carlstadt (Bergen) | AH79: Clovis (Curry) | AI79: Nelson (Clark) | AJ79: Billington Heights (Erie) | AK79: Belmont (Belmont) | AL79: Briggs (Cherokee) | AM79: Dallas (Polk) | AN79: Bangor (Northampton) | AO79: Espino (Añasco) | AQ79: Cowpens (Spartanburg) | AR79: Clear Lake (Deuel) | AS79: Collierville (Shelby) | AT79: Balch Springs (Dallas) | AU79: Ephraim (Sanpete) | AV79: Callaghan (Alleghany) | AX79: Canyon Creek (Snohomish) | AY79: Boaz (Richland) | AZ79: Charleston (Kanawha) | BA79: Glenrock (Converse) | BD79: AK | BE79: Dot Lake (Southeast Fairbanks) | BF79: 63.5749 | BG79: -144.1815 | BI79: 22.5 | BJ79: -155 | BK79: 58 | BL79: 8 | BM79: 30 | BS79: -125.63 | BT79: 35 | BU79: 38.2 | BV79: 5 | BW79: 37.3 | BX79: 3 | BY79: 40 | BZ79: 2 | CA79: 1088.9489
A80: 82-40 | B80: Dot Lake Village (Southeast Fairbanks) | C80: Cardiff (Jefferson) | D80: Caraway (Craighead) | E80: Clay Springs (Navajo) | F80: Banning (Riverside) | G80: City of Creede (Mineral) | H80: Riverside (Fairfield) | K80: Brandon (Hillsborough) | L80: Buena Vista (Marion) | M80: Leilani Estates (Hawaii) | N80: Bennett (Cedar) | O80: Greenleaf (Canyon) | P80: Beardstown (Cass) | Q80: Campbellsburg (Washington) | R80: Burlingame (Osage) | S80: Cambridge (Jefferson) | T80: Chataignier (Evangeline) | U80: North Scituate (Plymouth) | V80: Carlos (Allegany) | X80: Breedsville (Van Buren) | Y80: Blomkest (Kandiyohi) | Z80: Bevier (Macon) | AA80: Darling (Quitman) | AB80: Culbertson (Roosevelt) | AC80: Bridgeton (Craven) | AD80: Crary (Ramsey) | AE80: Brule (Keith) | AG80: Carteret (Middlesex) | AH80: Cobre (Grant) | AI80: Nixon (Washoe) | AJ80: Binghamton (Broome) | AK80: Belmore (Putnam) | AL80: Bristow (Creek) | AM80: Damascus (Clackamas) | AN80: Barkeyville (Venango) | AO80: Fajardo (Fajardo) | AQ80: Cross Anchor (Spartanburg) | AR80: Colman (Moody) | AS80: Collinwood (Wayne) | AT80: Balcones Heights (Bexar) | AU80: Erda (Tooele) | AV80: Calverton (Fauquier) | AX80: Carbonado (Pierce) | AY80: Bohners Lake (Racine) | AZ80: Charlton Heights (Fayette) | BA80: Granger (Sweetwater) | BD80: AK | BE80: Dot Lake Village (Southeast Fairbanks) | BF80: 63.6622 | BG80: -144.016 | BI80: 24 | BJ80: -126.25 | BK80: 52 | BL80: 8 | BM80: 27 | BS80: -125.63 | BT80: 35.5 | BU80: 37.8 | BV80: 4.6 | BW80: 36.9 | BX80: 2.8 | BY80: 40 | BZ80: 2 | CA80: 1050.9972
A81: 82-34 | B81: Dry Creek (Southeast Fairbanks) | C81: Carlisle-Rockledge (Etowah) | D81: Carlisle (Lonoke) | E81: Claypool (Gila) | F81: Barstow (San Bernardino) | G81: Clifton (Mesa) | H81: Rockville (Tolland) | K81: Branford (Suwannee) | L81: Buford (Gwinnett) | M81: Lihue (Kauai) | N81: Bentley (Pottawattamie) | O81: Groveland (Bingham) | P81: Beason (Logan) | Q81: Canaan (Jefferson) | R81: Burlington (Coffey) | S81: Campbellsburg (Henry) | T81: Chatham (Jackson) | U81: North Seekonk (Bristol) | V81: Carney (Baltimore) | X81: Brethren (Manistee) | Y81: Blooming Prairie (Steele) | Z81: Biehle (Perry) | AA81: De Kalb (Kemper) | AB81: Custer (Yellowstone) | AC81: Broad Creek (Carteret) | AD81: Crosby (Divide) | AE81: Bruning (Thayer) | AG81: Cedar Glen Lakes (Ocean) | AH81: Cochiti (Sandoval) | AI81: North Las Vegas (Clark) | AJ81: Binghamton University (Broome) | AK81: Beloit (Mahoning) | AL81: Broken Arrow (Tulsa) | AM81: Days Creek (Douglas) | AN81: Barrville (Mifflin) | AO81: Florida (Florida) | AQ81: Cross Hill (Laurens) | AR81: Colome (Tripp) | AS81: Colonial Heights (Sullivan) | AT81: Ballinger (Runnels) | AU81: Escalante (Garfield) | AV81: Camptown (Isle of Wight) | AX81: Carlsborg (Clallam) | AY81: Bonduel (Shawano) | AZ81: Chattaroy (Mingo) | BA81: Green River (Sweetwater) | BD81: AK | BE81: Dry Creek (Southeast Fairbanks) | BF81: 63.6255 | BG81: -144.6364 | BI81: 24 | BJ81: -125.63 | BK81: 52 | BL81: 8 | BM81: 27 | BS81: -125.63 | BT81: 36 | BU81: 37.4 | BV81: 4.2 | BW81: 36.4 | BX81: 2.7 | BY81: 40 | BZ81: 2 | CA81: 1012.7883
A82: 82-28 | B82: Eagle (Southeast Fairbanks) | C82: Carlton (Clarke) | D82: Carthage (Dallas) | E82: Clifton (Greenlee) | F82: Bass Lake (Madera) | G82: Coal Creek (Fremont) | H82: Salmon Brook (Hartford) | K82: Brent (Escambia) | L82: Butler (Taylor) | M82: Maalaea (Maui) | N82: Benton (Ringgold) | O82: Hagerman (Gooding) | P82: Beaverville (Iroquois) | Q82: Cannelburg (Daviess) | R82: Burns (Marion) | S82: Campbellsville (Taylor) | T82: Chauvin (Terrebonne) | U82: North Westport (Bristol) | V82: Catonsville (Baltimore) | X82: Bridgeport (Saginaw) | Y82: Bloomington (Hennepin) | Z82: Big Lake (Holt) | AA82: Decatur (Newton) | AB82: Cut Bank (Glacier) | AC82: Broadway (Lee) | AD82: Crystal (Pembina) | AE82: Bruno (Butler) | AG82: Cedar Glen West (Ocean) | AH82: Cochiti Lake (Sandoval) | AI82: Oasis (Elko) | AJ82: Black River (Jefferson) | AK82: Belpre (Washington) | AL82: Broken Bow (McCurtain) | AM82: Dayton (Yamhill) | AN82: Bath (Northampton) | AO82: Fránquez (Morovis) | AQ82: Dalzell (Sumter) | AR82: Colonial Pine Hills (Pennington) | AS82: Columbia (Maury) | AT82: Balmorhea (Reeves) | AU82: Eureka (Juab) | AV82: Cana (Carroll) | AX82: Carnation (King) | AY82: Boscobel (Grant) | AZ82: Chauncey (Logan) | BA82: Greybull (Big Horn) | BD82: AK | BE82: Eagle (Southeast Fairbanks) | BF82: 64.7813 | BG82: -141.1978 | BI82: 24 | BJ82: -125 | BK82: 52 | BL82: 8 | BM82: 27 | BS82: -125.63 | BT82: 36.5 | BU82: 36.9 | BV82: 3.8 | BW82: 35.9 | BX82: 2.5 | BY82: 40 | BZ82: 2 | CA82: 969.585
A83: 82-22 | B83: Eagle Village (Southeast Fairbanks) | C83: Carolina (Covington) | D83: Casa (Perry) | E83: Colorado City (Mohave) | F83: Bay Point (Contra Costa) | G83: Coaldale (Fremont) | H83: Saybrook Manor (Middlesex) | K83: Briny Breezes (Palm Beach) | L83: Byromville (Dooly) | M83: Mahinahina (Maui) | N83: Berkley (Boone) | O83: Hailey (Blaine) | P83: Beckemeyer (Clinton) | Q83: Cannelton (Perry) | R83: Burr Oak (Jewell) | S83: Campton (Wolfe) | T83: Cheneyville (Rapides) | U83: Northampton (Hampshire) | V83: Cavetown (Washington) | X83: Bridgman (Berrien) | Y83: Blue Earth (Faribault) | Z83: Big Spring (Montgomery) | AA83: DeLisle (Harrison) | AB83: Darby (Ravalli) | AC83: Brogden (Wayne) | AD83: Dahlen (Nelson) | AE83: Brunswick (Antelope) | AG83: Cedarville (Cumberland) | AH83: Columbus (Luna) | AI83: Orovada (Humboldt) | AJ83: Blasdell (Erie) | AK83: Bentleyville (Cuyahoga) | AL83: Bromide (Johnston) | AM83: Dayville (Grant) | AN83: Baumstown (Berks) | AO83: Fuig (Guánica) | AQ83: Darlington (Darlington) | AR83: Colton (Minnehaha) | AS83: Cookeville (Putnam) | AT83: Bandera (Bandera) | AU83: Fairfield (Utah) | AV83: Cape Charles (Northampton) | AX83: Carson (Skamania) | AY83: Boulder Junction (Vilas) | AZ83: Cheat Lake (Monongalia) | BA83: Grover (Lincoln) | BD83: AK | BE83: Eagle Village (Southeast Fairbanks) | BF83: 64.7434 | BG83: -141.1138 | BI83: 24 | BJ83: -124.38 | BK83: 52 | BL83: 8 | BM83: 27 | BS83: -125.63 | BT83: 37 | BU83: 36.4 | BV83: 3.3 | BW83: 35.3 | BX83: 2.5 | BY83: 40 | BZ83: 2 | CA83: 922.7878
A84: 82-16 | B84: Edna Bay (Prince of Wales-Hyder) | C84: Carrollton (Pickens) | D84: Cash (Craighead) | E84: Comobabi (Pima) | F84: Bayview (Humboldt) | G84: Cokedale (Las Animas) | H84: Shelton (Fairfield) | K84: Bristol (Liberty) | L84: Byron (Peach) | M84: Maili (Honolulu) | N84: Bernard (Dubuque) | O84: Hamer (Jefferson) | P84: Bedford Park (Cook) | Q84: Carbon (Clay) | R84: Burrton (Harvey) | S84: Caneyville (Grayson) | T84: Choctaw (Lafourche) | U84: Northwest Harwich (Barnstable) | V84: Cearfoss (Washington) | X84: Brighton (Livingston) | Y84: Bluffton (Otter Tail) | Z84: Bigelow (Holt) | AA84: Derma (Calhoun) | AB84: Dayton (Lake) | AC84: Brookford (Catawba) | AD84: Davenport (Cass) | AE84: Burchard (Pawnee) | AG84: Chatham (Morris) | AH84: Conchas Dam (San Miguel) | AI84: Osino (Elko) | AJ84: Blauvelt (Rockland) | AK84: Benton Ridge (Hancock) | AL84: Brooksville (Pottawatomie) | AM84: Deer Island (Columbia) | AN84: Beallsville (Washington) | AO84: G. L. García (Cayey) | AQ84: Denmark (Bamberg) | AR84: Columbia (Brown) | AS84: Coopertown (Robertson) | AT84: Bangs (Brown) | AU84: Fairview (Sanpete) | AV84: Capron (Southampton) | AX84: Cascade Valley (Grant) | AY84: Bowler (Shawano) | AZ84: Chelyan (Kanawha) | BA84: Guernsey (Platte) | BD84: AK | BE84: Edna Bay (Prince of Wales-Hyder) | BF84: 55.964 | BG84: -133.6662 | BI84: 24 | BJ84: -123.75 | BK84: 52 | BL84: 8 | BM84: 27 | BS84: -125.63 | BT84: 37.5 | BU84: 35.9 | BV84: 2.9 | BW84: 34.7 | BX84: 2.5 | BY84: 40 | BZ84: 2 | CA84: 877.3906
A85: 82-10 | B85: Eek (Bethel) | C85: Castleberry (Conecuh) | D85: Caulksville (Logan) | E85: Concho (Apache) | F85: Beale AFB (Yuba) | G85: Collbran (Mesa) | H85: Sherwood Manor (Hartford) | K85: Broadview Park (Broward) | L85: Cadwell (Laurens) | M85: Makaha (Honolulu) | N85: Bertram (Linn) | O85: Hansen (Twin Falls) | P85: Beecher (Will) | Q85: Carlisle (Sullivan) | R85: Bushong (Lyon) | S85: Cannonsburg (Boyd) | T85: Choudrant (Lincoln) | U85: Norton Center (Bristol) | V85: Cecilton (Cecil) | X85: Britton (Lenawee) | Y85: Bock (Mille Lacs) | Z85: Billings (Christian) | AA85: Diamondhead (Hancock) | AB85: De Borgia (Mineral) | AC85: Brunswick (Columbus) | AD85: Dawson (Kidder) | AE85: Burr (Otoe) | AG85: Cherry Hill Mall (Camden) | AH85: Cordova (Rio Arriba) | AI85: Owyhee (Elko) | AJ85: Bliss (Wyoming) | AK85: Bentonville (Adams) | AL85: Brush Creek (Delaware) | AM85: Depoe Bay (Lincoln) | AN85: Bear Creek Village (Luzerne) | AO85: Galateo (Toa Alta) | AQ85: Dentsville (Richland) | AR85: Conde (Spink) | AS85: Copperhill (Polk) | AT85: Banquete (Nueces) | AU85: Farmington (Davis) | AV85: Captains Cove (Accomack) | AX85: Cashmere (Chelan) | AY85: Boyceville (Dunn) | AZ85: Chesapeake (Kanawha) | BA85: Hanna (Carbon) | BD85: AK | BE85: Eek (Bethel) | BF85: 60.2164 | BG85: -162.0329 | BI85: 24 | BJ85: -123.13 | BK85: 52 | BL85: 8 | BM85: 27 | BS85: -125.63 | BT85: 38 | BU85: 35.5 | BV85: 2.5 | BW85: 34.3 | BX85: 2.3 | BY85: 40 | BZ85: 2 | CA85: 841.3258
A86: 82-4 | B86: Egegik (Lake and Peninsula) | C86: Catherine (Wilcox) | D86: Cave City (Sharp) | E86: Congress (Yavapai) | F86: Bear Creek (Merced) | G86: Colona (Ouray) | H86: Simsbury Center (Hartford) | K86: Bronson (Levy) | L86: Cairo (Grady) | M86: Makaha Valley (Honolulu) | N86: Bettendorf (Scott) | O86: Harrison (Kootenai) | P86: Beecher City (Effingham) | Q86: Carmel (Hamilton) | R86: Bushton (Rice) | S86: Carlisle (Nicholas) | T86: Church Point (Acadia) | U86: Ocean Bluff-Brant Rock (Plymouth) | V86: Cedarville (Prince George's) | X86: Bronson (Branch) | Y86: Borup (Norman) | Z86: Birch Tree (Shannon) | AA86: D'Iberville (Harrison) | AB86: Deer Lodge (Powell) | AC86: Bryson City (Swain) | AD86: Dazey (Barnes) | AE86: Burton (Keya Paha) | AG86: Chesilhurst (Camden) | AH86: Corona (Lincoln) | AI86: Pahrump (Nye) | AJ86: Blodgett Mills (Cortland) | AK86: Berea (Cuyahoga) | AL86: Brushy (Sequoyah) | AM86: Deschutes River Woods (Deschutes) | AN86: Bear Lake (Warren) | AO86: Garrochales (Barceloneta) | AQ86: Dillon (Dillon) | AR86: Corn Creek (Mellette) | AS86: Cornersville (Marshall) | AT86: Bardwell (Ellis) | AU86: Farr West (Weber) | AV86: Carrollton (Isle of Wight) | AX86: Castle Rock (Cowlitz) | AY86: Boyd (Chippewa) | AZ86: Chester (Hancock) | BA86: Hartrandt (Natrona) | BD86: AK | BE86: Egegik (Lake and Peninsula) | BF86: 58.2181 | BG86: -157.4036 | BI86: 24 | BJ86: -122.5 | BK86: 52 | BL86: 8 | BM86: 27 | BS86: -125.63 | BT86: 38.5 | BU86: 35.3 | BV86: 2.3 | BW86: 34 | BX86: 2.2 | BY86: 40 | BZ86: 2 | CA86: 821.2337
A87: 82+2 | B87: Eielson AFB (Fairbanks North Star) | C87: Cedar Bluff (Cherokee) | D87: Cave Springs (Benton) | E87: Coolidge (Pinal) | F87: Bear Valley (Mariposa) | G87: Colorado City (Pueblo) | H87: South Coventry (Tolland) | K87: Brooker (Bradford) | L87: Calhoun (Gordon) | M87: Makakilo (Honolulu) | N87: Bevington (Madison) | O87: Hauser (Kootenai) | P87: Belgium (Vermilion) | Q87: Carthage (Rush) | R87: Byers (Pratt) | S87: Carrollton (Carroll) | T87: Claiborne (Ouachita) | U87: Ocean Grove (Bristol) | V87: Centreville (Queen Anne's) | X87: Brooklyn (Jackson) | Y87: Bovey (Itasca) | Z87: Birmingham (Clay) | AA87: D'Lo (Simpson) | AB87: Denton (Fergus) | AC87: Buies Creek (Harnett) | AD87: De Lamere (Sargent) | AE87: Burwell (Garfield) | AG87: Chester (Morris) | AH87: Corrales (Sandoval) | AI87: Panaca (Lincoln) | AJ87: Bloomfield (Ontario) | AK87: Bergholz (Jefferson) | AL87: Buffalo (Harper) | AM87: Detroit (Marion) | AN87: Bear Rocks (Fayette) | AO87: Guánica (Guánica) | AQ87: Donalds (Abbeville) | AR87: Corona (Roberts) | AS87: Cottage Grove (Henry) | AT87: Barrera (Starr) | AU87: Fayette (Sanpete) | AV87: Carrsville (Isle of Wight) | AX87: Cathcart (Snohomish) | AY87: Brandon (Fond du Lac) | AZ87: Clarksburg (Harrison) | BA87: Hartville (Platte) | BD87: AK | BE87: Eielson AFB (Fairbanks North Star) | BF87: 64.6741 | BG87: -147.0605 | BI87: 24 | BJ87: -121.88 | BK87: 52 | BL87: 8 | BM87: 27 | BS87: -125.63 | BT87: 39 | BU87: 35.2 | BV87: 2 | BW87: 33.9 | BX87: 2 | BY87: 40 | BZ87: 2 | CA87: 806.2283
A88: 82+8 | B88: Ekwok (Dillingham) | C88: Center Point (Jefferson) | D88: Cedarville (Crawford) | E88: Copper Hill (Gila) | F88: Bear Valley Springs (Kern) | G88: Colorado Springs (El Paso) | H88: South Windham (Windham) | K88: Brookridge (Hernando) | L88: Calvary (Grady) | M88: Makawao (Maui) | N88: Birmingham (Van Buren) | O88: Hayden (Kootenai) | P88: Belknap (Johnson) | Q88: Cayuga (Vermillion) | R88: Caldwell (Sumner) | S88: Carrsville (Livingston) | T88: Clarence (Natchitoches) | U88: Onset (Plymouth) | V88: Chance (Somerset) | X88: Brown City (Sanilac) | Y88: Bowlus (Morrison) | Z88: Bismarck (St. Francois) | AA88: Doddsville (Sunflower) | AB88: Dillon (Beaverhead) | AC88: Bunn (Franklin) | AD88: Deering (McHenry) | AE88: Bushnell (Kimball) | AG88: Clayton (Gloucester) | AH88: Costilla (Taos) | AI88: Paradise (Clark) | AJ88: Bloomingburg (Sullivan) | AK88: Berkey (Lucas) | AL88: Bull Hollow (Delaware) | AM88: Dillard (Douglas) | AN88: Beaver (Beaver) | AO88: Guayabal (Juana Díaz) | AQ88: Due West (Abbeville) | AR88: Corsica (Douglas) | AS88: Cottontown (Sumner) | AT88: Barrett (Harris) | AU88: Ferron (Emery) | AV88: Cascades (Loudoun) | AX88: Cathlamet (Wahkiakum) | AY88: Brice Prairie (La Crosse) | AZ88: Clay (Clay) | BA88: Hawk Springs (Goshen) | BD88: AK | BE88: Ekwok (Dillingham) | BF88: 59.3462 | BG88: -157.4861 | BI88: 24 | BJ88: -121.25 | BK88: 52 | BL88: 8 | BM88: 27 | BS88: -125.63 | BT88: 39.5 | BU88: 34.9 | BV88: 1.6 | BW88: 33.5 | BX88: 1.9 | BY88: 40 | BZ88: -4 | CA88: 777.9103
A89: 82+14 | B89: Elfin Cove (Hoonah-Angoon) | C89: Centre (Cherokee) | D89: Center Ridge (Conway) | E89: Cordes Lakes (Yavapai) | F89: Beaumont (Riverside) | G89: Columbine (Jefferson) | H89: South Woodstock (Windham) | K89: Brooksville (Hernando) | L89: Camak (Warren) | M89: Makena (Maui) | N89: Blairsburg (Hamilton) | O89: Hayden Lake (Kootenai) | P89: Belle Prairie City (Hamilton) | Q89: Cedar Grove (Franklin) | R89: Cambridge (Cowley) | S89: Catlettsburg (Boyd) | T89: Clarks (Caldwell) | U89: Palmer Town (Hampden) | V89: Charlestown (Cecil) | X89: Brownlee Park (Calhoun) | Y89: Boy River (Cass) | Z89: Black Jack (St. Louis) | AA89: Drew (Sunflower) | AB89: Dixon (Sanders) | AC89: Bunnlevel (Harnett) | AD89: Denhoff (Sheridan) | AE89: Butte (Boyd) | AG89: Clearbrook Park (Middlesex) | AH89: Cotton City (Hidalgo) | AI89: Paradise Valley (Humboldt) | AJ89: Bloomville (Delaware) | AK89: Berlin (Holmes) | AL89: Burbank (Osage) | AM89: Donald (Marion) | AN89: Beaver Falls (Beaver) | AO89: Guayama (Guayama) | AQ89: Duncan (Spartanburg) | AR89: Cottonwood (Jackson) | AS89: Covington (Tipton) | AT89: Barry (Navarro) | AU89: Fielding (Box Elder) | AV89: Castlewood (Russell) | AX89: Cavalero (Snohomish) | AY89: Brillion (Calumet) | AZ89: Clearview (Ohio) | BA89: Hill View Heights (Weston) | BD89: AK | BE89: Elfin Cove (Hoonah-Angoon) | BF89: 58.1912 | BG89: -136.3129 | BI89: 24 | BJ89: -120.63 | BK89: 52 | BL89: 8 | BM89: 27 | BS89: -125.63 | BT89: 40 | BU89: 34.5 | BV89: 1.2 | BW89: 33 | BX89: 1.8 | BY89: 40 | BZ89: -4 | CA89: 738.1742
B90: Elim (Nome) | C90: Centreville (Bibb) | D90: Centerton (Benton) | E90: Cornfields (Apache) | F90: Beckwourth (Plumas) | G90: Columbine Valley (Arapahoe) | H90: Southport (Fairfield) | K90: Brownsdale (Santa Rosa) | L90: Camilla (Mitchell) | M90: Manele (Maui) | N90: Blairstown (Benton) | O90: Hazelton (Jerome) | P90: Belle Rive (Jefferson) | Q90: Cedar Lake (Lake) | R90: Caney (Montgomery) | S90: Cave City (Barren) | T90: Clayton (Concordia) | U90: Peabody (Essex) | V90: Charlotte Hall (St. Mary's) | X90: Brutus (Emmet) | Y90: Boyd (Lac qui Parle) | Z90: Blackburn (Saline) | AA90: Duck Hill (Montgomery) | AB90: Dodson (Phillips) | AC90: Burgaw (Pender) | AD90: Des Lacs (Ward) | AE90: Byron (Thayer) | AG90: Clementon (Camden) | AH90: Coyote (Rio Arriba) | AI90: Pioche (Lincoln) | AJ90: Blue Point (Suffolk) | AK90: Berlin Heights (Erie) | AL90: Burlington (Alfalfa) | AM90: Drain (Douglas) | AN90: Beaver Meadows (Carbon) | AO90: Guayanilla (Guayanilla) | AQ90: Dunean (Greenville) | AR90: Cow Creek (Sully) | AS90: Cowan (Franklin) | AT90: Barstow (Ward) | AU90: Fillmore (Millard) | AV90: Catlett (Fauquier) | AX90: Centerville (Klickitat) | AY90: Bristol (Kenosha) | AZ90: Clendenin (Kanawha) | BA90: Hillsdale (Laramie) | BD90: AK | BE90: Elim (Nome) | BF90: 64.6184 | BG90: -162.2762 | BI90: 24 | BJ90: -120 | BK90: 52 | BL90: 8 | BM90: 27 | BS90: -125.63 | BT90: 40.5 | BU90: 34.2 | BV90: 0.8 | BW90: 32.7 | BX90: 1.7 | BY90: 40 | BZ90: -4 | CA90: 710.4088
B91: Emmonak (Kusilvak) | C91: Chatom (Washington) | D91: Central City (Sebastian) | E91: Cornville (Yavapai) | F91: Belden (Plumas) | G91: Comanche Creek (Arapahoe) | H91: Southwood Acres (Hartford) | K91: Brownsville (Miami-Dade) | L91: Candler-McAfee (DeKalb) | M91: Maunaloa (Maui) | N91: Blakesburg (Wapello) | O91: Heyburn (Minidoka) | P91: Belleville (St. Clair) | Q91: Center Point (Clay) | R91: Canton (McPherson) | S91: Cawood (Harlan) | T91: Clinton (East Feliciana) | U91: Pinehurst (Middlesex) | V91: Charlton (Washington) | X91: Buchanan (Berrien) | Y91: Braham (Isanti) | Z91: Blackwater (Cooper) | AA91: Dumas (Tippah) | AB91: Drummond (Granite) | AC91: Burlington (Alamance) | AD91: Devils Lake (Ramsey) | AE91: Cairo (Hall) | AG91: Cliffside Park (Bergen) | AH91: Crownpoint (McKinley) | AI91: Preston (White Pine) | AJ91: Bohemia (Suffolk) | AK91: Bethel (Clermont) | AL91: Burneyville (Love) | AM91: Dufur (Wasco) | AN91: Beaver Springs (Snyder) | AO91: Guaynabo (Guaynabo) | AQ91: Easley (Pickens) | AR91: Cresbard (Faulk) | AS91: Crab Orchard (Cumberland) | AT91: Bartlett (Williamson) | AU91: Flaming Gorge (Daggett) | AV91: Cats Bridge (Accomack) | AX91: Central Park (Grays Harbor) | AY91: Brodhead (Green) | AZ91: Coal City (Raleigh) | BA91: Hoback (Teton) | BD91: AK | BE91: Emmonak (Kusilvak) | BF91: 62.7762 | BG91: -164.5157 | BI91: 24 | BJ91: -119.38 | BK91: 52 | BL91: 8 | BM91: 27 | BS91: -125.63 | BT91: 41 | BU91: 34.2 | BV91: 0.4 | BW91: 32.6 | BX91: 1.6 | BY91: 40 | BZ91: -4 | CA91: 704.6271
B92: Ester (Fairbanks North Star) | C92: Chelsea (Shelby) | D92: Charleston (Franklin) | E92: Corona de Tucson (Pima) | F92: Bell (Los Angeles) | G92: Commerce City (Adams) | H92: Stafford Springs (Tolland) | K92: Buckhead Ridge (Glades) | L92: Canon (Hart) | M92: Maunawili (Honolulu) | N92: Blanchard (Page) | O92: Hidden Springs (Ada) | P92: Bellevue (Peoria) | Q92: Centerville (Wayne) | R92: Carbondale (Osage) | S92: Cayce (Fulton) | T92: Colfax (Grant) | U92: Pittsfield (Berkshire) | V92: Chesapeake Beach (Calvert) | X92: Buckley (Wexford) | Y92: Brainerd (Crow Wing) | Z92: Blairstown (Henry) | AA92: Duncan (Bolivar) | AB92: Dupuyer (Pondera) | AC92: Burnsville (Yancey) | AD92: Dickey (LaMoure) | AE92: Callaway (Custer) | AG92: Cliffwood Beach (Monmouth) | AH92: Cruzville (Catron) | AI92: Rachel (Lincoln) | AJ92: Bolivar (Allegany) | AK92: Bethesda (Belmont) | AL92: Burns Flat (Washita) | AM92: Dundee (Yamhill) | AN92: Beaverdale (Cambria) | AO92: Gurabo (Gurabo) | AQ92: East Gaffney (Cherokee) | AR92: Crocker (Clark) | AS92: Cross Plains (Robertson) | AT92: Barton Creek (Travis) | AU92: Fort Duchesne (Uintah) | AV92: Cave Spring (Roanoke) | AX92: Centralia (Lewis) | AY92: Brookfield (Waukesha) | AZ92: Coal Fork (Kanawha) | BA92: Homa Hills (Natrona) | BD92: AK | BE92: Ester (Fairbanks North Star) | BF92: 64.8646 | BG92: -148.0916 | BI92: 24 | BJ92: -118.75 | BK92: 52 | BL92: 8 | BM92: 27 | BS92: -125.63 | BT92: 41.5 | BU92: 34.1 | BV92: 0 | BW92: 32.5 | BX92: 1.4 | BY92: 40 | BZ92: -4 | CA92: 698.3465
B93: Eureka Roadhouse (Matanuska-Susitna) | C93: Cherokee (Colbert) | D93: Cherokee City (Benton) | E93: Cottonwood (Yavapai) | F93: Bell Canyon (Ventura) | G93: Conejos (Conejos) | H93: Stamford (Fairfield) | K93: Buckingham (Lee) | L93: Canoochee (Emanuel) | M93: Mililani Mauka (Honolulu) | N93: Blencoe (Monona) | O93: Hollister (Twin Falls) | P93: Bellflower (McLean) | Q93: Chalmers (White) | R93: Carlton (Dickinson) | S93: Cecilia (Hardin) | T93: Collinston (Morehouse) | U93: Pocasset (Barnstable) | V93: Chesapeake City (Cecil) | X93: Buena Vista (Saginaw) | Y93: Brandon (Douglas) | Z93: Blanchard (Atchison) | AA93: Durant (Holmes) | AB93: Dutton (Teton) | AC93: Butner (Granville) | AD93: Dickinson (Stark) | AE93: Cambridge (Furnas) | AG93: Clifton (Passaic) | AH93: Crystal (San Juan) | AI93: Reno (Washoe) | AJ93: Bolton Landing (Warren) | AK93: Bettsville (Seneca) | AL93: Bushyhead (Rogers) | AM93: Dunes City (Lane) | AN93: Beavertown (Snyder) | AO93: H. Rivera Colón (Toa Alta) | AQ93: East Sumter (Sumter) | AR93: Crooks (Minnehaha) | AS93: Crossville (Cumberland) | AT93: Bartonville (Denton) | AU93: Fountain Green (Sanpete) | AV93: Cedar Bluff (Tazewell) | AX93: Chain Lake (Snohomish) | AY93: Brooklyn (Green) | AZ93: Comfort (Boone) | BA93: Hudson (Fremont) | BD93: AK | BE93: Eureka Roadhouse (Matanuska-Susitna) | BF93: 61.9648 | BG93: -147.1523 | BI93: 24 | BJ93: -118.13 | BK93: 52 | BL93: 8 | BM93: 27 | BS93: -125.63 | BT93: 42 | BU93: 34.2 | BV93: -0.5 | BW93: 32.5 | BX93: 1.4 | BY93: 40 | BZ93: -4 | CA93: 699.9203
B94: Evansville (Yukon-Koyukuk) | C94: Chickasaw (Mobile) | D94: Cherokee Village (Sharp) | E94: Cowlic (Pima) | F94: Bell Gardens (Los Angeles) | G94: Copper Mountain (Summit) | H94: Stonington (New London) | K94: Buenaventura Lakes (Osceola) | L94: Canton (Cherokee) | M94: Mililani Town (Honolulu) | N94: Blockton (Taylor) | O94: Homedale (Owyhee) | P94: Bellmont (Wabash) | Q94: Chandler (Warrick) | R94: Cassoday (Butler) | S94: Centertown (Ohio) | T94: Columbia (Caldwell) | U94: Popponesset (Barnstable) | V94: Chesapeake Ranch Estates (Calvert) | X94: Burlington (Calhoun) | Y94: Breckenridge (Wilkin) | Z94: Bland (Gasconade) | AA94: Ecru (Pontotoc) | AB94: East Glacier Park Village (Glacier) | AC94: Butters (Bladen) | AD94: Dodge (Dunn) | AE94: Campbell (Franklin) | AG94: Clinton (Hunterdon) | AH94: Cuartelez (Santa Fe) | AI94: Round Hill Village (Douglas) | AJ94: Boonville (Oneida) | AK94: Beulah Beach (Erie) | AL94: Butler (Custer) | AM94: Durham (Washington) | AN94: Bechtelsville (Berks) | AO94: Hacienda San José (Caguas) | AQ94: Eastover (Richland) | AR94: Custer (Custer) | AS94: Crump (Hardin) | AT94: Bastrop (Bastrop) | AU94: Francis (Summit) | AV94: Central Garage (King William) | AX94: Chehalis (Lewis) | AY94: Brown Deer (Milwaukee) | AZ94: Corinne (Wyoming) | BA94: Hulett (Crook) | BD94: AK | BE94: Evansville (Yukon-Koyukuk) | BF94: 66.9205 | BG94: -151.4203 | BI94: 24 | BJ94: -117.5 | BK94: 52 | BL94: 8 | BM94: 27 | BS94: -125.63 | BT94: 42.5 | BU94: 34.4 | BV94: -0.9 | BW94: 32.6 | BX94: 1.3 | BY94: 40 | BZ94: -4 | CA94: 703.0965
B95: Excursion Inlet (Haines) | C95: Childersburg (Talladega) | D95: Cherry Valley (Cross) | E95: Crozier (Mohave) | F95: Bella Vista (Shasta) | G95: Cortez (Montezuma) | H95: Storrs (Tolland) | K95: Bunnell (Flagler) | L95: Carl (Barrow) | M95: Mokuleia (Honolulu) | N95: Bloomfield (Davis) | O95: Hope (Bonner) | P95: Bellwood (Cook) | Q95: Charlestown (Clark) | R95: Catharine (Ellis) | S95: Central City (Muhlenberg) | T95: Convent (St. James) | U95: Popponesset Island (Barnstable) | V95: Chester (Queen Anne's) | X95: Burr Oak (St. Joseph) | Y95: Breezy Point (Crow Wing) | Z95: Blodgett (Scott) | AA95: Eden (Yazoo) | AB95: East Helena (Lewis and Clark) | AC95: Buxton (Dare) | AD95: Donnybrook (Ward) | AE95: Carleton (Thayer) | AG95: Closter (Bergen) | AH95: Cuba (Sandoval) | AI95: Ruhenstroth (Douglas) | AJ95: Brasher Falls (St. Lawrence) | AK95: Beverly (Washington) | AL95: Byars (McClain) | AM95: Eagle Crest (Deschutes) | AN95: Bedford (Bedford) | AO95: Hatillo (Hatillo) | AQ95: Edgefield (Edgefield) | AR95: Dakota Dunes (Union) | AS95: Cumberland City (Stewart) | AT95: Batesville (Zavala) | AU95: Fremont (Wayne) | AV95: Centreville (Fairfax) | AX95: Chelan (Chelan) | AY95: Browns Lake (Racine) | AZ95: Covel (Wyoming) | BA95: Huntley (Goshen) | BD95: AK | BE95: Excursion Inlet (Haines) | BF95: 58.4355 | BG95: -135.373 | BI95: 24 | BJ95: -116.88 | BK95: 52 | BL95: 8 | BM95: 27 | BS95: -125.63 | BT95: 43 | BU95: 34.8 | BV95: -1.4 | BW95: 32.9 | BX95: 1.2 | BY95: 40 | BZ95: -4 | CA95: 729.7406
B96: Fairbanks (Fairbanks North Star) | C96: Choccolocco (Calhoun) | D96: Chester (Crawford) | E96: Crystal Beach (Mohave) | F96: Bellflower (Los Angeles) | G96: Cotopaxi (Fremont) | H96: Suffield Depot (Hartford) | K96: Burnt Store Marina (Lee) | L96: Carlton (Madison) | M96: Mountain View (Hawaii) | N96: Blue Grass (Scott) | O96: Horseshoe Bend (Boise) | P96: Belvidere (Boone) | Q96: Chesterfield (Madison) | R96: Cawker City (Mitchell) | S96: Cerulean (Trigg) | T96: Converse (Sabine) | U96: Quincy (Norfolk) | V96: Chestertown (Kent) | X96: Burt (Saginaw) | Y96: Brewster (Nobles) | Z96: Bloomfield (Stoddard) | AA96: Edwards (Hinds) | AB96: East Missoula (Missoula) | AC96: Cajah's Mountain (Caldwell) | AD96: Douglas (Ward) | AE96: Carroll (Wayne) | AG96: Clyde (Somerset) | AH96: Cubero (Cibola) | AI96: Ruth (White Pine) | AJ96: Breesport (Chemung) | AK96: Bexley (Franklin) | AL96: Byng (Pontotoc) | AM96: Eagle Point (Jackson) | AN96: Beech Creek (Clinton) | AO96: Hato Arriba (San Sebastián) | AQ96: Edisto (Orangeburg) | AR96: Dallas (Gregory) | AS96: Cumberland Gap (Claiborne) | AT96: Bay City (Matagorda) | AU96: Fruit Heights (Davis) | AV96: Chamberlayne (Henrico) | AX96: Chelan Falls (Chelan) | AY96: Brownsville (Dodge) | AZ96: Cowen (Webster) | BA96: Hyattville (Big Horn) | BD96: AK | BE96: Fairbanks (Fairbanks North Star) | BF96: 64.8353 | BG96: -147.6534 | BI96: 24 | BJ96: -116.25 | BK96: 52 | BL96: 8 | BM96: 27 | BS96: -125.63 | BT96: 43.5 | BU96: 35.3 | BV96: -1.8 | BW96: 33.3 | BX96: 1 | BY96: 40 | BZ96: -4 | CA96: 760.7602
B97: False Pass (Aleutians East) | C97: Chunchula (Mobile) | D97: Chidester (Ouachita) | E97: Cutter (Gila) | F97: Belmont (San Mateo) | G97: Craig (Moffat) | H97: Tariffville (Hartford) | K97: Bushnell (Sumter) | L97: Carnesville (Franklin) | M97: Naalehu (Hawaii) | N97: Bode (Humboldt) | O97: Huetter (Kootenai) | P97: Bement (Piatt) | Q97: Chesterton (Porter) | R97: Cedar (Smith) | S97: Chaplin (Nelson) | T97: Cotton Valley (Webster) | U97: Randolph (Norfolk) | V97: Cheverly (Prince George's) | X97: Burton (Genesee) | Y97: Bricelyn (Faribault) | Z97: Bloomsdale (Ste. Genevieve) | AA97: Elliott (Grenada) | AB97: Edgar (Carbon) | AC97: Calabash (Brunswick) | AD97: Drake (McHenry) | AE97: Cedar Bluffs (Saunders) | AG97: Collings Lakes (Atlantic) | AH97: Cundiyo (Santa Fe) | AI97: Sandy Valley (Clark) | AJ97: Brentwood (Suffolk) | AK97: Blacklick Estates (Franklin) | AL97: Byron (Alfalfa) | AM97: Echo (Umatilla) | AN97: Beech Mountain Lakes (Luzerne) | AO97: Hato Candal (Río Grande) | AQ97: Edisto Beach (Colleton) | AR97: Dante (Charles Mix) | AS97: Dandridge (Jefferson) | AT97: Bayou Vista (Galveston) | AU97: Garden (Rich) | AV97: Chantilly (Fairfax) | AX97: Cheney (Spokane) | AY97: Browntown (Green) | AZ97: Crab Orchard (Raleigh) | BA97: Jackson (Teton) | BD97: AK | BE97: False Pass (Aleutians East) | BF97: 54.8415 | BG97: -163.348 | BI97: 24 | BJ97: -115.63 | BK97: 52 | BL97: 8 | BM97: 27 | BS97: -125.63 | BT97: 44 | BU97: 35.4 | BV97: -2.4 | BW97: 33.3 | BX97: 0.9 | BY97: 40 | BZ97: -4 | CA97: 762.9398
B98: Farm Loop (Matanuska-Susitna) | C98: Citronelle (Mobile) | D98: Clarendon (Monroe) | E98: Dateland (Yuma) | F98: Belvedere (Marin) | G98: Crawford (Delta) | H98: Terramuggus (Hartford) | K98: Butler Beach (St. Johns) | L98: Carrollton (Carroll) | M98: Nanakuli (Honolulu) | N98: Bolan (Worth) | O98: Idaho City (Boise) | P98: Benld (Macoupin) | Q98: Chrisney (Spencer) | R98: Cedar Point (Chase) | S98: Clarkson (Grayson) | T98: Cottonport (Avoyelles) | U98: Raynham Center (Bristol) | V98: Chevy Chase (Montgomery) | X98: Byron (Shiawassee) | Y98: Brook Park (Pine) | Z98: Blue Eye (Stone) | AA98: Ellisville (Jones) | AB98: Ekalaka (Carter) | AC98: Calypso (Duplin) | AD98: Drayton (Pembina) | AE98: Cedar Creek (Cass) | AG98: Collingswood (Camden) | AH98: Cuyamungue (Santa Fe) | AI98: Schurz (Mineral) | AJ98: Brewerton (Onondaga) | AK98: Bladensburg (Knox) | AL98: Cache (Comanche) | AM98: Elgin (Union) | AN98: Belfast (Northampton) | AO98: Hormigueros (Hormigueros) | AQ98: Ehrhardt (Bamberg) | AR98: Davis (Turner) | AS98: Darden (Henderson) | AT98: Bayside (Refugio) | AU98: Garden City (Rich) | AV98: Charles City (Charles City) | AX98: Cherry Grove (Clark) | AY98: Bruce (Rusk) | AZ98: Craigsville (Nicholas) | BA98: James Town (Sweetwater) | BD98: AK | BE98: Farm Loop (Matanuska-Susitna) | BF98: 61.6394 | BG98: -149.1471 | BI98: 24 | BJ98: -115 | BK98: 52 | BL98: 8 | BM98: 27 | BS98: -125.63 | BT98: 44.5 | BU98: 35.6 | BV98: -3 | BW98: 33.4 | BX98: 0.8 | BY98: 40 | BZ98: -4 | CA98: 768.1599
B99: Farmers Loop (Fairbanks North Star) | C99: Clanton (Chilton) | D99: Clarkedale (Crittenden) | E99: Deer Creek (Gila) | F99: Ben Lomond (Santa Cruz) | G99: Crested Butte (Gunnison) | H99: Terryville (Litchfield) | K99: Cabana Colony (Palm Beach) | L99: Cartersville (Bartow) | M99: Nanawale Estates (Hawaii) | N99: Bonaparte (Van Buren) | O99: Idaho Falls (Bonneville) | P99: Bensenville (DuPage) | Q99: Churubusco (Whitley) | R99: Cedar Vale (Chautauqua) | S99: Claryville (Campbell) | T99: Coushatta (Red River) | U99: Revere (Suffolk) | V99: Chevy Chase Section Five (Montgomery) | X99: Byron Center (Kent) | Y99: Brooklyn Center (Hennepin) | Z99: Blue Springs (Jackson) | AA99: Enterprise (Clarke) | AB99: Elkhorn (Jefferson) | AC99: Camden (Camden) | AD99: Driscoll (Burleigh) | AE99: Cedar Rapids (Boone) | AG99: Colonia (Middlesex) | AH99: Cuyamungue Grant (Santa Fe) | AI99: Searchlight (Clark) | AJ99: Brewster (Putnam) | AK99: Blakeslee (Williams) | AL99: Caddo (Bryan) | AM99: Elkton (Douglas) | AN99: Bell Acres (Allegheny) | AO99: Humacao (Humacao) | AQ99: Elgin (Kershaw) | AR99: De Smet (Kingsbury) | AS99: Dayton (Rhea) | AT99: Baytown (Harris) | AU99: Garland (Box Elder) | AV99: Charlotte Court House (Charlotte) | AX99: Chewelah (Stevens) | AY99: Brule (Douglas) | AZ99: Cross Lanes (Kanawha) | BA99: Jeffrey City (Fremont) | BD99: AK | BE99: Farmers Loop (Fairbanks North Star) | BF99: 64.9061 | BG99: -147.6957 | BI99: 24 | BJ99: -114.38 | BK99: 52 | BL99: 8 | BM99: 27 | BS99: -125.63 | BT99: 45 | BU99: 35.8 | BV99: -3.3 | BW99: 33.5 | BX99: 0.6 | BY99: 40 | BZ99: -4 | CA99: 776.0201
B100: Ferry (Denali) | C100: Clay (Jefferson) | D100: Clarksville (Johnson) | E100: Del Muerto (Apache) | F100: Benbow (Humboldt) | G100: Crestone (Saguache) | H100: Thompsonville (Hartford) | K100: Callahan (Nassau) | L100: Cave Spring (Floyd) | M100: Napili-Honokowai (Maui) | N100: Bondurant (Polk) | O100: Inkom (Bannock) | P100: Benson (Woodford) | Q100: Cicero (Hamilton) | R100: Centralia (Nemaha) | S100: Clay (Webster) | T100: Covington (St. Tammany) | U100: Sagamore (Barnstable) | V100: Chevy Chase Section Three (Montgomery) | X100: Caberfae (Wexford) | Y100: Brooklyn Park (Hennepin) | Z100: Blythedale (Harrison) | AA100: Escatawpa (Jackson) | AB100: Elliston (Powell) | AC100: Cameron (Moore) | AD100: Dunn Center (Dunn) | AE100: Center (Knox) | AG100: Columbia (Warren) | AH100: Datil (Catron) | AI100: Silver City (Lyon) | AJ100: Brewster Hill (Putnam) | AK100: Blanchester (Clinton) | AL100: Calera (Bryan) | AM100: Enterprise (Wallowa) | AN100: Belle Vernon (Fayette) | AO100: Imbéry (Barceloneta) | AQ100: Elko (Barnwell) | AR100: Deadwood (Lawrence) | AS100: Decatur (Meigs) | AT100: Bayview (Cameron) | AU100: Genola (Utah) | AV100: Charlottesville (Charlottesville) | AX100: Chico (Kitsap) | AY100: Buffalo City (Buffalo) | AZ100: Crum (Wayne) | BA100: Johnstown (Fremont) | BD100: AK | BE100: Ferry (Denali) | BF100: 64.0496 | BG100: -148.9205 | BI100: 24 | BJ100: -113.75 | BK100: 52 | BL100: 8 | BM100: 27 | BS100: -125.63 | BT100: 45.5 | BU100: 35.8 | BV100: -3.6 | BW100: 33.4 | BX100: 0.4 | BY100: 40 | BZ100: -4 | CA100: 767.672
B101: Fishhook (Matanuska-Susitna) | C101: Clayhatchee (Dale) | D101: Clinton (Van Buren) | E101: Dennehotso (Apache) | F101: Bend (Tehama) | G101: Cripple Creek (Teller) | H101: Torrington (Litchfield) | K101: Callaway (Bay) | L101: Cecil (Cook) | M101: Ocean Pointe (Honolulu) | N101: Boone (Boone) | O101: Iona (Bonneville) | P101: Bentley (Hancock) | Q101: Clarks Hill (Tippecanoe) | R101: Chanute (Neosho) | S101: Clay City (Powell) | T101: Creola (Grant) | U101: Salem (Essex) | V101: Chevy Chase View (Montgomery) | X101: Cadillac (Wexford) | Y101: Brooks (Red Lake) | Z101: Bogard (Carroll) | AA101: Ethel (Attala) | AB101: Elmo (Lake) | AC101: Candor (Montgomery) | AD101: Dunseith (Rolette) | AE101: Central City (Merrick) | AG101: Concordia (Middlesex) | AH101: Deming (Luna) | AI101: Silver Peak (Esmeralda) | AJ101: Briarcliff Manor (Westchester) | AK101: Bloomdale (Wood) | AL101: Calumet (Canadian) | AM101: Eola (Polk) | AN101: Bellefonte (Centre) | AO101: Indios (Guayanilla) | AQ101: Elloree (Orangeburg) | AR101: Dell Rapids (Minnehaha) | AS101: Decaturville (Decatur) | AT101: Beach City (Chambers) | AU101: Glendale (Kane) | AV101: Chase City (Mecklenburg) | AX101: Chinook (Pacific) | AY101: Burlington (Racine) | AZ101: Crumpler (McDowell) | BA101: Kaycee (Johnson) | BD101: AK | BE101: Fishhook (Matanuska-Susitna) | BF101: 61.711 | BG101: -149.2657 | BI101: 24 | BJ101: -113.13 | BK101: 52 | BL101: 8 | BM101: 27 | BS101: -125.63 | BT101: 46 | BU101: 35.5 | BV101: -4.1 | BW101: 33.1 | BX101: 0.3 | BY101: 40 | BZ101: -10 | CA101: 743.6474
B102: Flat (Yukon-Koyukuk) | C102: Clayton (Barbour) | D102: Coal Hill (Johnson) | E102: Desert Hills (Mohave) | F102: Benicia (Solano) | G102: Crisman (Boulder) | H102: Wallingford Center (New Haven) | K102: Campbell (Osceola) | L102: Cedar Springs (Early) | M102: Olinda (Maui) | N102: Bouton (Dallas) | O102: Irwin (Bonneville) | P102: Benton (Franklin) | Q102: Clarksburg (Decatur) | R102: Chapman (Dickinson) | S102: Cleaton (Muhlenberg) | T102: Crescent (Iberville) | U102: Seabrook (Barnstable) | V102: Chevy Chase Village (Montgomery) | X102: Caledonia (Kent) | Y102: Brookston (St. Louis) | Z102: Bolckow (Andrew) | AA102: Eupora (Webster) | AB102: Emigrant (Park) | AC102: Canton (Haywood) | AD102: Dwight (Richland) | AE102: Ceresco (Saunders) | AG102: Corbin City (Atlantic) | AH102: Des Moines (Union) | AI102: Silver Springs (Lyon) | AJ102: Bridgehampton (Suffolk) | AK102: Bloomingburg (Fayette) | AL102: Calvin (Hughes) | AM102: Estacada (Clackamas) | AN102: Belleville (Mifflin) | AO102: Ingenio (Toa Baja) | AQ102: Enoree (Spartanburg) | AR102: Delmont (Douglas) | AS102: Decherd (Franklin) | AT102: Bear Creek (Hays) | AU102: Glenwood (Sevier) | AV102: Chase Crossing (Accomack) | AX102: Clallam Bay (Clallam) | AY102: Burnett (Dodge) | AZ102: Cucumber (McDowell) | BA102: Kelly (Teton) | BD102: AK | BE102: Flat (Yukon-Koyukuk) | BF102: 62.4415 | BG102: -158.0405 | BI102: 24 | BJ102: -112.5 | BK102: 52 | BL102: 8 | BM102: 27 | BS102: -125.63 | BT102: 46.5 | BU102: 35.2 | BV102: -4.5 | BW102: 32.7 | BX102: 0.1 | BY102: 40 | BZ102: -10 | CA102: 713.7876
B103: Fort Greely (Southeast Fairbanks) | C103: Cleveland (Blount) | D103: College Station (Pulaski) | E103: Dewey-Humboldt (Yavapai) | F103: Benton (Mono) | G103: Crook (Logan) | H103: Waterbury (New Haven) | K103: Campbellton (Jackson) | L103: Cedartown (Polk) | M103: Olowalu (Maui) | N103: Boxholm (Boone) | O103: Island Park (Fremont) | P103: Berkeley (Cook) | Q103: Clarksville (Clark) | R103: Chase (Rice) | S103: Clinton (Hickman) | T103: Crowley (Acadia) | U103: Seconsett Island (Barnstable) | V103: Chewsville (Washington) | X103: Calumet (Houghton) | Y103: Brooten (Stearns) | Z103: Bolivar (Polk) | AA103: Falcon (Quitman) | AB103: Ennis (Madison) | AC103: Cape Carteret (Carteret) | AD103: East Dunseith (Rolette) | AE103: Chadron (Dawes) | AG103: Country Lake Estates (Burlington) | AH103: Dexter (Chaves) | AI103: Skyland (Douglas) | AJ103: Bridgeport (Madison) | AK103: Bloomingdale (Jefferson) | AL103: Camargo (Dewey) | AM103: Eugene (Lane) | AN103: Bellevue (Allegheny) | AO103: Isabela (Isabela) | AQ103: Estill (Hampton) | AR103: Dimock (Hutchinson) | AS103: Dickson (Dickson) | AT103: Beasley (Fort Bend) | AU103: Goshen (Utah) | AV103: Chatham (Pittsylvania) | AX103: Clarkston (Asotin) | AY103: Butler (Waukesha) | AZ103: Culloden (Cabell) | BA103: Kemmerer (Lincoln) | BD103: AK | BE103: Fort Greely (Southeast Fairbanks) | BF103: 63.9678 | BG103: -145.7149 | BI103: 24 | BJ103: -111.88 | BK103: 52 | BL103: 8 | BM103: 27 | BS103: -125.63 | BT103: 47 | BU103: 34.9 | BV103: -4.8 | BW103: 32.3 | BX103: -0.1 | BY103: 40 | BZ103: -10 | CA103: 681.4317
B104: Fort Yukon (Yukon-Koyukuk) | C104: Clio (Barbour) | D104: Colt (St. Francis) | E104: Dilkon (Navajo) | F104: Berkeley (Alameda) | G104: Crowley (Crowley) | H104: Wauregan (Windham) | K104: Canal Point (Palm Beach) | L104: Centerville (Houston) | M104: Omao (Kauai) | N104: Boyden (Sioux) | O104: Jerome (Jerome) | P104: Berlin (Sangamon) | Q104: Clay City (Clay) | R104: Chautauqua (Chautauqua) | S104: Cloverport (Breckinridge) | T104: Cullen (Webster) | U104: Shelburne Falls (Franklin) | V104: Chillum (Prince George's) | X104: Camden (Hillsdale) | Y104: Browerville (Todd) | Z104: Bonne Terre (St. Francois) | AA104: Falkner (Tippah) | AB104: Eureka (Lincoln) | AC104: Caroleen (Rutherford) | AD104: East Fairview (McKenzie) | AE104: Chalco (Sarpy) | AG104: Crandon Lakes (Sussex) | AH104: Dixon (Rio Arriba) | AI104: Smith Valley (Lyon) | AJ104: Brightwaters (Suffolk) | AK104: Bloomville (Seneca) | AL104: Cameron (Le Flore) | AM104: Fair Oaks (Douglas) | AN104: Bellwood (Blair) | AO104: Jagual (San Lorenzo) | AQ104: Eureka Mill (Chester) | AR104: Doland (Spink) | AS104: Dodson Branch (Jackson) | AT104: Beaumont (Jefferson) | AU104: Granite (Salt Lake) | AV104: Chatmoss (Henry) | AX104: Clarkston Heights-Vineland (Asotin) | AY104: Butte des Morts (Winnebago) | AZ104: Dailey (Randolph) | BA104: Kirby (Hot Springs) | BD104: AK | BE104: Fort Yukon (Yukon-Koyukuk) | BF104: 66.5806 | BG104: -145.2416 | BI104: 24 | BJ104: -111.25 | BK104: 58 | BL104: 8 | BM104: 30 | BS104: -125.63 | BT104: 47.5 | BU104: 34.3 | BV104: -5.2 | BW104: 31.7 | BX104: -0.3 | BY104: 40 | BZ104: -10 | CA104: 633.6782
B105: Four Mile Road (Yukon-Koyukuk) | C105: Coaling (Tuscaloosa) | D105: Concord (Cleburne) | E105: Dolan Springs (Mohave) | F105: Bermuda Dunes (Riverside) | G105: Dacono (Weld) | H105: Weatogue (Hartford) | K105: Cape Canaveral (Brevard) | L105: Centralhatchee (Heard) | M105: Orchidlands Estates (Hawaii) | N105: Braddyville (Page) | O105: Juliaetta (Latah) | P105: Berwyn (Cook) | Q105: Claypool (Kosciusko) | R105: Cheney (Sedgwick) | S105: Coal Run Village (Pike) | T105: Cut Off (Lafourche) | U105: Siasconset (Nantucket) | V105: Choptank (Caroline) | X105: Canada Creek Ranch (Montmorency) | Y105: Browns Valley (Traverse) | Z105: Boonville (Cooper) | AA105: Farmington (Alcorn) | AB105: Evaro (Missoula) | AC105: Carolina Beach (New Hanover) | AD105: Edgeley (LaMoure) | AE105: Chambers (Holt) | AG105: Cresskill (Bergen) | AH105: Doña Ana (Doña Ana) | AI105: Spanish Springs (Washoe) | AJ105: Brinckerhoff (Dutchess) | AK105: Blue Ash (Hamilton) | AL105: Canadian (Pittsburg) | AM105: Fairview (Multnomah) | AN105: Belmont (Cambria) | AO105: Jauca (Santa Isabel) | AQ105: Eutawville (Orangeburg) | AR105: Dolton (Turner) | AS105: Dover (Stewart) | AT105: Beckville (Panola) | AU105: Grantsville (Tooele) | AV105: Cheriton (Northampton) | AX105: Clayton (Stevens) | AY105: Butternut (Ashland) | AZ105: Daniels (Raleigh) | BA105: La Barge (Lincoln) | BD105: AK | BE105: Four Mile Road (Yukon-Koyukuk) | BF105: 64.6046 | BG105: -149.1223 | BI105: 24 | BJ105: -110.63 | BK105: 70 | BL105: 2 | BM105: 33 | BS105: -125.63 | BT105: 48 | BU105: 33.6 | BV105: -6.1 | BW105: 31 | BX105: -0.5 | BY105: 34 | BZ105: -10 | CA105: 579.3787
